Workbook

Sheet Spot-price
A1: Responsible | B1: Date | C1: Ref. for shipment | D1: Shipment terms | E1: Shipment place, city | F1: Shipment place, country | G1: Delivery terms | H1: Destination place, city | I1: Destination place, country | J1: Type of transport | K1: Supplier | L1: Price, RUB | M1: Price, EURO | N1: Comments
A2: Chuprakov Nikita | B2: 2020-07-06 | C2: 9057666 | D2: DOOR | E2: Серпухов | F2: РФ | G2: DDP | H2: Волгоград | I2: РФ | J2: Auto Euro + 5-10t | K2: ASSTRA | L2: 110000 | M2: 1365.441895
A3: Chuprakov Nikita | B3: 2020-07-06 | C3: 9057666 | D3: DOOR | E3: Серпухов | F3: РФ | G3: DDP | H3: Волгоград | I3: РФ | J3: Auto Euro + 5-10t | K3: DACHSER | L3: 108000 | M3: 1340.615723
A4: Chuprakov Nikita | B4: 2020-07-06 | C4: 9057666 | D4: DOOR | E4: Серпухов | F4: РФ | G4: DDP | H4: Волгоград | I4: РФ | J4: Auto Euro + 5-10t | K4: СОВТРАНС | L4: 88200 | M4: 1094.836182
A5: Chuprakov Nikita | B5: 2020-07-06 | C5: 9057727 | D5: DOOR | E5: Серпухов | F5: РФ | G5: DDP | H5: Казань | I5: РФ | J5: FTL Аuto | K5: ASSTRA | L5: 65000 | M5: 808.3571167
A6: Chuprakov Nikita | B6: 2020-07-06 | C6: 9057727 | D6: DOOR | E6: Серпухов | F6: РФ | G6: DDP | H6: Казань | I6: РФ | J6: FTL Аuto | K6: DACHSER | L6: 60000 | M6: 746.1758423
A7: Chuprakov Nikita | B7: 2020-07-06 | C7: 9057727 | D7: DOOR | E7: Серпухов | F7: РФ | G7: DDP | H7: Казань | I7: РФ | J7: FTL Аuto | K7: СОВТРАНС | L7: 54600 | M7: 679.0200195
A8: Chuprakov Nikita | B8: 2020-07-03 | C8: 9066934 | D8: DOOR | E8: Серпухов | F8: РФ | G8: DDP | H8: Вынгапур | I8: РФ | J8: Auto 3t | K8: DACHSER | L8: 132000 | M8: 1641.586792
A9: Chuprakov Nikita | B9: 2020-07-03 | C9: 9066934 | D9: DOOR | E9: Серпухов | F9: РФ | G9: DDP | H9: Вынгапур | I9: РФ | J9: Auto 3t | K9: ASSTRA | L9: 125000 | M9: 1554.532959
A10: Chuprakov Nikita | B10: 2020-07-03 | C10: 9066934 | D10: DOOR | E10: Серпухов | F10: РФ | G10: DDP | H10: Вынгапур | I10: РФ | J10: Auto 3t | K10: СОВТРАНС | L10: 118000 | M10: 1467.479126
A11: Chuprakov Nikita | B11: 2020-07-02 | C11: 9061139 | D11: DOOR | E11: Серпухов | F11: РФ | G11: DAP | H11: Новополоцк | I11: РФ | J11: Auto 3t | K11: ASSTRA | L11: 32000 | M11: 397.9604492
A12: Chuprakov Nikita | B12: 2020-07-02 | C12: 9061139 | D12: DOOR | E12: Серпухов | F12: РФ | G12: DAP | H12: Новополоцк | I12: РФ | J12: Auto 3t | K12: DACHSER | L12: 31000 | M12: 385.5241699
A13: Chuprakov Nikita | B13: 2020-07-02 | C13: 9061139 | D13: DOOR | E13: Серпухов | F13: РФ | G13: DAP | H13: Новополоцк | I13: РФ | J13: Auto 3t | K13: СОВТРАНС | L13: 16000 | M13: 198.9802246
A14: Chuprakov Nikita | B14: 2020-05-14 | C14: 9070854 | D14: DOOR | E14: Серпухов | F14: РФ | G14: DDP | H14: Нижнекамск | I14: РФ | J14: Auto Euro | K14: AGILITY | L14: 65000 | M14: 808.3571167
A15: Chuprakov Nikita | B15: 2020-05-14 | C15: 9070854 | D15: DOOR | E15: Серпухов | F15: РФ | G15: DDP | H15: Нижнекамск | I15: РФ | J15: Auto Euro | K15: DACHSER | L15: 62000 | M15: 771.0483398
A16: Chuprakov Nikita | B16: 2020-05-14 | C16: 9070854 | D16: DOOR | E16: Серпухов | F16: РФ | G16: DDP | H16: Нижнекамск | I16: РФ | J16: Auto Euro | K16: СОВТРАНС | L16: 60500 | M16: 752.3939209
A17: Chuprakov Nikita | B17: 2020-07-14 | C17: 9068220 | D17: DOOR | E17: Серпухов | F17: РФ | G17: DDP | H17: Пермь | I17: РФ | J17: Auto 3t | K17: ASSTRA | L17: 75000 | M17: 932.7197876
A18: Chuprakov Nikita | B18: 2020-07-14 | C18: 9068220 | D18: DOOR | E18: Серпухов | F18: РФ | G18: DDP | H18: Пермь | I18: РФ | J18: Auto 3t | K18: DACHSER | L18: 65000 | M18: 808.3571167
A19: Chuprakov Nikita | B19: 2020-07-14 | C19: 9068220 | D19: DOOR | E19: Серпухов | F19: РФ | G19: DDP | H19: Пермь | I19: РФ | J19: Auto 3t | K19: СОВТРАНС | L19: 52983 | M19: 658.9105835
A20: Chuprakov Nikita | B20: 2020-03-08 | C20: 9069159 | D20: DOOR | E20: Серпухов | F20: РФ | G20: DAP | H20: Enschede | I20: Netherlands | J20: Auto 3t | K20: NUNNER | L20: 72262.39844 | M20: 898.6742554 | N20: Cargobase
A21: Chuprakov Nikita | B21: 2020-03-08 | C21: 9069159 | D21: DOOR | E21: Серпухов | F21: РФ | G21: DAP | H21: Enschede | I21: Netherlands | J21: Auto 3t | K21: DSV | L21: 67000 | M21: 833.2296753 | N21: Cargobase
A22: Chuprakov Nikita | B22: 2020-03-08 | C22: 9069159 | D22: DOOR | E22: Серпухов | F22: РФ | G22: DAP | H22: Enschede | I22: Netherlands | J22: Auto 3t | K22: SAMSKIP | L22: 59200 | M22: 736.2268066 | N22: Cargobase
A23: Lyscov Alexander | B23: 2020-03-11 | C23: 9067045 | D23: DOOR | E23: Серпухов | F23: РФ | G23: DDP | H23: Ravenna | I23: Italy | J23: Auto 3t | K23: NUNNER | L23: 104533 | M23: 1300 | N23: Cargobase
A24: Lyscov Alexander | B24: 2020-03-11 | C24: 9067045 | D24: DOOR | E24: Серпухов | F24: РФ | G24: DDP | H24: Ravenna | I24: Italy | J24: Auto 3t | K24: DHL | L24: 104533 | M24: 1300 | N24: Cargobase
A25: Lyscov Alexander | B25: 2020-03-11 | C25: 9067045 | D25: DOOR | E25: Серпухов | F25: РФ | G25: DDP | H25: Ravenna | I25: Italy | J25: Auto 3t | K25: SAMSKIP | L25: 90863.29688 | M25: 1129.999878 | N25: Cargobase
A26: Chuprakov Nikita | B26: 2020-06-21 | C26: 9074185 | D26: DOOR | E26: Серпухов | F26: РФ | G26: DAP | H26: Ettlingen | I26: Germany | J26: Auto 3t | K26: DSV | L26: 60100 | M26: 747.4194336 | N26: Cargobase
A27: Chuprakov Nikita | B27: 2020-06-21 | C27: 9074185 | D27: DOOR | E27: Серпухов | F27: РФ | G27: DAP | H27: Ettlingen | I27: Germany | J27: Auto 3t | K27: NUNNER | L27: 51462.39844 | M27: 639.999939 | N27: Cargobase
A28: Chuprakov Nikita | B28: 2020-06-21 | C28: 9074185 | D28: DOOR | E28: Серпухов | F28: РФ | G28: DAP | H28: Ettlingen | I28: Germany | J28: Auto 3t | K28: M&M | L28: 51060.35156 | M28: 635 | N28: Cargobase
A29: Chuprakov Nikita | B29: 2020-06-16 | C29: CTRU HW 118 | D29: FCA | E29: Мумбай | F29: Индия | G29: FCA | H29: Серпухов | I29: РФ | J29: Air + Auto | K29: SAMSKIP | L29: 105432.5 | M29: 1313.473389 | N29: Cargobase
A30: Chuprakov Nikita | B30: 2020-06-16 | C30: CTRU HW 118 | D30: FCA | E30: Мумбай | F30: Индия | G30: FCA | H30: Серпухов | I30: РФ | J30: Air + Auto | K30: INTERRAIL | L30: 97346.47656 | M30: 1212.738037 | N30: Cargobase
A31: Chuprakov Nikita | B31: 2020-06-16 | C31: CTRU HW 118 | D31: FCA | E31: Мумбай | F31: Индия | G31: FCA | H31: Серпухов | I31: РФ | J31: Air + Auto | K31: ACEX | L31: 92266.28906 | M31: 1149.449219 | N31: Cargobase
A32: Kuznetsova Sofia | B32: 2020-07-13 | C32: 9071154 | D32: FCA | E32: Mumbai | F32: India | G32: DOOR | H32: Серпухов | I32: РФ | J32: Air + Auto | K32: DACHSER | L32: 1505333 | M32: 18621.14062
A33: Kuznetsova Sofia | B33: 2020-07-13 | C33: 9071154 | D33: FCA | E33: Mumbai | F33: India | G33: DOOR | H33: Серпухов | I33: РФ | J33: Air + Auto | K33: M&M | L33: 1199352 | M33: 14836.12109
A34: Kuznetsova Sofia | B34: 2020-07-13 | C34: 9071154 | D34: FCA | E34: Mumbai | F34: India | G34: DOOR | H34: Серпухов | I34: РФ | J34: Air + Auto | K34: ACEX | L34: 1155936 | M34: 14299.06055
A35: Kuznetsova Sofia | B35: 2020-07-16 | C35: 9063869 | D35: DOOR | E35: Серпухов | F35: РФ | G35: DAP | H35: п. Газ-сале ,Тазовский район ЯНАО | I35: Россия | J35: Auto Euro | K35: DACHSER | L35: 350000 | M35: 4308.75293
A36: Kuznetsova Sofia | B36: 2020-07-16 | C36: 9063869 | D36: DOOR | E36: Серпухов | F36: РФ | G36: DAP | H36: п. Газ-сале ,Тазовский район ЯНАО | I36: Россия | J36: Auto Euro | K36: ASSTRA | L36: 345000 | M36: 4247.199219
A37: Kuznetsova Sofia | B37: 2020-07-16 | C37: 9063869 | D37: DOOR | E37: Серпухов | F37: РФ | G37: DAP | H37: п. Газ-сале ,Тазовский район ЯНАО | I37: Россия | J37: Auto Euro | K37: СОВТРАНС | L37: 341000 | M37: 4197.956055
A38: Chuprakov Nikita | B38: 2020-07-17 | C38: 9066787 & 9072456 | D38: DOOR | E38: Серпухов | F38: РФ | G38: DAP | H38: Казань | I38: РФ | J38: Auto Euro | K38: ASSTRA | L38: 65000 | M38: 800.1969604
A39: Chuprakov Nikita | B39: 2020-07-17 | C39: 9066787 & 9072456 | D39: DOOR | E39: Серпухов | F39: РФ | G39: DAP | H39: Казань | I39: РФ | J39: Auto Euro | K39: DACHSER | L39: 60000 | M39: 738.6433105
A40: Chuprakov Nikita | B40: 2020-07-17 | C40: 9066787 & 9072456 | D40: DOOR | E40: Серпухов | F40: РФ | G40: DAP | H40: Казань | I40: РФ | J40: Auto Euro | K40: СОВТРАНС | L40: 54600 | M40: 672.1654053
A41: Kuznetsova Sofia | B41: 2020-05-04 | C41: P-53/20/0359 | D41: EXW | E41: Wangi | F41: Switzerland | G41: DOOR | H41: Серпухов | I41: РФ | J41: Air + Auto | K41: SAMSKIP | L41: 244762.5 | M41: 2996.602539
A42: Kuznetsova Sofia | B42: 2020-05-04 | C42: P-53/20/0359 | D42: EXW | E42: Wangi | F42: Switzerland | G42: DOOR | H42: Серпухов | I42: РФ | J42: Air + Auto | K42: AGILITY | L42: 233901.7969 | M42: 2863.635986
A43: Kuznetsova Sofia | B43: 2020-05-04 | C43: P-53/20/0359 | D43: EXW | E43: Wangi | F43: Switzerland | G43: DOOR | H43: Серпухов | I43: РФ | J43: Air + Auto | K43: ACEX | L43: 160844.4062 | M43: 1969.201782
A44: Kuznetsova Sofia | B44: 2020-06-21 | C44: 9073825 | D44: FCA | E44: Mumbai | F44: India | G44: DOOR | H44: Серпухов | I44: РФ | J44: Air + Auto | K44: SAMSKIP | L44: 262730.5 | M44: 3216.583008
A45: Kuznetsova Sofia | B45: 2020-06-21 | C45: 9073825 | D45: FCA | E45: Mumbai | F45: India | G45: DOOR | H45: Серпухов | I45: РФ | J45: Air + Auto | K45: M&M | L45: 259620.0938 | M45: 3178.502686
A46: Kuznetsova Sofia | B46: 2020-06-21 | C46: 9073825 | D46: FCA | E46: Mumbai | F46: India | G46: DOOR | H46: Серпухов | I46: РФ | J46: Air + Auto | K46: ACEX | L46: 208797.0938 | M46: 2556.281738
A47: Bolushevskaya Tatyana | B47: 2020-06-22 | C47: 612 | D47: DOOR | E47: Wuxi Lotus Import and Export Co.Ltd., China | F47: China | G47: FCA | H47: Серпухов | I47: РФ | J47: Rail + Auto | K47: DACHSER | L47: 232486 | M47: 2846.302734 | N47: Cargobase
A48: Bolushevskaya Tatyana | B48: 2020-06-22 | C48: 612 | D48: DOOR | E48: Wuxi Lotus Import and Export Co.Ltd., China | F48: China | G48: FCA | H48: Серпухов | I48: РФ | J48: Rail + Auto | K48: INTERRAIL | L48: 225638.5 | M48: 2762.469482 | N48: Cargobase
A49: Bolushevskaya Tatyana | B49: 2020-06-22 | C49: 612 | D49: DOOR | E49: Wuxi Lotus Import and Export Co.Ltd., China | F49: China | G49: FCA | H49: Серпухов | I49: РФ | J49: Rail + Auto | K49: M&M | L49: 207849.4062 | M49: 2544.679199 | N49: Cargobase
A50: Bolushevskaya Tatyana | B50: 2020-07-15 | C50: 491;526 | D50: DOOR | E50: Wuxi Lotus Import and Export Co.Ltd., China | F50: China | G50: FCA | H50: Серпухов | I50: РФ | J50: Rail + Auto | K50: DACHSER | L50: 458636.9062 | M50: 5615.04541 | N50: Cargobase
A51: Bolushevskaya Tatyana | B51: 2020-07-15 | C51: 491;526 | D51: DOOR | E51: Wuxi Lotus Import and Export Co.Ltd., China | F51: China | G51: FCA | H51: Серпухов | I51: РФ | J51: Rail + Auto | K51: INTERRAIL | L51: 430492.4062 | M51: 5270.475098 | N51: Cargobase
A52: Bolushevskaya Tatyana | B52: 2020-07-15 | C52: 491;526 | D52: DOOR | E52: Wuxi Lotus Import and Export Co.Ltd., China | F52: China | G52: FCA | H52: Серпухов | I52: РФ | J52: Rail + Auto | K52: M&M | L52: 380349.9062 | M52: 4656.585449 | N52: Cargobase
A53: Bolushevskaya Tatyana | B53: 2020-05-07 | C53: 385456 | D53: DOOR | E53: Wuxi Lotus Import and Export Co.Ltd., China | F53: China | G53: EXW | H53: Серпухов | I53: РФ | J53: Rail + Auto | K53: DSV | L53: 862500.875 | M53: 10559.51074 | N53: Cargobase
A54: Bolushevskaya Tatyana | B54: 2020-05-07 | C54: 385456 | D54: DOOR | E54: Wuxi Lotus Import and Export Co.Ltd., China | F54: China | G54: EXW | H54: Серпухов | I54: РФ | J54: Rail + Auto | K54: INTERRAIL | L54: 729983.625 | M54: 8937.116211 | N54: Cargobase
A55: Bolushevskaya Tatyana | B55: 2020-05-07 | C55: 385456 | D55: DOOR | E55: Wuxi Lotus Import and Export Co.Ltd., China | F55: China | G55: EXW | H55: Серпухов | I55: РФ | J55: Rail + Auto | K55: M&M | L55: 586814.375 | M55: 7184.309082 | N55: Cargobase
A56: Bolushevskaya Tatyana | B56: 2020-05-17 | C56: 614 | D56: DOOR | E56: Sestri Levante | F56: Italy | G56: EXW | H56: Серпухов | I56: РФ | J56: FTL Auto | K56: DSV | L56: 260700 | M56: 3191.723877 | N56: Cargobase
A57: Bolushevskaya Tatyana | B57: 2020-05-17 | C57: 614 | D57: DOOR | E57: Sestri Levante | F57: Italy | G57: EXW | H57: Серпухов | I57: РФ | J57: FTL Auto | K57: DACHSER | L57: 253072.5938 | M57: 3098.342285 | N57: Cargobase
A58: Bolushevskaya Tatyana | B58: 2020-05-17 | C58: 614 | D58: DOOR | E58: Sestri Levante | F58: Italy | G58: EXW | H58: Серпухов | I58: РФ | J58: FTL Auto | K58: M&M | L58: 241392.2969 | M58: 2955.341553 | N58: Cargobase
A59: Bolushevskaya Tatyana | B59: 2020-05-17 | C59: 455 | D59: DOOR | E59: Sestri Levante | F59: Italy | G59: EXW | H59: Серпухов | I59: РФ | J59: FTL Auto | K59: NUNNER | L59: 296927.8125 | M59: 3635.257324 | N59: Cargobase
A60: Bolushevskaya Tatyana | B60: 2020-05-17 | C60: 455 | D60: DOOR | E60: Sestri Levante | F60: Italy | G60: EXW | H60: Серпухов | I60: РФ | J60: FTL Auto | K60: AGILITY | L60: 259712.7969 | M60: 3179.637451 | N60: Cargobase
A61: Bolushevskaya Tatyana | B61: 2020-05-17 | C61: 455 | D61: DOOR | E61: Sestri Levante | F61: Italy | G61: EXW | H61: Серпухов | I61: РФ | J61: FTL Auto | K61: SAMSKIP | L61: 249419.2969 | M61: 3053.615234 | N61: Cargobase
A62: Lyscov Alexander | B62: 2020-07-16 | C62: 2162689 | D62: DOOR | E62: Серпухов | F62: РФ | G62: DAP | H62: Нижнекамск | I62: РФ | J62: Auto 3t | K62: DACHSER | L62: 66000 | M62: 808.031311
A63: Lyscov Alexander | B63: 2020-07-16 | C63: 2162689 | D63: DOOR | E63: Серпухов | F63: РФ | G63: DAP | H63: Нижнекамск | I63: РФ | J63: Auto 3t | K63: AGILITY | L63: 62000 | M63: 759.0597534
A64: Lyscov Alexander | B64: 2020-07-16 | C64: 2162689 | D64: DOOR | E64: Серпухов | F64: РФ | G64: DAP | H64: Нижнекамск | I64: РФ | J64: Auto 3t | K64: СОВТРАНС | L64: 61500 | M64: 752.9382935
A65: Bolushevskaya Tatyana | B65: 2020-04-22 | C65: 9067940 | D65: FCA | E65: Mumbai | F65: India | G65: DOOR | H65: Серпухов | I65: Россия | J65: Air + Auto | K65: SAMSKIP | L65: 243803.7969 | M65: 2984.865234
A66: Bolushevskaya Tatyana | B66: 2020-04-22 | C66: 9067940 | D66: FCA | E66: Mumbai | F66: India | G66: DOOR | H66: Серпухов | I66: Россия | J66: Air + Auto | K66: DACHSER | L66: 179907 | M66: 2202.583252
A67: Bolushevskaya Tatyana | B67: 2020-04-22 | C67: 9067940 | D67: FCA | E67: Mumbai | F67: India | G67: DOOR | H67: Серпухов | I67: Россия | J67: Air + Auto | K67: ACEX | L67: 148103.5 | M67: 1813.216187
A68: Lyscov Alexander | B68: 2020-06-21 | C68: 9078183 | D68: DOOR | E68: Серпухов | F68: РФ | G68: DAP | H68: Самара | I68: РФ | J68: Auto 3t | K68: AGILITY | L68: 45000 | M68: 550.930481
A69: Lyscov Alexander | B69: 2020-06-21 | C69: 9078183 | D69: DOOR | E69: Серпухов | F69: РФ | G69: DAP | H69: Самара | I69: РФ | J69: Auto 3t | K69: DACHSER | L69: 42000 | M69: 514.2017822
A70: Lyscov Alexander | B70: 2020-06-21 | C70: 9078183 | D70: DOOR | E70: Серпухов | F70: РФ | G70: DAP | H70: Самара | I70: РФ | J70: Auto 3t | K70: СОВТРАНС | L70: 35000 | M70: 428.5014648
A71: Bolushevskaya Tatyana | B71: 2020-06-10 | C71: 9066934 | D71: DOOR | E71: Mumbai | F71: India | G71: FCA | H71: Серпухов | I71: Россия | J71: Air + Auto | K71: DACHSER | L71: 295258.5 | M71: 3614.820068
A72: Bolushevskaya Tatyana | B72: 2020-06-10 | C72: 9066934 | D72: DOOR | E72: Mumbai | F72: India | G72: FCA | H72: Серпухов | I72: Россия | J72: Air + Auto | K72: INTERRAIL | L72: 254153.2031 | M72: 3111.572021
A73: Bolushevskaya Tatyana | B73: 2020-06-10 | C73: 9066934 | D73: DOOR | E73: Mumbai | F73: India | G73: FCA | H73: Серпухов | I73: Россия | J73: Air + Auto | K73: ACEX | L73: 227350.7031 | M73: 2783.431641
A74: Bolushevskaya Tatyana | B74: 2020-06-27 | C74: 9069646 | D74: DOOR | E74: Shanghai | F74: China | G74: DDP | H74: Velikij Novgorod | I74: RF | J74: Air + Auto | K74: M&M | L74: 632198.8125 | M74: 7739.946289
A75: Bolushevskaya Tatyana | B75: 2020-06-27 | C75: 9069646 | D75: DOOR | E75: Shanghai | F75: China | G75: DDP | H75: Velikij Novgorod | I75: RF | J75: Air + Auto | K75: DACHSER | L75: 615686.8125 | M75: 7537.791504
A76: Bolushevskaya Tatyana | B76: 2020-06-27 | C76: 9069646 | D76: DOOR | E76: Shanghai | F76: China | G76: DDP | H76: Velikij Novgorod | I76: RF | J76: Air + Auto | K76: ACEX | L76: 563096.8125 | M76: 6893.9375
A77: Lyscov Alexander | B77: 2020-06-02 | C77: 9078502 | D77: DOOR | E77: Серпухов | F77: РФ | G77: DAP | H77: Ярославль | I77: РФ | J77: Auto 3t | K77: AGILITY | L77: 34000 | M77: 416.2585754
A78: Lyscov Alexander | B78: 2020-06-02 | C78: 9078502 | D78: DOOR | E78: Серпухов | F78: РФ | G78: DAP | H78: Ярославль | I78: РФ | J78: Auto 3t | K78: DACHSER | L78: 33000 | M78: 404.0156555
A79: Lyscov Alexander | B79: 2020-06-02 | C79: 9078502 | D79: DOOR | E79: Серпухов | F79: РФ | G79: DAP | H79: Ярославль | I79: РФ | J79: Auto 3t | K79: СОВТРАНС | L79: 32000 | M79: 391.7727661
A80: Kuznetsova Sofia | B80: 2020-06-10 | C80: 9072470+9067113 | D80: DOOR | E80: Маарду | F80: Эстония | G80: FCA | H80: Серпухов | I80: Россия | J80: LTL Auto | K80: SAMSKIP | L80: 37898.92188 | M80: 459.9942017 | N80: Cargobase
A81: Kuznetsova Sofia | B81: 2020-06-10 | C81: 9072470+9067113 | D81: DOOR | E81: Маарду | F81: Эстония | G81: FCA | H81: Серпухов | I81: Россия | J81: LTL Auto | K81: NUNNER | L81: 28912.58008 | M81: 350.9234314 | N81: Cargobase
A82: Kuznetsova Sofia | B82: 2020-06-10 | C82: 9072470+9067113 | D82: DOOR | E82: Маарду | F82: Эстония | G82: FCA | H82: Серпухов | I82: Россия | J82: LTL Auto | K82: M&M | L82: 26959.0293 | M82: 327.2124023 | N82: Cargobase
A83: Kuznetsova Sofia | B83: 2020-03-25 | C83: CPC INOX 0317 | D83: DOOR | E83: Gessate | F83: Italy | G83: EXW | H83: Серпухов | I83: РФ | J83: LTL Auto | K83: DHL | L83: 175135.0938 | M83: 2125.683838 | N83: Cargobase
A84: Kuznetsova Sofia | B84: 2020-03-25 | C84: CPC INOX 0317 | D84: DOOR | E84: Gessate | F84: Italy | G84: EXW | H84: Серпухов | I84: РФ | J84: LTL Auto | K84: NUNNER | L84: 162867.2031 | M84: 1976.783691 | N84: Cargobase
A85: Kuznetsova Sofia | B85: 2020-03-25 | C85: CPC INOX 0317 | D85: DOOR | E85: Gessate | F85: Italy | G85: EXW | H85: Серпухов | I85: РФ | J85: LTL Auto | K85: SAMSKIP | L85: 142138.5938 | M85: 1725.192261 | N85: Cargobase
A86: Lyscov Alexander | B86: 2020-07-06 | C86: P-90/20/0594 | D86: DOOR | E86: Мумбаи | F86: Индия | G86: FCA | H86: Серпухов | I86: РФ | J86: Air + Auto | K86: INTERRAIL | L86: 107597 | M86: 1305.947388 | N86: Cargobase
A87: Lyscov Alexander | B87: 2020-07-06 | C87: P-90/20/0594 | D87: DOOR | E87: Мумбаи | F87: Индия | G87: FCA | H87: Серпухов | I87: РФ | J87: Air + Auto | K87: DSV | L87: 102356 | M87: 1242.335205 | N87: Cargobase
A88: Lyscov Alexander | B88: 2020-07-06 | C88: P-90/20/0594 | D88: DOOR | E88: Мумбаи | F88: Индия | G88: FCA | H88: Серпухов | I88: РФ | J88: Air + Auto | K88: M&M | L88: 88200 | M88: 1070.518311 | N88: Cargobase
A89: Bolushevskaya Tatyana | B89: 2020-07-22 | C89: 32107560 | D89: FCA | E89: Immenstaad | F89: Germany | G89: DOOR | H89: Серпухов | I89: Россия | J89: Air + Auto | K89: DACHSER | L89: 49834.26953 | M89: 606.3300781
A90: Bolushevskaya Tatyana | B90: 2020-07-22 | C90: 32107560 | D90: FCA | E90: Immenstaad | F90: Germany | G90: DOOR | H90: Серпухов | I90: Россия | J90: Air + Auto | K90: DHL | L90: 47505.82031 | M90: 578
A91: Bolushevskaya Tatyana | B91: 2020-07-22 | C91: 32107560 | D91: FCA | E91: Immenstaad | F91: Germany | G91: DOOR | H91: Серпухов | I91: Россия | J91: Air + Auto | K91: ACEX | L91: 40273.10156 | M91: 490
A92: Kuznetsova Sofia | B92: 2020-07-31 | C92: 9077629 | D92: DOOR | E92: Серпухов | F92: РФ | G92: DAP | H92: 173012 Великий Новгород | I92: Россия | J92: Auto Euro | K92: AGILITY | L92: 26000 | M92: 297.8577271
A93: Kuznetsova Sofia | B93: 2020-07-31 | C93: 9077629 | D93: DOOR | E93: Серпухов | F93: РФ | G93: DAP | H93: 173012 Великий Новгород | I93: Россия | J93: Auto Euro | K93: DACHSER | L93: 24000 | M93: 274.9455872
A94: Kuznetsova Sofia | B94: 2020-07-31 | C94: 9077629 | D94: DOOR | E94: Серпухов | F94: РФ | G94: DAP | H94: 173012 Великий Новгород | I94: Россия | J94: Auto Euro | K94: СОВТРАНС | L94: 22800 | M94: 261.1983032
A95: Chuprakov Nikita | B95: 2020-08-18 | C95: 9078346 | D95: DOOR | E95: Серпухов | F95: РФ | G95: DDP | H95: Нижнекамск | I95: РФ | J95: Auto 3t | K95: DACHSER | L95: 48000 | M95: 555.105835
A96: Chuprakov Nikita | B96: 2020-08-18 | C96: 9078346 | D96: DOOR | E96: Серпухов | F96: РФ | G96: DDP | H96: Нижнекамск | I96: РФ | J96: Auto 3t | K96: ASSTRA | L96: 35000 | M96: 404.7646484
A97: Chuprakov Nikita | B97: 2020-08-18 | C97: 9078346 | D97: DOOR | E97: Серпухов | F97: РФ | G97: DDP | H97: Нижнекамск | I97: РФ | J97: Auto 3t | K97: СОВТРАНС | L97: 34713 | M97: 401.4455872
A98: Chuprakov Nikita | B98: 2020-03-04 | C98: 9076986 | D98: DOOR | E98: Серпухов | F98: РФ | G98: DDP | H98: Калужская обл. | I98: РФ | J98: Auto 3t | K98: DACHSER | L98: 13000 | M98: 148.1819153
A99: Chuprakov Nikita | B99: 2020-03-04 | C99: 9076986 | D99: DOOR | E99: Серпухов | F99: РФ | G99: DDP | H99: Калужская обл. | I99: РФ | J99: Auto 3t | K99: ASSTRA | L99: 12000 | M99: 136.7833099
A100: Chuprakov Nikita | B100: 2020-03-04 | C100: 9076986 | D100: DOOR | E100: Серпухов | F100: РФ | G100: DDP | H100: Калужская обл. | I100: РФ | J100: Auto 3t | K100: IP ASTAPENKO | L100: 8000 | M100: 91.18887329
A101: Chuprakov Nikita | B101: 2020-03-09 | C101: 9063274 | D101: DOOR | E101: Серпухов | F101: РФ | G101: DDP | H101: Москва | I101: РФ | J101: Auto 3t | K101: DACHSER | L101: 12000 | M101: 136.7833099
A102: Chuprakov Nikita | B102: 2020-03-09 | C102: 9063274 | D102: DOOR | E102: Серпухов | F102: РФ | G102: DDP | H102: Москва | I102: РФ | J102: Auto 3t | K102: ASSTRA | L102: 11000 | M102: 125.384697
A103: Chuprakov Nikita | B103: 2020-03-09 | C103: 9063274 | D103: DOOR | E103: Серпухов | F103: РФ | G103: DDP | H103: Москва | I103: РФ | J103: Auto 3t | K103: IP ASTAPENKO | L103: 8500 | M103: 96.88817596
A104: Chuprakov Nikita | B104: 2020-03-17 | C104: 9070660 | D104: DOOR | E104: Серпухов | F104: РФ | G104: DDP | H104: Тула | I104: РФ | J104: Auto 3t | K104: DACHSER | L104: 14000 | M104: 159.5805206
A105: Chuprakov Nikita | B105: 2020-03-17 | C105: 9070660 | D105: DOOR | E105: Серпухов | F105: РФ | G105: DDP | H105: Тула | I105: РФ | J105: Auto 3t | K105: ASSTRA | L105: 12000 | M105: 136.7833099
A106: Chuprakov Nikita | B106: 2020-03-17 | C106: 9070660 | D106: DOOR | E106: Серпухов | F106: РФ | G106: DDP | H106: Тула | I106: РФ | J106: Auto 3t | K106: IP ASTAPENKO | L106: 9000 | M106: 102.5874786
A107: Chuprakov Nikita | B107: 2020-03-23 | C107: 9061063 | D107: DOOR | E107: Серпухов | F107: РФ | G107: DDP | H107: Королев | I107: РФ | J107: Auto 3t | K107: DACHSER | L107: 12000 | M107: 136.7833099
A108: Chuprakov Nikita | B108: 2020-03-23 | C108: 9061063 | D108: DOOR | E108: Серпухов | F108: РФ | G108: DDP | H108: Королев | I108: РФ | J108: Auto 3t | K108: ASSTRA | L108: 10000 | M108: 113.9860916
A109: Chuprakov Nikita | B109: 2020-03-23 | C109: 9061063 | D109: DOOR | E109: Серпухов | F109: РФ | G109: DDP | H109: Королев | I109: РФ | J109: Auto 3t | K109: IP ASTAPENKO | L109: 9000 | M109: 102.5874786

Sheet Spot-price savings
A1: Date | B1: Ref. for shipment | C1: Saving based on tender, RUB | D1: Saving based on tender, EURO | E1: Savings % | F1: Comments | G1: Saving type
A2: 2020-07-06 | B2: 9057666 | C2: 21800 | D2: 270.6057739 | E2: 19.81818199 | F2: СОВТРАНС | G2: New Supplier | K2: New Supplier
A3: 2020-07-06 | B3: 9057727 | C3: 10400 | D3: 129.3371429 | E3: 16 | F3: СОВТРАНС | G3: New Supplier | K3: New Route
A4: 2020-07-03 | B4: 9066934 | C4: 14000 | D4: 174.1076965 | E4: 10.60606098 | F4: СОВТРАНС | G4: New Supplier
A5: 2020-07-03 | B5: 9066934 | C5: 14000 | D5: 174.1076965 | E5: 10.60606098 | F5: СОВТРАНС | G5: New Supplier
A6: 2020-07-02 | B6: 9061139 | C6: 16000 | D6: 198.9802246 | E6: 50 | F6: СОВТРАНС | G6: New Supplier
A7: 2020-05-14 | B7: 9070854 | C7: 4500 | D7: 55.96318436 | E7: 6.923077106 | F7: СОВТРАНС | G7: New Supplier
A8: 2020-07-14 | B8: 9068220 | C8: 22017 | D8: 273.8092041 | E8: 29.3560009 | F8: СОВТРАНС | G8: New Supplier
A9: 2020-03-08 | B9: 9069159 | C9: 13062.39844 | D9: 162.4474335 | E9: 18.07634163 | F9: SAMSKIP | G9: New Supplier
A10: 2020-03-11 | B10: 9067045 | C10: 13669.70312 | D10: 170.0000305 | E10: 13.07692623 | F10: SAMSKIP | G10: New Supplier
A11: 2020-06-21 | B11: 9074185 | C11: 9039.648438 | D11: 112.4194489 | E11: 15.04101276 | F11: M&M | G11: New Supplier
A12: 2020-06-16 | B12: CTRU HW 118 | C12: 13166.21094 | D12: 164.0240631 | E12: 12.48781109 | F12: ACEX | G12: New Supplier
A13: 2020-07-13 | B13: 9071154 | C13: 349397 | D13: 4322.081055 | E13: 23.21061134 | F13: ACEX | G13: New Supplier | M13: EUR | N13: =ЦБР(M13) -> 88.059
A14: 2020-07-16 | B14: 9063869 | C14: 9000 | D14: 110.7965012 | E14: 2.571428537 | F14: СОВТРАНС | G14: New Supplier
A15: 2020-07-17 | B15: 9066787 & 9072456 | C15: 10400 | D15: 128.0315094 | E15: 16 | F15: СОВТРАНС | G15: New Supplier
A16: 2020-05-04 | B16: P-53/20/0359 | C16: 83918.09375 | D16: 1027.400757 | E16: 34.28551865 | F16: ACEX | G16: New Supplier
A17: 2020-06-21 | B17: 9073825 | C17: 53933.40625 | D17: 660.3012695 | E17: 20.52803421 | F17: ACEX | G17: New Supplier
A18: 2020-06-22 | B18: 612 | C18: 24636.59375 | D18: 301.6233215 | E18: 10.59702206 | F18: M&M | G18: New Supplier
A19: 2020-07-15 | B19: 491;526 | C19: 78287 | D19: 958.4598389 | E19: 17.06949425 | F19: M&M | G19: New Supplier
A20: 2020-05-07 | B20: 385456 | C20: 275686.5 | D20: 3375.201904 | E20: 31.96361923 | F20: M&M | G20: New Supplier
A21: 2020-05-17 | B21: 614 | C21: 19307.70312 | D21: 236.3822632 | E21: 7.406100273 | F21: M&M | G21: New Supplier
A22: 2020-05-17 | B22: 455 | C22: 47508.51562 | D22: 581.6419678 | E22: 16.00002289 | F22: SAMSKIP | G22: New Supplier
A23: 2020-07-16 | B23: 2162689 | C23: 4500 | D23: 55.09304428 | E23: 6.818181992 | F23: СОВТРАНС | G23: New Supplier
A24: 2020-04-22 | B24: 9067940 | C24: 95700.29688 | D24: 1171.649048 | E24: 39.25299835 | F24: ACEX | G24: New Supplier
A25: 2020-06-21 | B25: 9078183 | C25: 10000 | D25: 122.4289932 | E25: 22.22222137 | F25: СОВТРАНС | G25: New Supplier
A26: 2020-06-10 | B26: 9066934 | C26: 67907.79688 | D26: 831.3883057 | E26: 22.99943924 | F26: ACEX | G26: New Supplier
A27: 2020-06-27 | B27: 9069646 | C27: 69102 | D27: 846.0087891 | E27: 10.93042183 | F27: ACEX | G27: New Supplier
A28: 2020-06-02 | B28: 9078502 | C28: 2000 | D28: 24.48579788 | E28: 5.882352829 | F28: СОВТРАНС | G28: New Supplier
A29: 2020-06-10 | B29: 9072470+9067113 | C29: 10939.89258 | D29: 132.7817993 | E29: 28.86597252 | F29: M&M | G29: New Supplier
A30: 2020-03-25 | B30: CPC INOX 0317 | C30: 32996.5 | D30: 400.4915771 | E30: 18.84059906 | F30: SAMSKIP | G30: New Supplier
A31: 2020-07-06 | B31: P-90/20/0594 | C31: 19397 | D31: 235.4290619 | E31: 18.02745438 | F31: M&M | G31: New Supplier
A32: 2020-07-22 | B32: 32107560 | C32: 9561.167969 | D32: 116.3300629 | E32: 19.18593025 | F32: ACEX | G32: New Supplier
A33: 2020-07-31 | B33: 9077629 | C33: 3200 | D33: 36.65941238 | E33: 12.30769253 | F33: СОВТРАНС | G33: New Supplier
A34: 2020-08-18 | B34: 9078346 | C34: 13287 | D34: 153.6602325 | E34: 27.68124962 | F34: СОВТРАНС | G34: New Supplier
A35: 2020-03-04 | B35: 9076986 | C35: 5000 | D35: 56.99304581 | E35: 38.46154022 | F35: IP ASTAPENKO | G35: New Supplier
A36: 2020-03-09 | B36: 9063274 | C36: 3500 | D36: 39.89513016 | E36: 29.16666603 | F36: IP ASTAPENKO | G36: New Supplier
A37: 2020-03-17 | B37: 9070660 | C37: 5000 | D37: 56.99304581 | E37: 35.7142868 | F37: IP ASTAPENKO | G37: New Supplier
A38: 2020-03-23 | B38: 9061063 | C38: 3000 | D38: 34.19582748 | E38: 25 | F38: IP ASTAPENKO | G38: New Supplier

Sheet Saving Customs
A1: Name of project | B1: Route | C1: Forwarder | D1: Name of customs | E1: The cost of brokerage services | F1: The cost of brokerage services forwarder broker | G1: Date | H1: Saving | I1: Saving % | N1: MAPS | O1: МОТ | P1: 6000 | AE1: Dachser | AF1: МОТ | AG1: 11500 | AI1: DSV | AJ1: МОТ | AK1: 12000
A2: WUXI P-60-20-0385 | B2: Импорт | C2: ТБК | D2: МОТ | E2: =IFERROR(IFERROR(VLOOKUP(B2&D2,$Q$12:$Q$19&$O$12:$P$19,3,),VLOOKUP(D2,$O$12:$P$19,2,)),) -> 4000 | F2: =IFERROR(VLOOKUP($D2,$O$1:$P$7,2,),) -> 6000 | G2: 2020-07-17 | H2: =F2-E2 -> 2000 | I2: =100-(E2/F2)*100 -> 33.33333333 | N2: DHL | O2: Балтийская | P2: 11500 | AE2: Dachser | AF2: Балтийская | AG2: 11500 | AI2: DSV | AJ2: Балтийская | AK2: 12000
A3: WUXI P-83-20-0526 | B3: Импорт | C3: ТБК | D3: МОТ | E3: =IFERROR(IFERROR(VLOOKUP(B3&D3,$Q$12:$Q$19&$O$12:$P$19,3,),VLOOKUP(D3,$O$12:$P$19,2,)),) -> 4000 | F3: =IFERROR(VLOOKUP($D3,$O$1:$P$7,2,),) -> 6000 | G3: 2020-07-17 | H3: =F3-E3 -> 2000 | I3: =100-(E3/F3)*100 -> 33.33333333 | N3: DACHSER | O3: Калужская | P3: 5000 | AE3: Dachser | AF3: Калужская | AG3: 11500 | AI3: DSV | AJ3: Калужская | AK3: 12000
A4: WUXI P-94-20-0612 | B4: Импорт | C4: ТБК | D4: МОТ | E4: =IFERROR(IFERROR(VLOOKUP(B4&D4,$Q$12:$Q$19&$O$12:$P$19,3,),VLOOKUP(D4,$O$12:$P$19,2,)),) -> 4000 | F4: 6000 | G4: 2020-07-17 | H4: =F4-E4 -> 2000 | I4: 33.33333333 | N4: DHL | O4: Владивосток | P4: 11500 | AE4: Dachser | AF4: Владивосток | AG4: 11500 | AI4: DSV | AJ4: Владивосток | AK4: 12000
A5: TNT | B5: Импорт | C5: Sulzer | D5: МОТ | E5: =IFERROR(IFERROR(VLOOKUP(B5&D5,$N$12:$N$21&$O$12:$P$21,3,),VLOOKUP(D5,$O$12:$P$21,2,)),) -> 4000 | F5: =IFERROR(VLOOKUP($D5,$O$1:$P$8,2,),) -> 6000 | H5: =F5-E5 -> 2000 | I5: =IF(H2:H300=0,"",100-(E5/F5)*100) -> 33.33333333 | N5: DHL | O5: Новороссийск | P5: 11500 | AE5: Dachser | AF5: Новороссийск | AG5: 11500 | AI5: DSV | AJ5: Новороссийск | AK5: 12000
E6: =IFERROR(IFERROR(VLOOKUP(B6&D6,$Q$12:$Q$19&$O$12:$P$19,3,),VLOOKUP(D6,$O$12:$P$19,2,)),) -> 0 | F6: 0 | H6: =F6-E6 -> 0 | I6: =IF(H3:H301=0,"",100-(E6/F6)*100) ->  | N6: DHL | O6: Смоленская | P6: 11500 | AE6: Dachser | AF6: Смоленская | AG6: 11500 | AI6: DSV | AJ6: Смоленская | AK6: 12000
E7: =IFERROR(IFERROR(VLOOKUP(B7&D7,$Q$12:$Q$19&$O$12:$P$19,3,),VLOOKUP(D7,$O$12:$P$19,2,)),) -> 0 | F7: 0 | H7: 0 | N7: DHL | O7: Авиационная | P7: 11500 | AE7: Dachser | AF7: Авиационная | AG7: 11500 | AI7: DSV | AJ7: Авиационная | AK7: 12000
E8: =IFERROR(IFERROR(VLOOKUP(B8&D8,$Q$12:$Q$19&$O$12:$P$19,3,),VLOOKUP(D8,$O$12:$P$19,2,)),) -> 0 | F8: 0 | H8: 0 | N8: TNT | O8: Авиационная | P8: 11500
E9: =IFERROR(IFERROR(VLOOKUP(B9&D9,$Q$12:$Q$19&$O$12:$P$19,3,),VLOOKUP(D9,$O$12:$P$19,2,)),) -> 0 | F9: 0 | H9: 0
E10: =IFERROR(IFERROR(VLOOKUP(B10&D10,$Q$12:$Q$19&$O$12:$P$19,3,),VLOOKUP(D10,$O$12:$P$19,2,)),) -> 0 | F10: 0 | H10: 0 | AE10: DHL | AF10: МОТ | AG10: 11500 | AI10: ACEX | AJ10: Авиационная | AK10: 15000
E11: =IFERROR(IFERROR(VLOOKUP(B11&D11,$Q$12:$Q$19&$O$12:$P$19,3,),VLOOKUP(D11,$O$12:$P$19,2,)),) -> 0 | F11: 0 | H11: 0 | AE11: DHL | AF11: Балтийская | AG11: 11500
E12: =IFERROR(IFERROR(VLOOKUP(B12&D12,$Q$12:$Q$19&$O$12:$P$19,3,),VLOOKUP(D12,$O$12:$P$19,2,)),) -> 0 | F12: 0 | H12: 0 | N12: ТБК | O12: МОТ | P12: 4000 | Q12: Экспорт | AE12: DHL | AF12: Калужская | AG12: 11500 | AI12: MAPS5 | AJ12: MOT | AK12: 12000 | AL12: импорт
E13: =IFERROR(IFERROR(VLOOKUP(B13&D13,$Q$12:$Q$19&$O$12:$P$19,3,),VLOOKUP(D13,$O$12:$P$19,2,)),) -> 0 | F13: 0 | H13: 0 | N13: ТБК | O13: МОТ | P13: 5000 | Q13: Импорт | AE13: DHL | AF13: Владивосток | AG13: 11500 | AI13: MAPS5 | AJ13: МОТ | AK13: 6000 | AL13: экспорт
E14: =IFERROR(IFERROR(VLOOKUP(B14&D14,$Q$12:$Q$19&$O$12:$P$19,3,),VLOOKUP(D14,$O$12:$P$19,2,)),) -> 0 | F14: 0 | H14: 0 | N14: ТБК | O14: Балтийская | P14: 7000 | AE14: DHL | AF14: Новороссийск | AG14: 11500
E15: =IFERROR(IFERROR(VLOOKUP(B15&D15,$Q$12:$Q$19&$O$12:$P$19,3,),VLOOKUP(D15,$O$12:$P$19,2,)),) -> 0 | F15: 0 | H15: 0 | N15: ТБК | O15: Калужская | P15: 5000 | AE15: DHL | AF15: Смоленская | AG15: 11500
E16: =IFERROR(IFERROR(VLOOKUP(B16&D16,$Q$12:$Q$19&$O$12:$P$19,3,),VLOOKUP(D16,$O$12:$P$19,2,)),) -> 0 | F16: 0 | H16: 0 | N16: ТБК | O16: Владивосток | AE16: DHL | AF16: Авиационная | AG16: 11500
E17: =IFERROR(IFERROR(VLOOKUP(B17&D17,$Q$12:$Q$19&$O$12:$P$19,3,),VLOOKUP(D17,$O$12:$P$19,2,)),) -> 0 | F17: 0 | H17: 0 | N17: ТБК | O17: Новороссийск
E18: =IFERROR(IFERROR(VLOOKUP(B18&D18,$Q$12:$Q$19&$O$12:$P$19,3,),VLOOKUP(D18,$O$12:$P$19,2,)),) -> 0 | F18: 0 | H18: 0 | N18: ТБК | O18: Смоленская
E19: =IFERROR(IFERROR(VLOOKUP(B19&D19,$Q$12:$Q$19&$O$12:$P$19,3,),VLOOKUP(D19,$O$12:$P$19,2,)),) -> 0 | F19: 0 | H19: 0 | N19: ТБК | O19: Авиационная | P19: 15000 | AE19: M&M | AF19: МОТ | AG19: 9000 | AI19: AGILITY | AJ19: МОТ
E20: =IFERROR(IFERROR(VLOOKUP(B20&D20,$Q$12:$Q$19&$O$12:$P$19,3,),VLOOKUP(D20,$O$12:$P$19,2,)),) -> 0 | F20: 0 | H20: 0 | N20: Sulzer | O20: Авиационная | P20: 0 | AF20: Балтийская | AG20: 11000 | AI20: AGILITY | AJ20: Балтийская | AK20: 14000
E21: =IFERROR(IFERROR(VLOOKUP(B21&D21,$Q$12:$Q$19&$O$12:$P$19,3,),VLOOKUP(D21,$O$12:$P$19,2,)),) -> 0 | F21: 0 | H21: 0 | N21: Sulzer | O21: МОТ | P21: 0 | AF21: Калужская | AG21: 11500 | AI21: AGILITY | AJ21: Калужская | AK21: 12000
E22: =IFERROR(IFERROR(VLOOKUP(B22&D22,$Q$12:$Q$19&$O$12:$P$19,3,),VLOOKUP(D22,$O$12:$P$19,2,)),) -> 0 | F22: 0 | H22: 0 | AF22: Владивосток | AI22: AGILITY | AJ22: Владивосток
E23: =IFERROR(IFERROR(VLOOKUP(B23&D23,$Q$12:$Q$19&$O$12:$P$19,3,),VLOOKUP(D23,$O$12:$P$19,2,)),) -> 0 | F23: 0 | H23: 0 | AF23: Новороссийск | AI23: AGILITY | AJ23: Новороссийск
E24: =IFERROR(IFERROR(VLOOKUP(B24&D24,$Q$12:$Q$19&$O$12:$P$19,3,),VLOOKUP(D24,$O$12:$P$19,2,)),) -> 0 | F24: 0 | H24: 0 | AF24: Смоленская | AI24: AGILITY | AJ24: Смоленская
E25: =IFERROR(IFERROR(VLOOKUP(B25&D25,$Q$12:$Q$19&$O$12:$P$19,3,),VLOOKUP(D25,$O$12:$P$19,2,)),) -> 0 | F25: 0 | H25: 0 | AF25: Авиационная | AG25: 11500 | AI25: AGILITY | AJ25: Авиационная | AK25: 13200
E26: =IFERROR(IFERROR(VLOOKUP(B26&D26,$Q$12:$Q$19&$O$12:$P$19,3,),VLOOKUP(D26,$O$12:$P$19,2,)),) -> 0 | F26: 0 | H26: 0
E27: =IFERROR(IFERROR(VLOOKUP(B27&D27,$Q$12:$Q$19&$O$12:$P$19,3,),VLOOKUP(D27,$O$12:$P$19,2,)),) -> 0 | F27: 0 | H27: 0
E28: =IFERROR(IFERROR(VLOOKUP(B28&D28,$Q$12:$Q$19&$O$12:$P$19,3,),VLOOKUP(D28,$O$12:$P$19,2,)),) -> 0 | F28: 0 | H28: 0
E29: =IFERROR(IFERROR(VLOOKUP(B29&D29,$Q$12:$Q$19&$O$12:$P$19,3,),VLOOKUP(D29,$O$12:$P$19,2,)),) -> 0 | F29: 0 | H29: 0
E30: =IFERROR(IFERROR(VLOOKUP(B30&D30,$Q$12:$Q$19&$O$12:$P$19,3,),VLOOKUP(D30,$O$12:$P$19,2,)),) -> 0 | F30: 0 | H30: 0
E31: =IFERROR(IFERROR(VLOOKUP(B31&D31,$Q$12:$Q$19&$O$12:$P$19,3,),VLOOKUP(D31,$O$12:$P$19,2,)),) -> 0 | F31: 0 | H31: 0
E32: =IFERROR(IFERROR(VLOOKUP(B32&D32,$Q$12:$Q$19&$O$12:$P$19,3,),VLOOKUP(D32,$O$12:$P$19,2,)),) -> 0 | F32: 0 | H32: 0
H33: 0
H34: 0
H35: 0
H36: 0
H37: 0
H38: 0
H39: 0
H40: 0
H41: 0
H42: 0
H43: 0
H44: 0
H45: 0
H46: 0
H47: 0
H48: 0
H49: 0
H50: 0
H51: 0
H52: 0
H53: 0
H54: 0
H55: 0
H56: 0
H57: 0
H58: 0
H59: 0
H60: 0
H61: 0
H62: 0
H63: 0
H64: 0
H65: 0
H66: 0
H67: 0
H68: 0
H69: 0
H70: =F70-E70 -> 0
H71: 0
H72: 0
H73: 0
H74: 0
H75: 0
H76: 0
H77: 0
H78: 0
H79: 0
H80: 0
H81: 0

Sheet Saving URFU
A1: Name of project | B1: Conclusion or License? | C1: Urgent or not? | D1: Forwarder | E1: Date | F1: Saving | G1: Cost of Excont forwarder | H1: Final saving | I1: =SUM(F:F) -> 473500 | J1: Conclusion | K1: Urgent | L1: Excont | N1: Excont | Q1: %
A2: ORLEVDU3-1 9069807 | B2: Conclusion | C2: Not | D2: Excont | E2: 2020-01-01 | F2: =IFERROR(VLOOKUP(CONCATENATE(B2,"_",C2,"_",D2),Список!A:B,2,0),"") -> 0 | H2: % Reduction | I2: =I1/SUM(Data!B3:M3) -> 0.4639836944 | J2: License | K2: Not | L2: URFU | N2: Conclusion | O2: Not | P2: 14790 | Q2: =F10/P2 -> 0.4590939824
A3: FUELALC-TAS-4 9068753 | B3: Conclusion | C3: Not | D3: Excont | E3: 2020-01-01 | F3: =IFERROR(VLOOKUP(CONCATENATE(B3,"_",C3,"_",D3),Список!A:B,2,0),"") -> 0 | O3: Urgent | P3: 22185 | Q3: =F15/G15 -> 0.445571332
A4: SHEPOILSTRIP 9065456 | B4: Conclusion | C4: Not | D4: Excont | E4: 2020-01-01 | F4: =IFERROR(VLOOKUP(CONCATENATE(B4,"_",C4,"_",D4),Список!A:B,2,0),"") -> 0 | N4: License | O4: Not | P4: 25025
A5: POR-VAC VDU3 9069505 | B5: Conclusion | C5: Not | D5: Excont | E5: 2020-01-01 | F5: =IFERROR(VLOOKUP(CONCATENATE(B5,"_",C5,"_",D5),Список!A:B,2,0),"") -> 0 | O5: Urgent | P5: 25025
A6: PENTA_SCRUBBER_PACK_9067119 | B6: Conclusion | C6: Not | D6: Excont | E6: 2020-01-01 | F6: =IFERROR(VLOOKUP(CONCATENATE(B6,"_",C6,"_",D6),Список!A:B,2,0),"") -> 0
A7: DOSTI-3 9069321 | B7: License | C7: Not | D7: Excont | E7: 2020-01-01 | F7: =IFERROR(VLOOKUP(CONCATENATE(B7,"_",C7,"_",D7),Список!A:B,2,0),"") -> 0
A8: SHEMMEOD 9070038 | B8: Conclusion | C8: Not | D8: Excont | E8: 2020-01-01 | F8: =IFERROR(VLOOKUP(CONCATENATE(B8,"_",C8,"_",D8),Список!A:B,2,0),"") -> 0
A9: ZOLDA2_9072770 | B9: Conclusion | C9: Not | D9: Excont | E9: 2020-01-01 | F9: =IFERROR(VLOOKUP(CONCATENATE(B9,"_",C9,"_",D9),Список!A:B,2,0),"") -> 0
A10: GAZABS-DH5 9063733 | B10: Conclusion | C10: Not | D10: URFU | E10: 2020-02-01 | F10: =IFERROR(VLOOKUP(CONCATENATE(B10,"_",C10,"_",D10),Список!A:B,2,0),"") -> 6790 | G10: =IF(OR(D10="Excont",D10=""),"",IF(D10="URFU",IF(AND(B10=$N$2,C10=$O$2),$P$2,IF(AND(B10=$N$2,C10=$O$3),$P$3,IF(AND(B10=$N$4,C10=$O$2),$P$4,IF(AND(B10=N4,C10=$O$3),$P$5,0)))))) -> 14790
A11: DEDIETHA_9069753 | B11: Conclusion | C11: Not | D11: Excont | E11: 2020-02-01 | F11: =IFERROR(VLOOKUP(CONCATENATE(B11,"_",C11,"_",D11),Список!A:B,2,0),"") -> 0 | G11: =IF(OR(D11="Excont",D11=""),"",IF(D11="URFU",IF(AND(B11=$N$2,C11=$O$2),$P$2,IF(AND(B11=$N$2,C11=$O$3),$P$3,IF(AND(B11=$N$4,C11=$O$2),$P$4,IF(AND(B11=N5,C11=$O$3),$P$5,0)))))) -> 
A12: CATOSTRIP_9069551 | B12: Conclusion | C12: Not | D12: Excont | E12: 2020-02-01 | F12: =IFERROR(VLOOKUP(CONCATENATE(B12,"_",C12,"_",D12),Список!A:B,2,0),"") -> 0 | G12: =IF(OR(D12="Excont",D12=""),"",IF(D12="URFU",IF(AND(B12=$N$2,C12=$O$2),$P$2,IF(AND(B12=$N$2,C12=$O$3),$P$3,IF(AND(B12=$N$4,C12=$O$2),$P$4,IF(AND(B12=#REF!,C12=$O$3),$P$5,0)))))) -> 
A13: LABMA_2_9072465 | B13: Conclusion | C13: Not | D13: URFU | E13: 2020-02-01 | F13: =IFERROR(VLOOKUP(CONCATENATE(B13,"_",C13,"_",D13),Список!A:B,2,0),"") -> 6790 | G13: =IF(OR(D13="Excont",D13=""),"",IF(D13="URFU",IF(AND(B13=$N$2,C13=$O$2),$P$2,IF(AND(B13=$N$2,C13=$O$3),$P$3,IF(AND(B13=$N$4,C13=$O$2),$P$4,IF(AND(B13=N6,C13=$O$3),$P$5,0)))))) -> 14790
A14: RUEMELL-3_9060553 | B14: Conclusion | C14: Not | D14: Excont | E14: 2020-02-01 | F14: =IFERROR(VLOOKUP(CONCATENATE(B14,"_",C14,"_",D14),Список!A:B,2,0),"") -> 0 | G14: =IF(OR(D14="Excont",D14=""),"",IF(D14="URFU",IF(AND(B14=$N$2,C14=$O$2),$P$2,IF(AND(B14=$N$2,C14=$O$3),$P$3,IF(AND(B14=$N$4,C14=$O$2),$P$4,IF(AND(B14=N7,C14=$O$3),$P$5,0)))))) -> 
A15: CDU-VI-OREVAMP 9060727 | B15: Conclusion | C15: Urgent | D15: URFU | E15: 2020-02-01 | F15: =IFERROR(VLOOKUP(CONCATENATE(B15,"_",C15,"_",D15),Список!A:B,2,0),"") -> 9885 | G15: =IF(OR(D15="Excont",D15=""),"",IF(D15="URFU",IF(AND(B15=$N$2,C15=$O$2),$P$2,IF(AND(B15=$N$2,C15=$O$3),$P$3,IF(AND(B15=$N$4,C15=$O$2),$P$4,IF(AND(B15=#REF!,C15=$O$3),$P$5,0)))))) -> 22185
A16: SITSOL 9071262 | B16: Conclusion | C16: Urgent | D16: URFU | E16: 2020-02-01 | F16: =IFERROR(VLOOKUP(CONCATENATE(B16,"_",C16,"_",D16),Список!A:B,2,0),"") -> 9885 | G16: =IF(OR(D16="Excont",D16=""),"",IF(D16="URFU",IF(AND(B16=$N$2,C16=$O$2),$P$2,IF(AND(B16=$N$2,C16=$O$3),$P$3,IF(AND(B16=$N$4,C16=$O$2),$P$4,IF(AND(B16=Data!A4,C16=$O$3),$P$5,0)))))) -> 22185
A17: GEAONGASS 9069159.07 | B17: Conclusion | C17: Not | D17: URFU | E17: 2020-03-01 | F17: =IFERROR(VLOOKUP(CONCATENATE(B17,"_",C17,"_",D17),Список!A:B,2,0),"") -> 6790 | G17: =IF(OR(D17="Excont",D17=""),"",IF(D17="URFU",IF(AND(B17=$N$2,C17=$O$2),$P$2,IF(AND(B17=$N$2,C17=$O$3),$P$3,IF(AND(B17=$N$4,C17=$O$2),$P$4,IF(AND(B17=Data!B1,C17=$O$3),$P$5,0)))))) -> 14790
A18: MELLAZON 9041895 | B18: Conclusion | C18: Not | D18: URFU | E18: 2020-03-01 | F18: =IFERROR(VLOOKUP(CONCATENATE(B18,"_",C18,"_",D18),Список!A:B,2,0),"") -> 6790 | G18: =IF(OR(D18="Excont",D18=""),"",IF(D18="URFU",IF(AND(B18=$N$2,C18=$O$2),$P$2,IF(AND(B18=$N$2,C18=$O$3),$P$3,IF(AND(B18=$N$4,C18=$O$2),$P$4,IF(AND(B18=Data!C1,C18=$O$3),$P$5,0)))))) -> 14790
A19: ALGEDEM-1_ 9060264 | B19: Conclusion | C19: Not | D19: URFU | E19: 2020-03-01 | F19: =IFERROR(VLOOKUP(CONCATENATE(B19,"_",C19,"_",D19),Список!A:B,2,0),"") -> 6790 | G19: =IF(OR(D19="Excont",D19=""),"",IF(D19="URFU",IF(AND(B19=$N$2,C19=$O$2),$P$2,IF(AND(B19=$N$2,C19=$O$3),$P$3,IF(AND(B19=$N$4,C19=$O$2),$P$4,IF(AND(B19=Data!D1,C19=$O$3),$P$5,0)))))) -> 14790
A20: BRAIPO 9068038 | B20: Conclusion | C20: Not | D20: URFU | E20: 2020-03-01 | F20: =IFERROR(VLOOKUP(CONCATENATE(B20,"_",C20,"_",D20),Список!A:B,2,0),"") -> 6790 | G20: =IF(OR(D20="Excont",D20=""),"",IF(D20="URFU",IF(AND(B20=$N$2,C20=$O$2),$P$2,IF(AND(B20=$N$2,C20=$O$3),$P$3,IF(AND(B20=$N$4,C20=$O$2),$P$4,IF(AND(B20=Data!E1,C20=$O$3),$P$5,0)))))) -> 14790
A21: CAMPAK7_9067045 | B21: Conclusion | C21: Not | D21: URFU | E21: 2020-03-01 | F21: =IFERROR(VLOOKUP(CONCATENATE(B21,"_",C21,"_",D21),Список!A:B,2,0),"") -> 6790 | G21: =IF(OR(D21="Excont",D21=""),"",IF(D21="URFU",IF(AND(B21=$N$2,C21=$O$2),$P$2,IF(AND(B21=$N$2,C21=$O$3),$P$3,IF(AND(B21=$N$4,C21=$O$2),$P$4,IF(AND(B21=Data!F1,C21=$O$3),$P$5,0)))))) -> 14790
A22: LAM-CA4_9072233 | B22: Conclusion | C22: Not | D22: URFU | E22: 2020-03-01 | F22: =IFERROR(VLOOKUP(CONCATENATE(B22,"_",C22,"_",D22),Список!A:B,2,0),"") -> 6790 | G22: =IF(OR(D22="Excont",D22=""),"",IF(D22="URFU",IF(AND(B22=$N$2,C22=$O$2),$P$2,IF(AND(B22=$N$2,C22=$O$3),$P$3,IF(AND(B22=$N$4,C22=$O$2),$P$4,IF(AND(B22=Data!G1,C22=$O$3),$P$5,0)))))) -> 14790
A23: ALGEDEM-2 907482803 | B23: Conclusion | C23: Not | D23: URFU | E23: 2020-03-01 | F23: =IFERROR(VLOOKUP(CONCATENATE(B23,"_",C23,"_",D23),Список!A:B,2,0),"") -> 6790 | G23: =IF(OR(D23="Excont",D23=""),"",IF(D23="URFU",IF(AND(B23=$N$2,C23=$O$2),$P$2,IF(AND(B23=$N$2,C23=$O$3),$P$3,IF(AND(B23=$N$4,C23=$O$2),$P$4,IF(AND(B23=Data!H1,C23=$O$3),$P$5,0)))))) -> 14790
A24: FORTALPHATEG | B24: Conclusion | C24: Not | D24: URFU | E24: 2020-03-01 | F24: =IFERROR(VLOOKUP(CONCATENATE(B24,"_",C24,"_",D24),Список!A:B,2,0),"") -> 6790 | G24: =IF(OR(D24="Excont",D24=""),"",IF(D24="URFU",IF(AND(B24=$N$2,C24=$O$2),$P$2,IF(AND(B24=$N$2,C24=$O$3),$P$3,IF(AND(B24=$N$4,C24=$O$2),$P$4,IF(AND(B24=Data!I1,C24=$O$3),$P$5,0)))))) -> 14790
A25: TKFERT_ANWIL-9066521 | B25: Conclusion | C25: Urgent | D25: URFU | E25: 2020-03-01 | F25: =IFERROR(VLOOKUP(CONCATENATE(B25,"_",C25,"_",D25),Список!A:B,2,0),"") -> 9885 | G25: =IF(OR(D25="Excont",D25=""),"",IF(D25="URFU",IF(AND(B25=$N$2,C25=$O$2),$P$2,IF(AND(B25=$N$2,C25=$O$3),$P$3,IF(AND(B25=$N$4,C25=$O$2),$P$4,IF(AND(B25=Data!J1,C25=$O$3),$P$5,0)))))) -> 22185
A26: BUTATAS_907350114 | B26: Conclusion | C26: Not | D26: URFU | E26: 2020-03-01 | F26: =IFERROR(VLOOKUP(CONCATENATE(B26,"_",C26,"_",D26),Список!A:B,2,0),"") -> 6790 | G26: =IF(OR(D26="Excont",D26=""),"",IF(D26="URFU",IF(AND(B26=$N$2,C26=$O$2),$P$2,IF(AND(B26=$N$2,C26=$O$3),$P$3,IF(AND(B26=$N$4,C26=$O$2),$P$4,IF(AND(B26=Data!K1,C26=$O$3),$P$5,0)))))) -> 14790
A27: OSISEP-4_9074613 | B27: Conclusion | C27: Urgent | D27: URFU | E27: 2020-03-01 | F27: =IFERROR(VLOOKUP(CONCATENATE(B27,"_",C27,"_",D27),Список!A:B,2,0),"") -> 9885 | G27: =IF(OR(D27="Excont",D27=""),"",IF(D27="URFU",IF(AND(B27=$N$2,C27=$O$2),$P$2,IF(AND(B27=$N$2,C27=$O$3),$P$3,IF(AND(B27=$N$4,C27=$O$2),$P$4,IF(AND(B27=Data!L1,C27=$O$3),$P$5,0)))))) -> 22185
A28: SPOLVIN_5 9071550 | B28: License | C28: Not | D28: Excont | E28: 2020-03-01 | F28: =IFERROR(VLOOKUP(CONCATENATE(B28,"_",C28,"_",D28),Список!A:B,2,0),"") -> 0 | G28: =IF(OR(D28="Excont",D28=""),"",IF(D28="URFU",IF(AND(B28=$N$2,C28=$O$2),$P$2,IF(AND(B28=$N$2,C28=$O$3),$P$3,IF(AND(B28=$N$4,C28=$O$2),$P$4,IF(AND(B28=Data!L2,C28=$O$3),$P$5,0)))))) -> 
A29: CERTITAN | B29: License | C29: Not | D29: Excont | E29: 2020-03-01 | F29: =IFERROR(VLOOKUP(CONCATENATE(B29,"_",C29,"_",D29),Список!A:B,2,0),"") -> 0 | G29: =IF(OR(D29="Excont",D29=""),"",IF(D29="URFU",IF(AND(B29=$N$2,C29=$O$2),$P$2,IF(AND(B29=$N$2,C29=$O$3),$P$3,IF(AND(B29=$N$4,C29=$O$2),$P$4,IF(AND(B29=Data!A24,C29=$O$3),$P$5,0)))))) -> 
A30: SPOLVIN_5 9071550 | B30: License | C30: Not | D30: Excont | E30: 2020-03-01 | F30: =IFERROR(VLOOKUP(CONCATENATE(B30,"_",C30,"_",D30),Список!A:B,2,0),"") -> 0 | G30: =IF(OR(D30="Excont",D30=""),"",IF(D30="URFU",IF(AND(B30=$N$2,C30=$O$2),$P$2,IF(AND(B30=$N$2,C30=$O$3),$P$3,IF(AND(B30=$N$4,C30=$O$2),$P$4,IF(AND(B30=Data!A34,C30=$O$3),$P$5,0)))))) -> 
A31: SIAD-OX2-TAS 9068159 | B31: Conclusion | C31: Not | D31: URFU | E31: 2020-04-01 | F31: =IFERROR(VLOOKUP(CONCATENATE(B31,"_",C31,"_",D31),Список!A:B,2,0),"") -> 6790 | G31: =IF(OR(D31="Excont",D31=""),"",IF(D31="URFU",IF(AND(B31=$N$2,C31=$O$2),$P$2,IF(AND(B31=$N$2,C31=$O$3),$P$3,IF(AND(B31=$N$4,C31=$O$2),$P$4,IF(AND(B31=Data!A18,C31=$O$3),$P$5,0)))))) -> 14790
A32: DODEHUL-11 9075817 | B32: Conclusion | C32: Not | D32: URFU | E32: 2020-04-01 | F32: =IFERROR(VLOOKUP(CONCATENATE(B32,"_",C32,"_",D32),Список!A:B,2,0),"") -> 6790 | G32: =IF(OR(D32="Excont",D32=""),"",IF(D32="URFU",IF(AND(B32=$N$2,C32=$O$2),$P$2,IF(AND(B32=$N$2,C32=$O$3),$P$3,IF(AND(B32=$N$4,C32=$O$2),$P$4,IF(AND(B32=Data!A19,C32=$O$3),$P$5,0)))))) -> 14790
A33: KRUAPI-35_907188405 | B33: Conclusion | C33: Not | D33: URFU | E33: 2020-04-01 | F33: =IFERROR(VLOOKUP(CONCATENATE(B33,"_",C33,"_",D33),Список!A:B,2,0),"") -> 6790 | G33: =IF(OR(D33="Excont",D33=""),"",IF(D33="URFU",IF(AND(B33=$N$2,C33=$O$2),$P$2,IF(AND(B33=$N$2,C33=$O$3),$P$3,IF(AND(B33=$N$4,C33=$O$2),$P$4,IF(AND(B33=Data!A20,C33=$O$3),$P$5,0)))))) -> 14790
A34: GEAPROP_9068534 | B34: Conclusion | C34: Urgent | D34: URFU | E34: 2020-04-01 | F34: =IFERROR(VLOOKUP(CONCATENATE(B34,"_",C34,"_",D34),Список!A:B,2,0),"") -> 9885 | G34: =IF(OR(D34="Excont",D34=""),"",IF(D34="URFU",IF(AND(B34=$N$2,C34=$O$2),$P$2,IF(AND(B34=$N$2,C34=$O$3),$P$3,IF(AND(B34=$N$4,C34=$O$2),$P$4,IF(AND(B34=Data!A21,C34=$O$3),$P$5,0)))))) -> 22185
A35: ELG_TARPACK_9073471 | B35: Conclusion | C35: Not | D35: URFU | E35: 2020-04-01 | F35: =IFERROR(VLOOKUP(CONCATENATE(B35,"_",C35,"_",D35),Список!A:B,2,0),"") -> 6790 | G35: =IF(OR(D35="Excont",D35=""),"",IF(D35="URFU",IF(AND(B35=$N$2,C35=$O$2),$P$2,IF(AND(B35=$N$2,C35=$O$3),$P$3,IF(AND(B35=$N$4,C35=$O$2),$P$4,IF(AND(B35=Data!A22,C35=$O$3),$P$5,0)))))) -> 14790
A36: BASDAMPF-2_9069374 | B36: Conclusion | C36: Not | D36: URFU | E36: 2020-04-01 | F36: =IFERROR(VLOOKUP(CONCATENATE(B36,"_",C36,"_",D36),Список!A:B,2,0),"") -> 6790 | G36: =IF(OR(D36="Excont",D36=""),"",IF(D36="URFU",IF(AND(B36=$N$2,C36=$O$2),$P$2,IF(AND(B36=$N$2,C36=$O$3),$P$3,IF(AND(B36=$N$4,C36=$O$2),$P$4,IF(AND(B36=Data!A25,C36=$O$3),$P$5,0)))))) -> 14790
A37: BP_DORMAGENTAS_9071679 | B37: Conclusion | C37: Not | D37: URFU | E37: 2020-04-01 | F37: =IFERROR(VLOOKUP(CONCATENATE(B37,"_",C37,"_",D37),Список!A:B,2,0),"") -> 6790 | G37: =IF(OR(D37="Excont",D37=""),"",IF(D37="URFU",IF(AND(B37=$N$2,C37=$O$2),$P$2,IF(AND(B37=$N$2,C37=$O$3),$P$3,IF(AND(B37=$N$4,C37=$O$2),$P$4,IF(AND(B37=Data!A26,C37=$O$3),$P$5,0)))))) -> 14790
A38: BIOPARG_9075556 | B38: Conclusion | C38: Not | D38: URFU | E38: 2020-04-01 | F38: =IFERROR(VLOOKUP(CONCATENATE(B38,"_",C38,"_",D38),Список!A:B,2,0),"") -> 6790 | G38: =IF(OR(D38="Excont",D38=""),"",IF(D38="URFU",IF(AND(B38=$N$2,C38=$O$2),$P$2,IF(AND(B38=$N$2,C38=$O$3),$P$3,IF(AND(B38=$N$4,C38=$O$2),$P$4,IF(AND(B38=Data!A32,C38=$O$3),$P$5,0)))))) -> 14790
A39: PDSABS_9067314 | B39: Conclusion | C39: Not | D39: URFU | E39: 2020-05-01 | F39: =IFERROR(VLOOKUP(CONCATENATE(B39,"_",C39,"_",D39),Список!A:B,2,0),"") -> 6790 | G39: =IF(OR(D39="Excont",D39=""),"",IF(D39="URFU",IF(AND(B39=$N$2,C39=$O$2),$P$2,IF(AND(B39=$N$2,C39=$O$3),$P$3,IF(AND(B39=$N$4,C39=$O$2),$P$4,IF(AND(B39=Data!A27,C39=$O$3),$P$5,0)))))) -> 14790
A40: ENVIBEER_9070515 | B40: Conclusion | C40: Not | D40: URFU | E40: 2020-05-01 | F40: =IFERROR(VLOOKUP(CONCATENATE(B40,"_",C40,"_",D40),Список!A:B,2,0),"") -> 6790 | G40: =IF(OR(D40="Excont",D40=""),"",IF(D40="URFU",IF(AND(B40=$N$2,C40=$O$2),$P$2,IF(AND(B40=$N$2,C40=$O$3),$P$3,IF(AND(B40=$N$4,C40=$O$2),$P$4,IF(AND(B40=Data!A28,C40=$O$3),$P$5,0)))))) -> 14790
A41: TOTALME-2_9068470 | B41: Conclusion | C41: Not | D41: URFU | E41: 2020-05-01 | F41: =IFERROR(VLOOKUP(CONCATENATE(B41,"_",C41,"_",D41),Список!A:B,2,0),"") -> 6790 | G41: =IF(OR(D41="Excont",D41=""),"",IF(D41="URFU",IF(AND(B41=$N$2,C41=$O$2),$P$2,IF(AND(B41=$N$2,C41=$O$3),$P$3,IF(AND(B41=$N$4,C41=$O$2),$P$4,IF(AND(B41=Data!A29,C41=$O$3),$P$5,0)))))) -> 14790
A42: AKSLUR-21_9050391 | B42: Conclusion | C42: Not | D42: URFU | E42: 2020-05-01 | F42: =IFERROR(VLOOKUP(CONCATENATE(B42,"_",C42,"_",D42),Список!A:B,2,0),"") -> 6790 | G42: =IF(OR(D42="Excont",D42=""),"",IF(D42="URFU",IF(AND(B42=$N$2,C42=$O$2),$P$2,IF(AND(B42=$N$2,C42=$O$3),$P$3,IF(AND(B42=$N$4,C42=$O$2),$P$4,IF(AND(B42=Data!A30,C42=$O$3),$P$5,0)))))) -> 14790
A43: NEST_TARGRID1_907434806 | B43: Conclusion | C43: Not | D43: URFU | E43: 2020-05-01 | F43: =IFERROR(VLOOKUP(CONCATENATE(B43,"_",C43,"_",D43),Список!A:B,2,0),"") -> 6790 | G43: =IF(OR(D43="Excont",D43=""),"",IF(D43="URFU",IF(AND(B43=$N$2,C43=$O$2),$P$2,IF(AND(B43=$N$2,C43=$O$3),$P$3,IF(AND(B43=$N$4,C43=$O$2),$P$4,IF(AND(B43=Data!A31,C43=$O$3),$P$5,0)))))) -> 14790
A44: ISAB_9069764 | B44: Conclusion | C44: Not | D44: URFU | E44: 2020-05-01 | F44: =IFERROR(VLOOKUP(CONCATENATE(B44,"_",C44,"_",D44),Список!A:B,2,0),"") -> 6790 | G44: =IF(OR(D44="Excont",D44=""),"",IF(D44="URFU",IF(AND(B44=$N$2,C44=$O$2),$P$2,IF(AND(B44=$N$2,C44=$O$3),$P$3,IF(AND(B44=$N$4,C44=$O$2),$P$4,IF(AND(B44=Data!A33,C44=$O$3),$P$5,0)))))) -> 14790
A45: FATTYSTRI2_9052047 | B45: Conclusion | C45: Not | D45: URFU | E45: 2020-05-01 | F45: =IFERROR(VLOOKUP(CONCATENATE(B45,"_",C45,"_",D45),Список!A:B,2,0),"") -> 6790 | G45: =IF(OR(D45="Excont",D45=""),"",IF(D45="URFU",IF(AND(B45=$N$2,C45=$O$2),$P$2,IF(AND(B45=$N$2,C45=$O$3),$P$3,IF(AND(B45=$N$4,C45=$O$2),$P$4,IF(AND(B45=Data!A35,C45=$O$3),$P$5,0)))))) -> 14790
A46: GEOPAK_9072310 | B46: Conclusion | C46: Not | D46: URFU | E46: 2020-05-01 | F46: =IFERROR(VLOOKUP(CONCATENATE(B46,"_",C46,"_",D46),Список!A:B,2,0),"") -> 6790 | G46: =IF(OR(D46="Excont",D46=""),"",IF(D46="URFU",IF(AND(B46=$N$2,C46=$O$2),$P$2,IF(AND(B46=$N$2,C46=$O$3),$P$3,IF(AND(B46=$N$4,C46=$O$2),$P$4,IF(AND(B46=Data!A36,C46=$O$3),$P$5,0)))))) -> 14790
A47: YARALOAD_9040429 | B47: Conclusion | C47: Not | D47: URFU | E47: 2020-05-01 | F47: =IFERROR(VLOOKUP(CONCATENATE(B47,"_",C47,"_",D47),Список!A:B,2,0),"") -> 6790 | G47: =IF(OR(D47="Excont",D47=""),"",IF(D47="URFU",IF(AND(B47=$N$2,C47=$O$2),$P$2,IF(AND(B47=$N$2,C47=$O$3),$P$3,IF(AND(B47=$N$4,C47=$O$2),$P$4,IF(AND(B47=Data!A37,C47=$O$3),$P$5,0)))))) -> 14790
A48: GUNVACWASH_9073521 | B48: Conclusion | C48: Not | D48: URFU | E48: 2020-05-01 | F48: =IFERROR(VLOOKUP(CONCATENATE(B48,"_",C48,"_",D48),Список!A:B,2,0),"") -> 6790 | G48: =IF(OR(D48="Excont",D48=""),"",IF(D48="URFU",IF(AND(B48=$N$2,C48=$O$2),$P$2,IF(AND(B48=$N$2,C48=$O$3),$P$3,IF(AND(B48=$N$4,C48=$O$2),$P$4,IF(AND(B48=Data!A38,C48=$O$3),$P$5,0)))))) -> 14790
A49: SANCHEZ_2_9044427 | B49: Conclusion | C49: Not | D49: URFU | E49: 2020-06-01 | F49: =IFERROR(VLOOKUP(CONCATENATE(B49,"_",C49,"_",D49),Список!A:B,2,0),"") -> 6790 | G49: =IF(OR(D49="Excont",D49=""),"",IF(D49="URFU",IF(AND(B49=$N$2,C49=$O$2),$P$2,IF(AND(B49=$N$2,C49=$O$3),$P$3,IF(AND(B49=$N$4,C49=$O$2),$P$4,IF(AND(B49=Data!A39,C49=$O$3),$P$5,0)))))) -> 14790
A50: TOUR-COL_907385208 | B50: Conclusion | C50: Not | D50: URFU | E50: 2020-06-01 | F50: =IFERROR(VLOOKUP(CONCATENATE(B50,"_",C50,"_",D50),Список!A:B,2,0),"") -> 6790 | G50: =IF(OR(D50="Excont",D50=""),"",IF(D50="URFU",IF(AND(B50=$N$2,C50=$O$2),$P$2,IF(AND(B50=$N$2,C50=$O$3),$P$3,IF(AND(B50=$N$4,C50=$O$2),$P$4,IF(AND(B50=Data!A40,C50=$O$3),$P$5,0)))))) -> 14790
A51: BIOPACK2 9065528 | B51: Conclusion | C51: Not | D51: URFU | E51: 2020-06-01 | F51: =IFERROR(VLOOKUP(CONCATENATE(B51,"_",C51,"_",D51),Список!A:B,2,0),"") -> 6790 | G51: =IF(OR(D51="Excont",D51=""),"",IF(D51="URFU",IF(AND(B51=$N$2,C51=$O$2),$P$2,IF(AND(B51=$N$2,C51=$O$3),$P$3,IF(AND(B51=$N$4,C51=$O$2),$P$4,IF(AND(B51=Data!A41,C51=$O$3),$P$5,0)))))) -> 14790
A52: SENSIENTPLUS_11 9069607 | B52: Conclusion | C52: Not | D52: URFU | E52: 2020-06-01 | F52: =IFERROR(VLOOKUP(CONCATENATE(B52,"_",C52,"_",D52),Список!A:B,2,0),"") -> 6790 | G52: =IF(OR(D52="Excont",D52=""),"",IF(D52="URFU",IF(AND(B52=$N$2,C52=$O$2),$P$2,IF(AND(B52=$N$2,C52=$O$3),$P$3,IF(AND(B52=$N$4,C52=$O$2),$P$4,IF(AND(B52=Data!A42,C52=$O$3),$P$5,0)))))) -> 14790
A53: GEOPAK 9072310 | B53: Conclusion | C53: Not | D53: URFU | E53: 2020-06-01 | F53: =IFERROR(VLOOKUP(CONCATENATE(B53,"_",C53,"_",D53),Список!A:B,2,0),"") -> 6790 | G53: =IF(OR(D53="Excont",D53=""),"",IF(D53="URFU",IF(AND(B53=$N$2,C53=$O$2),$P$2,IF(AND(B53=$N$2,C53=$O$3),$P$3,IF(AND(B53=$N$4,C53=$O$2),$P$4,IF(AND(B53=Data!A43,C53=$O$3),$P$5,0)))))) -> 14790
A54: GEATRAY 9074185 | B54: Conclusion | C54: Urgent | D54: URFU | E54: 2020-06-01 | F54: =IFERROR(VLOOKUP(CONCATENATE(B54,"_",C54,"_",D54),Список!A:B,2,0),"") -> 9885 | G54: =IF(OR(D54="Excont",D54=""),"",IF(D54="URFU",IF(AND(B54=$N$2,C54=$O$2),$P$2,IF(AND(B54=$N$2,C54=$O$3),$P$3,IF(AND(B54=$N$4,C54=$O$2),$P$4,IF(AND(B54=Data!A44,C54=$O$3),$P$5,0)))))) -> 22185
A55: BPHAST-1 9072645 | B55: Conclusion | C55: Not | D55: URFU | E55: 2020-06-01 | F55: =IFERROR(VLOOKUP(CONCATENATE(B55,"_",C55,"_",D55),Список!A:B,2,0),"") -> 6790 | G55: =IF(OR(D55="Excont",D55=""),"",IF(D55="URFU",IF(AND(B55=$N$2,C55=$O$2),$P$2,IF(AND(B55=$N$2,C55=$O$3),$P$3,IF(AND(B55=$N$4,C55=$O$2),$P$4,IF(AND(B55=Data!A45,C55=$O$3),$P$5,0)))))) -> 14790
A56: CEPSAPAK 9074410 | B56: Conclusion | C56: Not | D56: URFU | E56: 2020-06-01 | F56: =IFERROR(VLOOKUP(CONCATENATE(B56,"_",C56,"_",D56),Список!A:B,2,0),"") -> 6790 | G56: =IF(OR(D56="Excont",D56=""),"",IF(D56="URFU",IF(AND(B56=$N$2,C56=$O$2),$P$2,IF(AND(B56=$N$2,C56=$O$3),$P$3,IF(AND(B56=$N$4,C56=$O$2),$P$4,IF(AND(B56=Data!A46,C56=$O$3),$P$5,0)))))) -> 14790
A57: BORSOANIL-3 9067559 | B57: Conclusion | C57: Not | D57: URFU | E57: 2020-06-01 | F57: =IFERROR(VLOOKUP(CONCATENATE(B57,"_",C57,"_",D57),Список!A:B,2,0),"") -> 6790 | G57: =IF(OR(D57="Excont",D57=""),"",IF(D57="URFU",IF(AND(B57=$N$2,C57=$O$2),$P$2,IF(AND(B57=$N$2,C57=$O$3),$P$3,IF(AND(B57=$N$4,C57=$O$2),$P$4,IF(AND(B57=Data!A47,C57=$O$3),$P$5,0)))))) -> 14790
A58: BORSODMDI-3 9073577 | B58: Conclusion | C58: Not | D58: URFU | E58: 2020-06-01 | F58: =IFERROR(VLOOKUP(CONCATENATE(B58,"_",C58,"_",D58),Список!A:B,2,0),"") -> 6790 | G58: =IF(OR(D58="Excont",D58=""),"",IF(D58="URFU",IF(AND(B58=$N$2,C58=$O$2),$P$2,IF(AND(B58=$N$2,C58=$O$3),$P$3,IF(AND(B58=$N$4,C58=$O$2),$P$4,IF(AND(B58=Data!A48,C58=$O$3),$P$5,0)))))) -> 14790
A59: ACHABS-ALKON | B59: Conclusion | C59: Not | D59: URFU | E59: 2020-06-01 | F59: =IFERROR(VLOOKUP(CONCATENATE(B59,"_",C59,"_",D59),Список!A:B,2,0),"") -> 6790 | G59: =IF(OR(D59="Excont",D59=""),"",IF(D59="URFU",IF(AND(B59=$N$2,C59=$O$2),$P$2,IF(AND(B59=$N$2,C59=$O$3),$P$3,IF(AND(B59=$N$4,C59=$O$2),$P$4,IF(AND(B59=Data!A49,C59=$O$3),$P$5,0)))))) -> 14790
A60: BORSODI-11 | B60: Conclusion | C60: Not | D60: URFU | E60: 2020-06-01 | F60: =IFERROR(VLOOKUP(CONCATENATE(B60,"_",C60,"_",D60),Список!A:B,2,0),"") -> 6790 | G60: =IF(OR(D60="Excont",D60=""),"",IF(D60="URFU",IF(AND(B60=$N$2,C60=$O$2),$P$2,IF(AND(B60=$N$2,C60=$O$3),$P$3,IF(AND(B60=$N$4,C60=$O$2),$P$4,IF(AND(B60=Data!A50,C60=$O$3),$P$5,0)))))) -> 14790
A61: BPHAST-1 9072645 | B61: Conclusion | C61: Not | D61: URFU | E61: 2020-06-01 | F61: =IFERROR(VLOOKUP(CONCATENATE(B61,"_",C61,"_",D61),Список!A:B,2,0),"") -> 6790 | G61: =IF(OR(D61="Excont",D61=""),"",IF(D61="URFU",IF(AND(B61=$N$2,C61=$O$2),$P$2,IF(AND(B61=$N$2,C61=$O$3),$P$3,IF(AND(B61=$N$4,C61=$O$2),$P$4,IF(AND(B61=Data!A51,C61=$O$3),$P$5,0)))))) -> 14790
A62: NOBELSPORT 9074141 | B62: Conclusion | C62: Not | D62: URFU | E62: 2020-06-01 | F62: =IFERROR(VLOOKUP(CONCATENATE(B62,"_",C62,"_",D62),Список!A:B,2,0),"") -> 6790
A63: MIXER_NCOC | B63: Conclusion | C63: Not | D63: URFU | E63: 2020-07-01 | F63: =IFERROR(VLOOKUP(CONCATENATE(B63,"_",C63,"_",D63),Список!A:B,2,0),"") -> 6790 | G63: =IF(OR(D63="Excont",D63=""),"",IF(D63="URFU",IF(AND(B63=$N$2,C63=$O$2),$P$2,IF(AND(B63=$N$2,C63=$O$3),$P$3,IF(AND(B63=$N$4,C63=$O$2),$P$4,IF(AND(B63=Data!A53,C63=$O$3),$P$5,0)))))) -> 14790
A64: FREIBAS REHDEN | B64: Conclusion | C64: Not | D64: URFU | E64: 2020-07-01 | F64: =IFERROR(VLOOKUP(CONCATENATE(B64,"_",C64,"_",D64),Список!A:B,2,0),"") -> 6790 | G64: =IF(OR(D64="Excont",D64=""),"",IF(D64="URFU",IF(AND(B64=$N$2,C64=$O$2),$P$2,IF(AND(B64=$N$2,C64=$O$3),$P$3,IF(AND(B64=$N$4,C64=$O$2),$P$4,IF(AND(B64=Data!A54,C64=$O$3),$P$5,0)))))) -> 14790
A65: 9070606_LEURESCH | B65: Conclusion | C65: Not | D65: URFU | E65: 2020-07-01 | F65: 6790 | G65: =IF(OR(D65="Excont",D65=""),"",IF(D65="URFU",IF(AND(B65=$N$2,C65=$O$2),$P$2,IF(AND(B65=$N$2,C65=$O$3),$P$3,IF(AND(B65=$N$4,C65=$O$2),$P$4,IF(AND(B65=Data!A55,C65=$O$3),$P$5,0)))))) -> 14790
A66: BUNGESOY | B66: Conclusion | C66: Not | D66: URFU | E66: 2020-07-01 | F66: =IFERROR(VLOOKUP(CONCATENATE(B66,"_",C66,"_",D66),Список!A:B,2,0),"") -> 6790 | G66: =IF(OR(D66="Excont",D66=""),"",IF(D66="URFU",IF(AND(B66=$N$2,C66=$O$2),$P$2,IF(AND(B66=$N$2,C66=$O$3),$P$3,IF(AND(B66=$N$4,C66=$O$2),$P$4,IF(AND(B66=Data!A56,C66=$O$3),$P$5,0)))))) -> 14790
A67: KOLLSNESS_T1T2_REVAMP | B67: Conclusion | C67: Not | D67: URFU | E67: 2020-08-01 | F67: =IFERROR(VLOOKUP(CONCATENATE(B67,"_",C67,"_",D67),Список!A:B,2,0),"") -> 6790 | G67: =IF(OR(D67="Excont",D67=""),"",IF(D67="URFU",IF(AND(B67=$N$2,C67=$O$2),$P$2,IF(AND(B67=$N$2,C67=$O$3),$P$3,IF(AND(B67=$N$4,C67=$O$2),$P$4,IF(AND(B67=Data!A57,C67=$O$3),$P$5,0)))))) -> 14790
A68: CHRISTOF_LL Lot-1 | B68: Conclusion | C68: Not | D68: URFU | E68: 2020-08-01 | F68: =IFERROR(VLOOKUP(CONCATENATE(B68,"_",C68,"_",D68),Список!A:B,2,0),"") -> 6790 | G68: =IF(OR(D68="Excont",D68=""),"",IF(D68="URFU",IF(AND(B68=$N$2,C68=$O$2),$P$2,IF(AND(B68=$N$2,C68=$O$3),$P$3,IF(AND(B68=$N$4,C68=$O$2),$P$4,IF(AND(B68=Data!A58,C68=$O$3),$P$5,0)))))) -> 14790
A69: CHRISTOF_LL Lot-2 | B69: Conclusion | C69: Not | D69: URFU | E69: 2020-08-01 | F69: =IFERROR(VLOOKUP(CONCATENATE(B69,"_",C69,"_",D69),Список!A:B,2,0),"") -> 6790 | G69: =IF(OR(D69="Excont",D69=""),"",IF(D69="URFU",IF(AND(B69=$N$2,C69=$O$2),$P$2,IF(AND(B69=$N$2,C69=$O$3),$P$3,IF(AND(B69=$N$4,C69=$O$2),$P$4,IF(AND(B69=Data!A59,C69=$O$3),$P$5,0)))))) -> 14790
A70: BORSOMNB | B70: Conclusion | C70: Not | D70: URFU | E70: 2020-08-01 | F70: =IFERROR(VLOOKUP(CONCATENATE(B70,"_",C70,"_",D70),Список!A:B,2,0),"") -> 6790 | G70: =IF(OR(D70="Excont",D70=""),"",IF(D70="URFU",IF(AND(B70=$N$2,C70=$O$2),$P$2,IF(AND(B70=$N$2,C70=$O$3),$P$3,IF(AND(B70=$N$4,C70=$O$2),$P$4,IF(AND(B70=Data!A60,C70=$O$3),$P$5,0)))))) -> 14790
A71: CARGWORM | B71: Conclusion | C71: Not | D71: URFU | E71: 2020-08-01 | F71: =IFERROR(VLOOKUP(CONCATENATE(B71,"_",C71,"_",D71),Список!A:B,2,0),"") -> 6790 | G71: =IF(OR(D71="Excont",D71=""),"",IF(D71="URFU",IF(AND(B71=$N$2,C71=$O$2),$P$2,IF(AND(B71=$N$2,C71=$O$3),$P$3,IF(AND(B71=$N$4,C71=$O$2),$P$4,IF(AND(B71=Data!A61,C71=$O$3),$P$5,0)))))) -> 14790
A72: STOFI 9075947 | B72: Conclusion | C72: Not | D72: URFU | E72: 2020-08-01 | F72: =IFERROR(VLOOKUP(CONCATENATE(B72,"_",C72,"_",D72),Список!A:B,2,0),"") -> 6790 | G72: =IF(OR(D72="Excont",D72=""),"",IF(D72="URFU",IF(AND(B72=$N$2,C72=$O$2),$P$2,IF(AND(B72=$N$2,C72=$O$3),$P$3,IF(AND(B72=$N$4,C72=$O$2),$P$4,IF(AND(B72=Data!A62,C72=$O$3),$P$5,0)))))) -> 14790
A73: WACKABS-K450-TAS_9077726 | B73: Conclusion | C73: Not | D73: URFU | E73: 2020-08-01 | F73: =IFERROR(VLOOKUP(CONCATENATE(B73,"_",C73,"_",D73),Список!A:B,2,0),"") -> 6790 | G73: =IF(OR(D73="Excont",D73=""),"",IF(D73="URFU",IF(AND(B73=$N$2,C73=$O$2),$P$2,IF(AND(B73=$N$2,C73=$O$3),$P$3,IF(AND(B73=$N$4,C73=$O$2),$P$4,IF(AND(B73=Data!A63,C73=$O$3),$P$5,0)))))) -> 14790
A74: DONAPAK-B 9077897 | B74: Conclusion | C74: Not | D74: URFU | E74: 2020-08-01 | F74: =IFERROR(VLOOKUP(CONCATENATE(B74,"_",C74,"_",D74),Список!A:B,2,0),"") -> 6790 | G74: =IF(OR(D74="Excont",D74=""),"",IF(D74="URFU",IF(AND(B74=$N$2,C74=$O$2),$P$2,IF(AND(B74=$N$2,C74=$O$3),$P$3,IF(AND(B74=$N$4,C74=$O$2),$P$4,IF(AND(B74=Data!A64,C74=$O$3),$P$5,0)))))) -> 14790
A75: TAQAPLATE | B75: Conclusion | C75: Not | D75: URFU | E75: 2020-07-01 | F75: =IFERROR(VLOOKUP(CONCATENATE(B75,"_",C75,"_",D75),Список!A:B,2,0),"") -> 6790 | G75: =IF(OR(D75="Excont",D75=""),"",IF(D75="URFU",IF(AND(B75=$N$2,C75=$O$2),$P$2,IF(AND(B75=$N$2,C75=$O$3),$P$3,IF(AND(B75=$N$4,C75=$O$2),$P$4,IF(AND(B75=Data!A65,C75=$O$3),$P$5,0)))))) -> 14790
A76: TOMSADIS | B76: Conclusion | C76: Not | D76: URFU | E76: 2020-07-01 | F76: =IFERROR(VLOOKUP(CONCATENATE(B76,"_",C76,"_",D76),Список!A:B,2,0),"") -> 6790 | G76: =IF(OR(D76="Excont",D76=""),"",IF(D76="URFU",IF(AND(B76=$N$2,C76=$O$2),$P$2,IF(AND(B76=$N$2,C76=$O$3),$P$3,IF(AND(B76=$N$4,C76=$O$2),$P$4,IF(AND(B76=Data!A66,C76=$O$3),$P$5,0)))))) -> 14790
A77: HUNPAK-22 | B77: Conclusion | C77: Not | D77: URFU | E77: 2020-07-01 | F77: =IFERROR(VLOOKUP(CONCATENATE(B77,"_",C77,"_",D77),Список!A:B,2,0),"") -> 6790 | G77: =IF(OR(D77="Excont",D77=""),"",IF(D77="URFU",IF(AND(B77=$N$2,C77=$O$2),$P$2,IF(AND(B77=$N$2,C77=$O$3),$P$3,IF(AND(B77=$N$4,C77=$O$2),$P$4,IF(AND(B77=Data!A67,C77=$O$3),$P$5,0)))))) -> 14790
A78: MONPRODNEW | B78: Conclusion | C78: Not | D78: URFU | E78: 2020-08-01 | F78: =IFERROR(VLOOKUP(CONCATENATE(B78,"_",C78,"_",D78),Список!A:B,2,0),"") -> 6790 | G78: =IF(OR(D78="Excont",D78=""),"",IF(D78="URFU",IF(AND(B78=$N$2,C78=$O$2),$P$2,IF(AND(B78=$N$2,C78=$O$3),$P$3,IF(AND(B78=$N$4,C78=$O$2),$P$4,IF(AND(B78=Data!A68,C78=$O$3),$P$5,0)))))) -> 14790
A79: EXX710004 | B79: Conclusion | C79: Not | D79: URFU | E79: 2020-08-01 | F79: =IFERROR(VLOOKUP(CONCATENATE(B79,"_",C79,"_",D79),Список!A:B,2,0),"") -> 6790 | G79: =IF(OR(D79="Excont",D79=""),"",IF(D79="URFU",IF(AND(B79=$N$2,C79=$O$2),$P$2,IF(AND(B79=$N$2,C79=$O$3),$P$3,IF(AND(B79=$N$4,C79=$O$2),$P$4,IF(AND(B79=Data!A69,C79=$O$3),$P$5,0)))))) -> 14790
A80: CAMPTUR | B80: Conclusion | C80: Not | D80: URFU | E80: 2020-08-01 | F80: =IFERROR(VLOOKUP(CONCATENATE(B80,"_",C80,"_",D80),Список!A:B,2,0),"") -> 6790 | G80: =IF(OR(D80="Excont",D80=""),"",IF(D80="URFU",IF(AND(B80=$N$2,C80=$O$2),$P$2,IF(AND(B80=$N$2,C80=$O$3),$P$3,IF(AND(B80=$N$4,C80=$O$2),$P$4,IF(AND(B80=Data!A70,C80=$O$3),$P$5,0)))))) -> 14790
A81: MAZBREAKER-10 | B81: Conclusion | C81: Not | D81: URFU | E81: 2020-08-01 | F81: =IFERROR(VLOOKUP(CONCATENATE(B81,"_",C81,"_",D81),Список!A:B,2,0),"") -> 6790 | G81: =IF(OR(D81="Excont",D81=""),"",IF(D81="URFU",IF(AND(B81=$N$2,C81=$O$2),$P$2,IF(AND(B81=$N$2,C81=$O$3),$P$3,IF(AND(B81=$N$4,C81=$O$2),$P$4,IF(AND(B81=Data!A71,C81=$O$3),$P$5,0)))))) -> 14790
A82: LAM-DX5DX6 | B82: Conclusion | C82: Not | D82: URFU | E82: 2020-09-01 | F82: =IFERROR(VLOOKUP(CONCATENATE(B82,"_",C82,"_",D82),Список!A:B,2,0),"") -> 6790 | G82: =IF(OR(D82="Excont",D82=""),"",IF(D82="URFU",IF(AND(B82=$N$2,C82=$O$2),$P$2,IF(AND(B82=$N$2,C82=$O$3),$P$3,IF(AND(B82=$N$4,C82=$O$2),$P$4,IF(AND(B82=Data!A72,C82=$O$3),$P$5,0)))))) -> 14790
F83: =IFERROR(VLOOKUP(CONCATENATE(B83,"_",C83,"_",D83),Список!A:B,2,0),"") ->  | G83: =IF(OR(D83="Excont",D83=""),"",IF(D83="URFU",IF(AND(B83=$N$2,C83=$O$2),$P$2,IF(AND(B83=$N$2,C83=$O$3),$P$3,IF(AND(B83=$N$4,C83=$O$2),$P$4,IF(AND(B83=Data!A73,C83=$O$3),$P$5,0)))))) -> 
F84: =IFERROR(VLOOKUP(CONCATENATE(B84,"_",C84,"_",D84),Список!A:B,2,0),"") ->  | G84: =IF(OR(D84="Excont",D84=""),"",IF(D84="URFU",IF(AND(B84=$N$2,C84=$O$2),$P$2,IF(AND(B84=$N$2,C84=$O$3),$P$3,IF(AND(B84=$N$4,C84=$O$2),$P$4,IF(AND(B84=Data!A74,C84=$O$3),$P$5,0)))))) -> 
F85: =IFERROR(VLOOKUP(CONCATENATE(B85,"_",C85,"_",D85),Список!A:B,2,0),"") ->  | G85: =IF(OR(D85="Excont",D85=""),"",IF(D85="URFU",IF(AND(B85=$N$2,C85=$O$2),$P$2,IF(AND(B85=$N$2,C85=$O$3),$P$3,IF(AND(B85=$N$4,C85=$O$2),$P$4,IF(AND(B85=Data!A75,C85=$O$3),$P$5,0)))))) -> 
F86: =IFERROR(VLOOKUP(CONCATENATE(B86,"_",C86,"_",D86),Список!A:B,2,0),"") ->  | G86: =IF(OR(D86="Excont",D86=""),"",IF(D86="URFU",IF(AND(B86=$N$2,C86=$O$2),$P$2,IF(AND(B86=$N$2,C86=$O$3),$P$3,IF(AND(B86=$N$4,C86=$O$2),$P$4,IF(AND(B86=Data!A76,C86=$O$3),$P$5,0)))))) -> 
F87: =IFERROR(VLOOKUP(CONCATENATE(B87,"_",C87,"_",D87),Список!A:B,2,0),"") ->  | G87: =IF(OR(D87="Excont",D87=""),"",IF(D87="URFU",IF(AND(B87=$N$2,C87=$O$2),$P$2,IF(AND(B87=$N$2,C87=$O$3),$P$3,IF(AND(B87=$N$4,C87=$O$2),$P$4,IF(AND(B87=Data!A77,C87=$O$3),$P$5,0)))))) -> 
F88: =IFERROR(VLOOKUP(CONCATENATE(B88,"_",C88,"_",D88),Список!A:B,2,0),"") ->  | G88: =IF(OR(D88="Excont",D88=""),"",IF(D88="URFU",IF(AND(B88=$N$2,C88=$O$2),$P$2,IF(AND(B88=$N$2,C88=$O$3),$P$3,IF(AND(B88=$N$4,C88=$O$2),$P$4,IF(AND(B88=Data!A78,C88=$O$3),$P$5,0)))))) -> 
F89: =IFERROR(VLOOKUP(CONCATENATE(B89,"_",C89,"_",D89),Список!A:B,2,0),"") ->  | G89: =IF(OR(D89="Excont",D89=""),"",IF(D89="URFU",IF(AND(B89=$N$2,C89=$O$2),$P$2,IF(AND(B89=$N$2,C89=$O$3),$P$3,IF(AND(B89=$N$4,C89=$O$2),$P$4,IF(AND(B89=Data!A79,C89=$O$3),$P$5,0)))))) -> 
F90: =IFERROR(VLOOKUP(CONCATENATE(B90,"_",C90,"_",D90),Список!A:B,2,0),"") ->  | G90: =IF(OR(D90="Excont",D90=""),"",IF(D90="URFU",IF(AND(B90=$N$2,C90=$O$2),$P$2,IF(AND(B90=$N$2,C90=$O$3),$P$3,IF(AND(B90=$N$4,C90=$O$2),$P$4,IF(AND(B90=Data!A80,C90=$O$3),$P$5,0)))))) -> 
F91: =IFERROR(VLOOKUP(CONCATENATE(B91,"_",C91,"_",D91),Список!A:B,2,0),"") ->  | G91: =IF(OR(D91="Excont",D91=""),"",IF(D91="URFU",IF(AND(B91=$N$2,C91=$O$2),$P$2,IF(AND(B91=$N$2,C91=$O$3),$P$3,IF(AND(B91=$N$4,C91=$O$2),$P$4,IF(AND(B91=Data!A81,C91=$O$3),$P$5,0)))))) -> 
F92: =IFERROR(VLOOKUP(CONCATENATE(B92,"_",C92,"_",D92),Список!A:B,2,0),"") ->  | G92: =IF(OR(D92="Excont",D92=""),"",IF(D92="URFU",IF(AND(B92=$N$2,C92=$O$2),$P$2,IF(AND(B92=$N$2,C92=$O$3),$P$3,IF(AND(B92=$N$4,C92=$O$2),$P$4,IF(AND(B92=Data!A82,C92=$O$3),$P$5,0)))))) -> 
F93: =IFERROR(VLOOKUP(CONCATENATE(B93,"_",C93,"_",D93),Список!A:B,2,0),"") ->  | G93: =IF(OR(D93="Excont",D93=""),"",IF(D93="URFU",IF(AND(B93=$N$2,C93=$O$2),$P$2,IF(AND(B93=$N$2,C93=$O$3),$P$3,IF(AND(B93=$N$4,C93=$O$2),$P$4,IF(AND(B93=Data!A83,C93=$O$3),$P$5,0)))))) -> 
F94: =IFERROR(VLOOKUP(CONCATENATE(B94,"_",C94,"_",D94),Список!A:B,2,0),"") ->  | G94: =IF(OR(D94="Excont",D94=""),"",IF(D94="URFU",IF(AND(B94=$N$2,C94=$O$2),$P$2,IF(AND(B94=$N$2,C94=$O$3),$P$3,IF(AND(B94=$N$4,C94=$O$2),$P$4,IF(AND(B94=Data!A84,C94=$O$3),$P$5,0)))))) -> 
F95: =IFERROR(VLOOKUP(CONCATENATE(B95,"_",C95,"_",D95),Список!A:B,2,0),"") ->  | G95: =IF(OR(D95="Excont",D95=""),"",IF(D95="URFU",IF(AND(B95=$N$2,C95=$O$2),$P$2,IF(AND(B95=$N$2,C95=$O$3),$P$3,IF(AND(B95=$N$4,C95=$O$2),$P$4,IF(AND(B95=Data!A85,C95=$O$3),$P$5,0)))))) -> 
F96: =IFERROR(VLOOKUP(CONCATENATE(B96,"_",C96,"_",D96),Список!A:B,2,0),"") ->  | G96: =IF(OR(D96="Excont",D96=""),"",IF(D96="URFU",IF(AND(B96=$N$2,C96=$O$2),$P$2,IF(AND(B96=$N$2,C96=$O$3),$P$3,IF(AND(B96=$N$4,C96=$O$2),$P$4,IF(AND(B96=Data!A86,C96=$O$3),$P$5,0)))))) -> 
F97: =IFERROR(VLOOKUP(CONCATENATE(B97,"_",C97,"_",D97),Список!A:B,2,0),"") ->  | G97: =IF(OR(D97="Excont",D97=""),"",IF(D97="URFU",IF(AND(B97=$N$2,C97=$O$2),$P$2,IF(AND(B97=$N$2,C97=$O$3),$P$3,IF(AND(B97=$N$4,C97=$O$2),$P$4,IF(AND(B97=Data!A87,C97=$O$3),$P$5,0)))))) -> 
F98: =IFERROR(VLOOKUP(CONCATENATE(B98,"_",C98,"_",D98),Список!A:B,2,0),"") ->  | G98: =IF(OR(D98="Excont",D98=""),"",IF(D98="URFU",IF(AND(B98=$N$2,C98=$O$2),$P$2,IF(AND(B98=$N$2,C98=$O$3),$P$3,IF(AND(B98=$N$4,C98=$O$2),$P$4,IF(AND(B98=Data!A88,C98=$O$3),$P$5,0)))))) -> 
F99: =IFERROR(VLOOKUP(CONCATENATE(B99,"_",C99,"_",D99),Список!A:B,2,0),"") ->  | G99: =IF(OR(D99="Excont",D99=""),"",IF(D99="URFU",IF(AND(B99=$N$2,C99=$O$2),$P$2,IF(AND(B99=$N$2,C99=$O$3),$P$3,IF(AND(B99=$N$4,C99=$O$2),$P$4,IF(AND(B99=Data!A89,C99=$O$3),$P$5,0)))))) -> 
F100: =IFERROR(VLOOKUP(CONCATENATE(B100,"_",C100,"_",D100),Список!A:B,2,0),"") ->  | G100: =IF(OR(D100="Excont",D100=""),"",IF(D100="URFU",IF(AND(B100=$N$2,C100=$O$2),$P$2,IF(AND(B100=$N$2,C100=$O$3),$P$3,IF(AND(B100=$N$4,C100=$O$2),$P$4,IF(AND(B100=Data!A90,C100=$O$3),$P$5,0)))))) -> 
F101: =IFERROR(VLOOKUP(CONCATENATE(B101,"_",C101,"_",D101),Список!A:B,2,0),"") ->  | G101: =IF(OR(D101="Excont",D101=""),"",IF(D101="URFU",IF(AND(B101=$N$2,C101=$O$2),$P$2,IF(AND(B101=$N$2,C101=$O$3),$P$3,IF(AND(B101=$N$4,C101=$O$2),$P$4,IF(AND(B101=Data!A91,C101=$O$3),$P$5,0)))))) -> 
F102: =IFERROR(VLOOKUP(CONCATENATE(B102,"_",C102,"_",D102),Список!A:B,2,0),"") ->  | G102: =IF(OR(D102="Excont",D102=""),"",IF(D102="URFU",IF(AND(B102=$N$2,C102=$O$2),$P$2,IF(AND(B102=$N$2,C102=$O$3),$P$3,IF(AND(B102=$N$4,C102=$O$2),$P$4,IF(AND(B102=Data!A92,C102=$O$3),$P$5,0)))))) -> 
F103: =IFERROR(VLOOKUP(CONCATENATE(B103,"_",C103,"_",D103),Список!A:B,2,0),"") ->  | G103: =IF(OR(D103="Excont",D103=""),"",IF(D103="URFU",IF(AND(B103=$N$2,C103=$O$2),$P$2,IF(AND(B103=$N$2,C103=$O$3),$P$3,IF(AND(B103=$N$4,C103=$O$2),$P$4,IF(AND(B103=Data!A93,C103=$O$3),$P$5,0)))))) -> 
F104: =IFERROR(VLOOKUP(CONCATENATE(B104,"_",C104,"_",D104),Список!A:B,2,0),"") ->  | G104: =IF(OR(D104="Excont",D104=""),"",IF(D104="URFU",IF(AND(B104=$N$2,C104=$O$2),$P$2,IF(AND(B104=$N$2,C104=$O$3),$P$3,IF(AND(B104=$N$4,C104=$O$2),$P$4,IF(AND(B104=Data!A94,C104=$O$3),$P$5,0)))))) -> 
F105: =IFERROR(VLOOKUP(CONCATENATE(B105,"_",C105,"_",D105),Список!A:B,2,0),"") ->  | G105: =IF(OR(D105="Excont",D105=""),"",IF(D105="URFU",IF(AND(B105=$N$2,C105=$O$2),$P$2,IF(AND(B105=$N$2,C105=$O$3),$P$3,IF(AND(B105=$N$4,C105=$O$2),$P$4,IF(AND(B105=Data!A95,C105=$O$3),$P$5,0)))))) -> 
F106: =IFERROR(VLOOKUP(CONCATENATE(B106,"_",C106,"_",D106),Список!A:B,2,0),"") ->  | G106: =IF(OR(D106="Excont",D106=""),"",IF(D106="URFU",IF(AND(B106=$N$2,C106=$O$2),$P$2,IF(AND(B106=$N$2,C106=$O$3),$P$3,IF(AND(B106=$N$4,C106=$O$2),$P$4,IF(AND(B106=Data!A96,C106=$O$3),$P$5,0)))))) -> 
F107: =IFERROR(VLOOKUP(CONCATENATE(B107,"_",C107,"_",D107),Список!A:B,2,0),"") ->  | G107: =IF(OR(D107="Excont",D107=""),"",IF(D107="URFU",IF(AND(B107=$N$2,C107=$O$2),$P$2,IF(AND(B107=$N$2,C107=$O$3),$P$3,IF(AND(B107=$N$4,C107=$O$2),$P$4,IF(AND(B107=Data!A97,C107=$O$3),$P$5,0)))))) -> 
F108: =IFERROR(VLOOKUP(CONCATENATE(B108,"_",C108,"_",D108),Список!A:B,2,0),"") ->  | G108: =IF(OR(D108="Excont",D108=""),"",IF(D108="URFU",IF(AND(B108=$N$2,C108=$O$2),$P$2,IF(AND(B108=$N$2,C108=$O$3),$P$3,IF(AND(B108=$N$4,C108=$O$2),$P$4,IF(AND(B108=Data!A98,C108=$O$3),$P$5,0)))))) -> 
F109: =IFERROR(VLOOKUP(CONCATENATE(B109,"_",C109,"_",D109),Список!A:B,2,0),"") ->  | G109: =IF(OR(D109="Excont",D109=""),"",IF(D109="URFU",IF(AND(B109=$N$2,C109=$O$2),$P$2,IF(AND(B109=$N$2,C109=$O$3),$P$3,IF(AND(B109=$N$4,C109=$O$2),$P$4,IF(AND(B109=Data!A99,C109=$O$3),$P$5,0)))))) -> 
F110: =IFERROR(VLOOKUP(CONCATENATE(B110,"_",C110,"_",D110),Список!A:B,2,0),"") ->  | G110: =IF(OR(D110="Excont",D110=""),"",IF(D110="URFU",IF(AND(B110=$N$2,C110=$O$2),$P$2,IF(AND(B110=$N$2,C110=$O$3),$P$3,IF(AND(B110=$N$4,C110=$O$2),$P$4,IF(AND(B110=Data!A100,C110=$O$3),$P$5,0)))))) -> 
F111: =IFERROR(VLOOKUP(CONCATENATE(B111,"_",C111,"_",D111),Список!A:B,2,0),"") ->  | G111: =IF(OR(D111="Excont",D111=""),"",IF(D111="URFU",IF(AND(B111=$N$2,C111=$O$2),$P$2,IF(AND(B111=$N$2,C111=$O$3),$P$3,IF(AND(B111=$N$4,C111=$O$2),$P$4,IF(AND(B111=Data!A101,C111=$O$3),$P$5,0)))))) -> 
F112: =IFERROR(VLOOKUP(CONCATENATE(B112,"_",C112,"_",D112),Список!A:B,2,0),"") ->  | G112: =IF(OR(D112="Excont",D112=""),"",IF(D112="URFU",IF(AND(B112=$N$2,C112=$O$2),$P$2,IF(AND(B112=$N$2,C112=$O$3),$P$3,IF(AND(B112=$N$4,C112=$O$2),$P$4,IF(AND(B112=Data!A102,C112=$O$3),$P$5,0)))))) -> 
F113: =IFERROR(VLOOKUP(CONCATENATE(B113,"_",C113,"_",D113),Список!A:B,2,0),"") ->  | G113: =IF(OR(D113="Excont",D113=""),"",IF(D113="URFU",IF(AND(B113=$N$2,C113=$O$2),$P$2,IF(AND(B113=$N$2,C113=$O$3),$P$3,IF(AND(B113=$N$4,C113=$O$2),$P$4,IF(AND(B113=Data!A103,C113=$O$3),$P$5,0)))))) -> 
F114: =IFERROR(VLOOKUP(CONCATENATE(B114,"_",C114,"_",D114),Список!A:B,2,0),"") ->  | G114: =IF(OR(D114="Excont",D114=""),"",IF(D114="URFU",IF(AND(B114=$N$2,C114=$O$2),$P$2,IF(AND(B114=$N$2,C114=$O$3),$P$3,IF(AND(B114=$N$4,C114=$O$2),$P$4,IF(AND(B114=Data!A104,C114=$O$3),$P$5,0)))))) -> 
F115: =IFERROR(VLOOKUP(CONCATENATE(B115,"_",C115,"_",D115),Список!A:B,2,0),"") ->  | G115: =IF(OR(D115="Excont",D115=""),"",IF(D115="URFU",IF(AND(B115=$N$2,C115=$O$2),$P$2,IF(AND(B115=$N$2,C115=$O$3),$P$3,IF(AND(B115=$N$4,C115=$O$2),$P$4,IF(AND(B115=Data!A105,C115=$O$3),$P$5,0)))))) -> 
F116: =IFERROR(VLOOKUP(CONCATENATE(B116,"_",C116,"_",D116),Список!A:B,2,0),"") ->  | G116: =IF(OR(D116="Excont",D116=""),"",IF(D116="URFU",IF(AND(B116=$N$2,C116=$O$2),$P$2,IF(AND(B116=$N$2,C116=$O$3),$P$3,IF(AND(B116=$N$4,C116=$O$2),$P$4,IF(AND(B116=Data!A106,C116=$O$3),$P$5,0)))))) -> 
F117: =IFERROR(VLOOKUP(CONCATENATE(B117,"_",C117,"_",D117),Список!A:B,2,0),"") ->  | G117: =IF(OR(D117="Excont",D117=""),"",IF(D117="URFU",IF(AND(B117=$N$2,C117=$O$2),$P$2,IF(AND(B117=$N$2,C117=$O$3),$P$3,IF(AND(B117=$N$4,C117=$O$2),$P$4,IF(AND(B117=Data!A107,C117=$O$3),$P$5,0)))))) -> 
F118: =IFERROR(VLOOKUP(CONCATENATE(B118,"_",C118,"_",D118),Список!A:B,2,0),"") ->  | G118: =IF(OR(D118="Excont",D118=""),"",IF(D118="URFU",IF(AND(B118=$N$2,C118=$O$2),$P$2,IF(AND(B118=$N$2,C118=$O$3),$P$3,IF(AND(B118=$N$4,C118=$O$2),$P$4,IF(AND(B118=Data!A108,C118=$O$3),$P$5,0)))))) -> 
F119: =IFERROR(VLOOKUP(CONCATENATE(B119,"_",C119,"_",D119),Список!A:B,2,0),"") ->  | G119: =IF(OR(D119="Excont",D119=""),"",IF(D119="URFU",IF(AND(B119=$N$2,C119=$O$2),$P$2,IF(AND(B119=$N$2,C119=$O$3),$P$3,IF(AND(B119=$N$4,C119=$O$2),$P$4,IF(AND(B119=Data!A109,C119=$O$3),$P$5,0)))))) -> 
F120: =IFERROR(VLOOKUP(CONCATENATE(B120,"_",C120,"_",D120),Список!A:B,2,0),"") ->  | G120: =IF(OR(D120="Excont",D120=""),"",IF(D120="URFU",IF(AND(B120=$N$2,C120=$O$2),$P$2,IF(AND(B120=$N$2,C120=$O$3),$P$3,IF(AND(B120=$N$4,C120=$O$2),$P$4,IF(AND(B120=Data!A110,C120=$O$3),$P$5,0)))))) -> 
F121: =IFERROR(VLOOKUP(CONCATENATE(B121,"_",C121,"_",D121),Список!A:B,2,0),"") ->  | G121: =IF(OR(D121="Excont",D121=""),"",IF(D121="URFU",IF(AND(B121=$N$2,C121=$O$2),$P$2,IF(AND(B121=$N$2,C121=$O$3),$P$3,IF(AND(B121=$N$4,C121=$O$2),$P$4,IF(AND(B121=Data!A111,C121=$O$3),$P$5,0)))))) -> 
F122: =IFERROR(VLOOKUP(CONCATENATE(B122,"_",C122,"_",D122),Список!A:B,2,0),"") ->  | G122: =IF(OR(D122="Excont",D122=""),"",IF(D122="URFU",IF(AND(B122=$N$2,C122=$O$2),$P$2,IF(AND(B122=$N$2,C122=$O$3),$P$3,IF(AND(B122=$N$4,C122=$O$2),$P$4,IF(AND(B122=Data!A112,C122=$O$3),$P$5,0)))))) -> 
F123: =IFERROR(VLOOKUP(CONCATENATE(B123,"_",C123,"_",D123),Список!A:B,2,0),"") ->  | G123: =IF(OR(D123="Excont",D123=""),"",IF(D123="URFU",IF(AND(B123=$N$2,C123=$O$2),$P$2,IF(AND(B123=$N$2,C123=$O$3),$P$3,IF(AND(B123=$N$4,C123=$O$2),$P$4,IF(AND(B123=Data!A113,C123=$O$3),$P$5,0)))))) -> 
F124: =IFERROR(VLOOKUP(CONCATENATE(B124,"_",C124,"_",D124),Список!A:B,2,0),"") ->  | G124: =IF(OR(D124="Excont",D124=""),"",IF(D124="URFU",IF(AND(B124=$N$2,C124=$O$2),$P$2,IF(AND(B124=$N$2,C124=$O$3),$P$3,IF(AND(B124=$N$4,C124=$O$2),$P$4,IF(AND(B124=Data!A114,C124=$O$3),$P$5,0)))))) -> 
F125: =IFERROR(VLOOKUP(CONCATENATE(B125,"_",C125,"_",D125),Список!A:B,2,0),"") ->  | G125: =IF(OR(D125="Excont",D125=""),"",IF(D125="URFU",IF(AND(B125=$N$2,C125=$O$2),$P$2,IF(AND(B125=$N$2,C125=$O$3),$P$3,IF(AND(B125=$N$4,C125=$O$2),$P$4,IF(AND(B125=Data!A115,C125=$O$3),$P$5,0)))))) -> 
F126: =IFERROR(VLOOKUP(CONCATENATE(B126,"_",C126,"_",D126),Список!A:B,2,0),"") ->  | G126: =IF(OR(D126="Excont",D126=""),"",IF(D126="URFU",IF(AND(B126=$N$2,C126=$O$2),$P$2,IF(AND(B126=$N$2,C126=$O$3),$P$3,IF(AND(B126=$N$4,C126=$O$2),$P$4,IF(AND(B126=Data!A116,C126=$O$3),$P$5,0)))))) -> 
F127: =IFERROR(VLOOKUP(CONCATENATE(B127,"_",C127,"_",D127),Список!A:B,2,0),"") ->  | G127: =IF(OR(D127="Excont",D127=""),"",IF(D127="URFU",IF(AND(B127=$N$2,C127=$O$2),$P$2,IF(AND(B127=$N$2,C127=$O$3),$P$3,IF(AND(B127=$N$4,C127=$O$2),$P$4,IF(AND(B127=Data!A117,C127=$O$3),$P$5,0)))))) -> 
F128: =IFERROR(VLOOKUP(CONCATENATE(B128,"_",C128,"_",D128),Список!A:B,2,0),"") ->  | G128: =IF(OR(D128="Excont",D128=""),"",IF(D128="URFU",IF(AND(B128=$N$2,C128=$O$2),$P$2,IF(AND(B128=$N$2,C128=$O$3),$P$3,IF(AND(B128=$N$4,C128=$O$2),$P$4,IF(AND(B128=Data!A118,C128=$O$3),$P$5,0)))))) -> 
F129: =IFERROR(VLOOKUP(CONCATENATE(B129,"_",C129,"_",D129),Список!A:B,2,0),"") ->  | G129: =IF(OR(D129="Excont",D129=""),"",IF(D129="URFU",IF(AND(B129=$N$2,C129=$O$2),$P$2,IF(AND(B129=$N$2,C129=$O$3),$P$3,IF(AND(B129=$N$4,C129=$O$2),$P$4,IF(AND(B129=Data!A119,C129=$O$3),$P$5,0)))))) -> 
F130: =IFERROR(VLOOKUP(CONCATENATE(B130,"_",C130,"_",D130),Список!A:B,2,0),"") ->  | G130: =IF(OR(D130="Excont",D130=""),"",IF(D130="URFU",IF(AND(B130=$N$2,C130=$O$2),$P$2,IF(AND(B130=$N$2,C130=$O$3),$P$3,IF(AND(B130=$N$4,C130=$O$2),$P$4,IF(AND(B130=Data!A120,C130=$O$3),$P$5,0)))))) -> 
F131: =IFERROR(VLOOKUP(CONCATENATE(B131,"_",C131,"_",D131),Список!A:B,2,0),"") ->  | G131: =IF(OR(D131="Excont",D131=""),"",IF(D131="URFU",IF(AND(B131=$N$2,C131=$O$2),$P$2,IF(AND(B131=$N$2,C131=$O$3),$P$3,IF(AND(B131=$N$4,C131=$O$2),$P$4,IF(AND(B131=Data!A121,C131=$O$3),$P$5,0)))))) -> 
F132: =IFERROR(VLOOKUP(CONCATENATE(B132,"_",C132,"_",D132),Список!A:B,2,0),"") ->  | G132: =IF(OR(D132="Excont",D132=""),"",IF(D132="URFU",IF(AND(B132=$N$2,C132=$O$2),$P$2,IF(AND(B132=$N$2,C132=$O$3),$P$3,IF(AND(B132=$N$4,C132=$O$2),$P$4,IF(AND(B132=Data!A122,C132=$O$3),$P$5,0)))))) -> 
F133: =IFERROR(VLOOKUP(CONCATENATE(B133,"_",C133,"_",D133),Список!A:B,2,0),"") ->  | G133: =IF(OR(D133="Excont",D133=""),"",IF(D133="URFU",IF(AND(B133=$N$2,C133=$O$2),$P$2,IF(AND(B133=$N$2,C133=$O$3),$P$3,IF(AND(B133=$N$4,C133=$O$2),$P$4,IF(AND(B133=Data!A123,C133=$O$3),$P$5,0)))))) -> 
F134: =IFERROR(VLOOKUP(CONCATENATE(B134,"_",C134,"_",D134),Список!A:B,2,0),"") ->  | G134: =IF(OR(D134="Excont",D134=""),"",IF(D134="URFU",IF(AND(B134=$N$2,C134=$O$2),$P$2,IF(AND(B134=$N$2,C134=$O$3),$P$3,IF(AND(B134=$N$4,C134=$O$2),$P$4,IF(AND(B134=Data!A124,C134=$O$3),$P$5,0)))))) -> 
F135: =IFERROR(VLOOKUP(CONCATENATE(B135,"_",C135,"_",D135),Список!A:B,2,0),"") ->  | G135: =IF(OR(D135="Excont",D135=""),"",IF(D135="URFU",IF(AND(B135=$N$2,C135=$O$2),$P$2,IF(AND(B135=$N$2,C135=$O$3),$P$3,IF(AND(B135=$N$4,C135=$O$2),$P$4,IF(AND(B135=Data!A125,C135=$O$3),$P$5,0)))))) -> 
F136: =IFERROR(VLOOKUP(CONCATENATE(B136,"_",C136,"_",D136),Список!A:B,2,0),"") ->  | G136: =IF(OR(D136="Excont",D136=""),"",IF(D136="URFU",IF(AND(B136=$N$2,C136=$O$2),$P$2,IF(AND(B136=$N$2,C136=$O$3),$P$3,IF(AND(B136=$N$4,C136=$O$2),$P$4,IF(AND(B136=Data!A126,C136=$O$3),$P$5,0)))))) -> 
F137: =IFERROR(VLOOKUP(CONCATENATE(B137,"_",C137,"_",D137),Список!A:B,2,0),"") ->  | G137: =IF(OR(D137="Excont",D137=""),"",IF(D137="URFU",IF(AND(B137=$N$2,C137=$O$2),$P$2,IF(AND(B137=$N$2,C137=$O$3),$P$3,IF(AND(B137=$N$4,C137=$O$2),$P$4,IF(AND(B137=Data!A127,C137=$O$3),$P$5,0)))))) -> 
F138: =IFERROR(VLOOKUP(CONCATENATE(B138,"_",C138,"_",D138),Список!A:B,2,0),"") ->  | G138: =IF(OR(D138="Excont",D138=""),"",IF(D138="URFU",IF(AND(B138=$N$2,C138=$O$2),$P$2,IF(AND(B138=$N$2,C138=$O$3),$P$3,IF(AND(B138=$N$4,C138=$O$2),$P$4,IF(AND(B138=Data!A128,C138=$O$3),$P$5,0)))))) -> 
G139: =IF(OR(D139="Excont",D139=""),"",IF(D139="URFU",IF(AND(B139=$N$2,C139=$O$2),$P$2,IF(AND(B139=$N$2,C139=$O$3),$P$3,IF(AND(B139=$N$4,C139=$O$2),$P$4,IF(AND(B139=Data!A129,C139=$O$3),$P$5,0)))))) -> 
G140: =IF(OR(D140="Excont",D140=""),"",IF(D140="URFU",IF(AND(B140=$N$2,C140=$O$2),$P$2,IF(AND(B140=$N$2,C140=$O$3),$P$3,IF(AND(B140=$N$4,C140=$O$2),$P$4,IF(AND(B140=Data!A130,C140=$O$3),$P$5,0)))))) -> 
G141: =IF(OR(D141="Excont",D141=""),"",IF(D141="URFU",IF(AND(B141=$N$2,C141=$O$2),$P$2,IF(AND(B141=$N$2,C141=$O$3),$P$3,IF(AND(B141=$N$4,C141=$O$2),$P$4,IF(AND(B141=Data!A131,C141=$O$3),$P$5,0)))))) -> 
G142: =IF(OR(D142="Excont",D142=""),"",IF(D142="URFU",IF(AND(B142=$N$2,C142=$O$2),$P$2,IF(AND(B142=$N$2,C142=$O$3),$P$3,IF(AND(B142=$N$4,C142=$O$2),$P$4,IF(AND(B142=Data!A132,C142=$O$3),$P$5,0)))))) -> 
G143: =IF(OR(D143="Excont",D143=""),"",IF(D143="URFU",IF(AND(B143=$N$2,C143=$O$2),$P$2,IF(AND(B143=$N$2,C143=$O$3),$P$3,IF(AND(B143=$N$4,C143=$O$2),$P$4,IF(AND(B143=Data!A133,C143=$O$3),$P$5,0)))))) -> 
G144: =IF(OR(D144="Excont",D144=""),"",IF(D144="URFU",IF(AND(B144=$N$2,C144=$O$2),$P$2,IF(AND(B144=$N$2,C144=$O$3),$P$3,IF(AND(B144=$N$4,C144=$O$2),$P$4,IF(AND(B144=Data!A134,C144=$O$3),$P$5,0)))))) -> 
G145: =IF(OR(D145="Excont",D145=""),"",IF(D145="URFU",IF(AND(B145=$N$2,C145=$O$2),$P$2,IF(AND(B145=$N$2,C145=$O$3),$P$3,IF(AND(B145=$N$4,C145=$O$2),$P$4,IF(AND(B145=Data!A135,C145=$O$3),$P$5,0)))))) -> 
G146: =IF(OR(D146="Excont",D146=""),"",IF(D146="URFU",IF(AND(B146=$N$2,C146=$O$2),$P$2,IF(AND(B146=$N$2,C146=$O$3),$P$3,IF(AND(B146=$N$4,C146=$O$2),$P$4,IF(AND(B146=Data!A136,C146=$O$3),$P$5,0)))))) -> 
G147: =IF(OR(D147="Excont",D147=""),"",IF(D147="URFU",IF(AND(B147=$N$2,C147=$O$2),$P$2,IF(AND(B147=$N$2,C147=$O$3),$P$3,IF(AND(B147=$N$4,C147=$O$2),$P$4,IF(AND(B147=Data!A137,C147=$O$3),$P$5,0)))))) -> 
G148: =IF(OR(D148="Excont",D148=""),"",IF(D148="URFU",IF(AND(B148=$N$2,C148=$O$2),$P$2,IF(AND(B148=$N$2,C148=$O$3),$P$3,IF(AND(B148=$N$4,C148=$O$2),$P$4,IF(AND(B148=Data!A138,C148=$O$3),$P$5,0)))))) -> 
G149: =IF(OR(D149="Excont",D149=""),"",IF(D149="URFU",IF(AND(B149=$N$2,C149=$O$2),$P$2,IF(AND(B149=$N$2,C149=$O$3),$P$3,IF(AND(B149=$N$4,C149=$O$2),$P$4,IF(AND(B149=Data!A139,C149=$O$3),$P$5,0)))))) -> 
G150: =IF(OR(D150="Excont",D150=""),"",IF(D150="URFU",IF(AND(B150=$N$2,C150=$O$2),$P$2,IF(AND(B150=$N$2,C150=$O$3),$P$3,IF(AND(B150=$N$4,C150=$O$2),$P$4,IF(AND(B150=Data!A140,C150=$O$3),$P$5,0)))))) -> 
G151: =IF(OR(D151="Excont",D151=""),"",IF(D151="URFU",IF(AND(B151=$N$2,C151=$O$2),$P$2,IF(AND(B151=$N$2,C151=$O$3),$P$3,IF(AND(B151=$N$4,C151=$O$2),$P$4,IF(AND(B151=Data!A141,C151=$O$3),$P$5,0)))))) -> 
G152: =IF(OR(D152="Excont",D152=""),"",IF(D152="URFU",IF(AND(B152=$N$2,C152=$O$2),$P$2,IF(AND(B152=$N$2,C152=$O$3),$P$3,IF(AND(B152=$N$4,C152=$O$2),$P$4,IF(AND(B152=Data!A142,C152=$O$3),$P$5,0)))))) -> 
G153: =IF(OR(D153="Excont",D153=""),"",IF(D153="URFU",IF(AND(B153=$N$2,C153=$O$2),$P$2,IF(AND(B153=$N$2,C153=$O$3),$P$3,IF(AND(B153=$N$4,C153=$O$2),$P$4,IF(AND(B153=Data!A143,C153=$O$3),$P$5,0)))))) -> 
G154: =IF(OR(D154="Excont",D154=""),"",IF(D154="URFU",IF(AND(B154=$N$2,C154=$O$2),$P$2,IF(AND(B154=$N$2,C154=$O$3),$P$3,IF(AND(B154=$N$4,C154=$O$2),$P$4,IF(AND(B154=Data!A144,C154=$O$3),$P$5,0)))))) -> 
G155: =IF(OR(D155="Excont",D155=""),"",IF(D155="URFU",IF(AND(B155=$N$2,C155=$O$2),$P$2,IF(AND(B155=$N$2,C155=$O$3),$P$3,IF(AND(B155=$N$4,C155=$O$2),$P$4,IF(AND(B155=Data!A145,C155=$O$3),$P$5,0)))))) -> 
G156: =IF(OR(D156="Excont",D156=""),"",IF(D156="URFU",IF(AND(B156=$N$2,C156=$O$2),$P$2,IF(AND(B156=$N$2,C156=$O$3),$P$3,IF(AND(B156=$N$4,C156=$O$2),$P$4,IF(AND(B156=Data!A146,C156=$O$3),$P$5,0)))))) -> 
G157: =IF(OR(D157="Excont",D157=""),"",IF(D157="URFU",IF(AND(B157=$N$2,C157=$O$2),$P$2,IF(AND(B157=$N$2,C157=$O$3),$P$3,IF(AND(B157=$N$4,C157=$O$2),$P$4,IF(AND(B157=Data!A147,C157=$O$3),$P$5,0)))))) -> 
G158: =IF(OR(D158="Excont",D158=""),"",IF(D158="URFU",IF(AND(B158=$N$2,C158=$O$2),$P$2,IF(AND(B158=$N$2,C158=$O$3),$P$3,IF(AND(B158=$N$4,C158=$O$2),$P$4,IF(AND(B158=Data!A148,C158=$O$3),$P$5,0)))))) -> 
G159: =IF(OR(D159="Excont",D159=""),"",IF(D159="URFU",IF(AND(B159=$N$2,C159=$O$2),$P$2,IF(AND(B159=$N$2,C159=$O$3),$P$3,IF(AND(B159=$N$4,C159=$O$2),$P$4,IF(AND(B159=Data!A149,C159=$O$3),$P$5,0)))))) -> 
G160: =IF(OR(D160="Excont",D160=""),"",IF(D160="URFU",IF(AND(B160=$N$2,C160=$O$2),$P$2,IF(AND(B160=$N$2,C160=$O$3),$P$3,IF(AND(B160=$N$4,C160=$O$2),$P$4,IF(AND(B160=Data!A150,C160=$O$3),$P$5,0)))))) -> 
G161: =IF(OR(D161="Excont",D161=""),"",IF(D161="URFU",IF(AND(B161=$N$2,C161=$O$2),$P$2,IF(AND(B161=$N$2,C161=$O$3),$P$3,IF(AND(B161=$N$4,C161=$O$2),$P$4,IF(AND(B161=Data!A151,C161=$O$3),$P$5,0)))))) -> 
G162: =IF(OR(D162="Excont",D162=""),"",IF(D162="URFU",IF(AND(B162=$N$2,C162=$O$2),$P$2,IF(AND(B162=$N$2,C162=$O$3),$P$3,IF(AND(B162=$N$4,C162=$O$2),$P$4,IF(AND(B162=Data!A152,C162=$O$3),$P$5,0)))))) -> 
G163: =IF(OR(D163="Excont",D163=""),"",IF(D163="URFU",IF(AND(B163=$N$2,C163=$O$2),$P$2,IF(AND(B163=$N$2,C163=$O$3),$P$3,IF(AND(B163=$N$4,C163=$O$2),$P$4,IF(AND(B163=Data!A153,C163=$O$3),$P$5,0)))))) -> 
G164: =IF(OR(D164="Excont",D164=""),"",IF(D164="URFU",IF(AND(B164=$N$2,C164=$O$2),$P$2,IF(AND(B164=$N$2,C164=$O$3),$P$3,IF(AND(B164=$N$4,C164=$O$2),$P$4,IF(AND(B164=Data!A154,C164=$O$3),$P$5,0)))))) -> 
G165: =IF(OR(D165="Excont",D165=""),"",IF(D165="URFU",IF(AND(B165=$N$2,C165=$O$2),$P$2,IF(AND(B165=$N$2,C165=$O$3),$P$3,IF(AND(B165=$N$4,C165=$O$2),$P$4,IF(AND(B165=Data!A155,C165=$O$3),$P$5,0)))))) -> 
G166: =IF(OR(D166="Excont",D166=""),"",IF(D166="URFU",IF(AND(B166=$N$2,C166=$O$2),$P$2,IF(AND(B166=$N$2,C166=$O$3),$P$3,IF(AND(B166=$N$4,C166=$O$2),$P$4,IF(AND(B166=Data!A156,C166=$O$3),$P$5,0)))))) -> 
G167: =IF(OR(D167="Excont",D167=""),"",IF(D167="URFU",IF(AND(B167=$N$2,C167=$O$2),$P$2,IF(AND(B167=$N$2,C167=$O$3),$P$3,IF(AND(B167=$N$4,C167=$O$2),$P$4,IF(AND(B167=Data!A157,C167=$O$3),$P$5,0)))))) -> 
G168: =IF(OR(D168="Excont",D168=""),"",IF(D168="URFU",IF(AND(B168=$N$2,C168=$O$2),$P$2,IF(AND(B168=$N$2,C168=$O$3),$P$3,IF(AND(B168=$N$4,C168=$O$2),$P$4,IF(AND(B168=Data!A158,C168=$O$3),$P$5,0)))))) -> 
G169: =IF(OR(D169="Excont",D169=""),"",IF(D169="URFU",IF(AND(B169=$N$2,C169=$O$2),$P$2,IF(AND(B169=$N$2,C169=$O$3),$P$3,IF(AND(B169=$N$4,C169=$O$2),$P$4,IF(AND(B169=Data!A159,C169=$O$3),$P$5,0)))))) -> 
G170: =IF(OR(D170="Excont",D170=""),"",IF(D170="URFU",IF(AND(B170=$N$2,C170=$O$2),$P$2,IF(AND(B170=$N$2,C170=$O$3),$P$3,IF(AND(B170=$N$4,C170=$O$2),$P$4,IF(AND(B170=Data!A160,C170=$O$3),$P$5,0)))))) -> 
G171: =IF(OR(D171="Excont",D171=""),"",IF(D171="URFU",IF(AND(B171=$N$2,C171=$O$2),$P$2,IF(AND(B171=$N$2,C171=$O$3),$P$3,IF(AND(B171=$N$4,C171=$O$2),$P$4,IF(AND(B171=Data!A161,C171=$O$3),$P$5,0)))))) -> 
G172: =IF(OR(D172="Excont",D172=""),"",IF(D172="URFU",IF(AND(B172=$N$2,C172=$O$2),$P$2,IF(AND(B172=$N$2,C172=$O$3),$P$3,IF(AND(B172=$N$4,C172=$O$2),$P$4,IF(AND(B172=Data!A162,C172=$O$3),$P$5,0)))))) -> 
G173: =IF(OR(D173="Excont",D173=""),"",IF(D173="URFU",IF(AND(B173=$N$2,C173=$O$2),$P$2,IF(AND(B173=$N$2,C173=$O$3),$P$3,IF(AND(B173=$N$4,C173=$O$2),$P$4,IF(AND(B173=Data!A163,C173=$O$3),$P$5,0)))))) -> 
G174: =IF(OR(D174="Excont",D174=""),"",IF(D174="URFU",IF(AND(B174=$N$2,C174=$O$2),$P$2,IF(AND(B174=$N$2,C174=$O$3),$P$3,IF(AND(B174=$N$4,C174=$O$2),$P$4,IF(AND(B174=Data!A164,C174=$O$3),$P$5,0)))))) -> 
G175: =IF(OR(D175="Excont",D175=""),"",IF(D175="URFU",IF(AND(B175=$N$2,C175=$O$2),$P$2,IF(AND(B175=$N$2,C175=$O$3),$P$3,IF(AND(B175=$N$4,C175=$O$2),$P$4,IF(AND(B175=Data!A165,C175=$O$3),$P$5,0)))))) -> 
G176: =IF(OR(D176="Excont",D176=""),"",IF(D176="URFU",IF(AND(B176=$N$2,C176=$O$2),$P$2,IF(AND(B176=$N$2,C176=$O$3),$P$3,IF(AND(B176=$N$4,C176=$O$2),$P$4,IF(AND(B176=Data!A166,C176=$O$3),$P$5,0)))))) -> 
G177: =IF(OR(D177="Excont",D177=""),"",IF(D177="URFU",IF(AND(B177=$N$2,C177=$O$2),$P$2,IF(AND(B177=$N$2,C177=$O$3),$P$3,IF(AND(B177=$N$4,C177=$O$2),$P$4,IF(AND(B177=Data!A167,C177=$O$3),$P$5,0)))))) -> 
G178: =IF(OR(D178="Excont",D178=""),"",IF(D178="URFU",IF(AND(B178=$N$2,C178=$O$2),$P$2,IF(AND(B178=$N$2,C178=$O$3),$P$3,IF(AND(B178=$N$4,C178=$O$2),$P$4,IF(AND(B178=Data!A168,C178=$O$3),$P$5,0)))))) -> 
G179: =IF(OR(D179="Excont",D179=""),"",IF(D179="URFU",IF(AND(B179=$N$2,C179=$O$2),$P$2,IF(AND(B179=$N$2,C179=$O$3),$P$3,IF(AND(B179=$N$4,C179=$O$2),$P$4,IF(AND(B179=Data!A169,C179=$O$3),$P$5,0)))))) -> 
G180: =IF(OR(D180="Excont",D180=""),"",IF(D180="URFU",IF(AND(B180=$N$2,C180=$O$2),$P$2,IF(AND(B180=$N$2,C180=$O$3),$P$3,IF(AND(B180=$N$4,C180=$O$2),$P$4,IF(AND(B180=Data!A170,C180=$O$3),$P$5,0)))))) -> 
G181: =IF(OR(D181="Excont",D181=""),"",IF(D181="URFU",IF(AND(B181=$N$2,C181=$O$2),$P$2,IF(AND(B181=$N$2,C181=$O$3),$P$3,IF(AND(B181=$N$4,C181=$O$2),$P$4,IF(AND(B181=Data!A171,C181=$O$3),$P$5,0)))))) -> 
G182: =IF(OR(D182="Excont",D182=""),"",IF(D182="URFU",IF(AND(B182=$N$2,C182=$O$2),$P$2,IF(AND(B182=$N$2,C182=$O$3),$P$3,IF(AND(B182=$N$4,C182=$O$2),$P$4,IF(AND(B182=Data!A172,C182=$O$3),$P$5,0)))))) -> 
G183: =IF(OR(D183="Excont",D183=""),"",IF(D183="URFU",IF(AND(B183=$N$2,C183=$O$2),$P$2,IF(AND(B183=$N$2,C183=$O$3),$P$3,IF(AND(B183=$N$4,C183=$O$2),$P$4,IF(AND(B183=Data!A173,C183=$O$3),$P$5,0)))))) -> 
G184: =IF(OR(D184="Excont",D184=""),"",IF(D184="URFU",IF(AND(B184=$N$2,C184=$O$2),$P$2,IF(AND(B184=$N$2,C184=$O$3),$P$3,IF(AND(B184=$N$4,C184=$O$2),$P$4,IF(AND(B184=Data!A174,C184=$O$3),$P$5,0)))))) -> 
G185: =IF(OR(D185="Excont",D185=""),"",IF(D185="URFU",IF(AND(B185=$N$2,C185=$O$2),$P$2,IF(AND(B185=$N$2,C185=$O$3),$P$3,IF(AND(B185=$N$4,C185=$O$2),$P$4,IF(AND(B185=Data!A175,C185=$O$3),$P$5,0)))))) -> 
G186: =IF(OR(D186="Excont",D186=""),"",IF(D186="URFU",IF(AND(B186=$N$2,C186=$O$2),$P$2,IF(AND(B186=$N$2,C186=$O$3),$P$3,IF(AND(B186=$N$4,C186=$O$2),$P$4,IF(AND(B186=Data!A176,C186=$O$3),$P$5,0)))))) -> 
G187: =IF(OR(D187="Excont",D187=""),"",IF(D187="URFU",IF(AND(B187=$N$2,C187=$O$2),$P$2,IF(AND(B187=$N$2,C187=$O$3),$P$3,IF(AND(B187=$N$4,C187=$O$2),$P$4,IF(AND(B187=Data!A177,C187=$O$3),$P$5,0)))))) -> 
G188: =IF(OR(D188="Excont",D188=""),"",IF(D188="URFU",IF(AND(B188=$N$2,C188=$O$2),$P$2,IF(AND(B188=$N$2,C188=$O$3),$P$3,IF(AND(B188=$N$4,C188=$O$2),$P$4,IF(AND(B188=Data!A178,C188=$O$3),$P$5,0)))))) -> 
G189: =IF(OR(D189="Excont",D189=""),"",IF(D189="URFU",IF(AND(B189=$N$2,C189=$O$2),$P$2,IF(AND(B189=$N$2,C189=$O$3),$P$3,IF(AND(B189=$N$4,C189=$O$2),$P$4,IF(AND(B189=Data!A179,C189=$O$3),$P$5,0)))))) -> 
G190: =IF(OR(D190="Excont",D190=""),"",IF(D190="URFU",IF(AND(B190=$N$2,C190=$O$2),$P$2,IF(AND(B190=$N$2,C190=$O$3),$P$3,IF(AND(B190=$N$4,C190=$O$2),$P$4,IF(AND(B190=Data!A180,C190=$O$3),$P$5,0)))))) -> 
G191: =IF(OR(D191="Excont",D191=""),"",IF(D191="URFU",IF(AND(B191=$N$2,C191=$O$2),$P$2,IF(AND(B191=$N$2,C191=$O$3),$P$3,IF(AND(B191=$N$4,C191=$O$2),$P$4,IF(AND(B191=Data!A181,C191=$O$3),$P$5,0)))))) -> 
G192: =IF(OR(D192="Excont",D192=""),"",IF(D192="URFU",IF(AND(B192=$N$2,C192=$O$2),$P$2,IF(AND(B192=$N$2,C192=$O$3),$P$3,IF(AND(B192=$N$4,C192=$O$2),$P$4,IF(AND(B192=Data!A182,C192=$O$3),$P$5,0)))))) -> 
G193: =IF(OR(D193="Excont",D193=""),"",IF(D193="URFU",IF(AND(B193=$N$2,C193=$O$2),$P$2,IF(AND(B193=$N$2,C193=$O$3),$P$3,IF(AND(B193=$N$4,C193=$O$2),$P$4,IF(AND(B193=Data!A183,C193=$O$3),$P$5,0)))))) -> 
G194: =IF(OR(D194="Excont",D194=""),"",IF(D194="URFU",IF(AND(B194=$N$2,C194=$O$2),$P$2,IF(AND(B194=$N$2,C194=$O$3),$P$3,IF(AND(B194=$N$4,C194=$O$2),$P$4,IF(AND(B194=Data!A184,C194=$O$3),$P$5,0)))))) -> 
G195: =IF(OR(D195="Excont",D195=""),"",IF(D195="URFU",IF(AND(B195=$N$2,C195=$O$2),$P$2,IF(AND(B195=$N$2,C195=$O$3),$P$3,IF(AND(B195=$N$4,C195=$O$2),$P$4,IF(AND(B195=Data!A185,C195=$O$3),$P$5,0)))))) -> 
G196: =IF(OR(D196="Excont",D196=""),"",IF(D196="URFU",IF(AND(B196=$N$2,C196=$O$2),$P$2,IF(AND(B196=$N$2,C196=$O$3),$P$3,IF(AND(B196=$N$4,C196=$O$2),$P$4,IF(AND(B196=Data!A186,C196=$O$3),$P$5,0)))))) -> 
G197: =IF(OR(D197="Excont",D197=""),"",IF(D197="URFU",IF(AND(B197=$N$2,C197=$O$2),$P$2,IF(AND(B197=$N$2,C197=$O$3),$P$3,IF(AND(B197=$N$4,C197=$O$2),$P$4,IF(AND(B197=Data!A187,C197=$O$3),$P$5,0)))))) -> 
G198: =IF(OR(D198="Excont",D198=""),"",IF(D198="URFU",IF(AND(B198=$N$2,C198=$O$2),$P$2,IF(AND(B198=$N$2,C198=$O$3),$P$3,IF(AND(B198=$N$4,C198=$O$2),$P$4,IF(AND(B198=Data!A188,C198=$O$3),$P$5,0)))))) -> 
G199: =IF(OR(D199="Excont",D199=""),"",IF(D199="URFU",IF(AND(B199=$N$2,C199=$O$2),$P$2,IF(AND(B199=$N$2,C199=$O$3),$P$3,IF(AND(B199=$N$4,C199=$O$2),$P$4,IF(AND(B199=Data!A189,C199=$O$3),$P$5,0)))))) -> 
G200: =IF(OR(D200="Excont",D200=""),"",IF(D200="URFU",IF(AND(B200=$N$2,C200=$O$2),$P$2,IF(AND(B200=$N$2,C200=$O$3),$P$3,IF(AND(B200=$N$4,C200=$O$2),$P$4,IF(AND(B200=Data!A190,C200=$O$3),$P$5,0)))))) -> 
... 799 more rows

Sheet Saving Subcontract
A1: Name of project | B1: Type of transport | C1: Forwarder | D1: Destination city | E1: Date | F1: Saving | G1: Cost of IP KONDRATYEV forwarder | H1: Final saving | I1: =SUM(F:F) -> 28000 | N1: IP KONDRATYEV | Q1: % | R1: 5t | S1: IP ASTAPENKO | T1: BALASHIHA
A2: Kolsness | B2: 5t | C2: IP ASTAPENKO | D2: SERPUKHOV-BALASHIHA | E2: 2020-05-01 | F2: =IFERROR(VLOOKUP(SUBSTITUTE(CONCATENATE(B2,"_",D2,"_",C2)," - ","_"),Список_Sub!A:B,2,0),"") -> 3000 | G2: =IF(AND(C2<>"IP KONDRATYEV",C2<>""),VLOOKUP(D2,$O$2:$P$13,2,0),"") -> 11000 | H2: % Reduction | I2: =I1/SUM(Data_Sub!B3:M3) -> 0.3684210526 | N2: 5t | O2: SERPUKHOV-BALASHIHA | P2: 11000 | S2: IP KONDRATYEV | T2: NOGINSK
A3: Kolsness | B3: 5t | C3: IP ASTAPENKO | D3: SERPUKHOV-NOGINSK | E3: 2020-05-01 | F3: =IFERROR(VLOOKUP(SUBSTITUTE(CONCATENATE(B3,"_",D3,"_",C3)," - ","_"),Список_Sub!A:B,2,0),"") -> 8000 | G3: =IF(AND(C3<>"IP KONDRATYEV",C3<>""),VLOOKUP(D3,$O$2:$P$13,2,0),"") -> 16000 | N3: 5t | O3: SERPUKHOV-NOGINSK | P3: 16000 | T3: PODOLSK
A4: M_STYCHEM | B4: 5t | C4: IP ASTAPENKO | D4: SERPUKHOV-BALASHIHA | E4: 2020-06-01 | F4: =IFERROR(VLOOKUP(SUBSTITUTE(CONCATENATE(B4,"_",D4,"_",C4)," - ","_"),Список_Sub!A:B,2,0),"") -> 3000 | G4: 11000 | N4: 5t | O4: SERPUKHOV-PODOLSK | P4: 9000 | T4: SOLNECHNOGORSK
A5: BORSOTDI-11 | B5: 5t | C5: IP ASTAPENKO | D5: BALASHIHA-SERPUKHOV | E5: 2020-06-01 | F5: =IFERROR(VLOOKUP(SUBSTITUTE(CONCATENATE(B5,"_",D5,"_",C5)," - ","_"),Список_Sub!A:B,2,0),"") -> 3000 | G5: 11000 | N5: 5t | O5: SERPUKHOV-SOLNECHNOGORSK | P5: 16000
A6: Kolsness | B6: 5t | C6: IP ASTAPENKO | D6: NOGINSK-SERPUKHOV | E6: 2020-07-01 | F6: =IFERROR(VLOOKUP(SUBSTITUTE(CONCATENATE(B6,"_",D6,"_",C6)," - ","_"),Список_Sub!A:B,2,0),"") -> 8000 | G6: 16000 | N6: 5t | O6: BALASHIHA-SERPUKHOV | P6: 11000
B7: 5t | C7: IP KONDRATYEV | D7: SERPUKHOV-PODOLSK | E7: 2020-02-01 | F7: =IFERROR(VLOOKUP(SUBSTITUTE(CONCATENATE(B7,"_",D7,"_",C7)," - ","_"),Список_Sub!A:B,2,0),"") -> 0 | N7: 5t | O7: NOGINSK-SERPUKHOV | P7: 16000
B8: 5t | C8: IP KONDRATYEV | D8: PODOLSK-SERPUKHOV | E8: 2020-02-01 | F8: =IFERROR(VLOOKUP(SUBSTITUTE(CONCATENATE(B8,"_",D8,"_",C8)," - ","_"),Список_Sub!A:B,2,0),"") -> 0 | N8: 5t | O8: PODOLSK-SERPUKHOV | P8: 9000
B9: 5t | C9: IP KONDRATYEV | D9: BALASHIHA-SERPUKHOV | E9: 2020-04-01 | F9: =IFERROR(VLOOKUP(SUBSTITUTE(CONCATENATE(B9,"_",D9,"_",C9)," - ","_"),Список_Sub!A:B,2,0),"") -> 0 | N9: 5t | O9: SOLNECHNOGORSK-SERPUKHOV | P9: 16000
B10: 5t | C10: IP KONDRATYEV | D10: SERPUKHOV-BALASHIHA | E10: 2020-05-01 | F10: =IFERROR(VLOOKUP(SUBSTITUTE(CONCATENATE(B10,"_",D10,"_",C10)," - ","_"),Список_Sub!A:B,2,0),"") -> 0 | N10: 5t | O10: SERPUKHOV-BALASHIHA-SERPUKHOV | P10: 19000
B11: 5t | C11: IP KONDRATYEV | D11: BALASHIHA-SERPUKHOV | E11: 2020-06-01 | F11: =IFERROR(VLOOKUP(SUBSTITUTE(CONCATENATE(B11,"_",D11,"_",C11)," - ","_"),Список_Sub!A:B,2,0),"") -> 0 | N11: 5t | O11: SERPUKHOV-NOGINSK-SERPUKHOV | P11: 22000
B12: 5t | C12: IP KONDRATYEV | D12: SERPUKHOV-BALASHIHA | E12: 2020-06-01 | F12: =IFERROR(VLOOKUP(SUBSTITUTE(CONCATENATE(B12,"_",D12,"_",C12)," - ","_"),Список_Sub!A:B,2,0),"") -> 0 | N12: 5t | O12: SERPUKHOV-PODOLSK-SERPUKHOV | P12: 15000
B13: 5t | C13: IP KONDRATYEV | D13: SERPUKHOV-PODOLSK | E13: 2020-08-01 | F13: =IFERROR(VLOOKUP(SUBSTITUTE(CONCATENATE(B13,"_",D13,"_",C13)," - ","_"),Список_Sub!A:B,2,0),"") -> 0 | N13: 5t | O13: SERPUKHOV-SOLNECHNOGORSK-SERPUKHOV | P13: 22000
A14: SOLVAMON-5 | B14: 5t | C14: IP ASTAPENKO | D14: SERPUKHOV-BALASHIHA | E14: 2020-09-01 | F14: =IFERROR(VLOOKUP(SUBSTITUTE(CONCATENATE(B14,"_",D14,"_",C14)," - ","_"),Список_Sub!A:B,2,0),"") -> 3000 | G14: 11000
F15: =IFERROR(VLOOKUP(SUBSTITUTE(CONCATENATE(B15,"_",D15,"_",C15)," - ","_"),Список_Sub!A:B,2,0),"") -> 
F16: =IFERROR(VLOOKUP(SUBSTITUTE(CONCATENATE(B16,"_",D16,"_",C16)," - ","_"),Список_Sub!A:B,2,0),"") -> 
F17: =IFERROR(VLOOKUP(SUBSTITUTE(CONCATENATE(B17,"_",D17,"_",C17)," - ","_"),Список_Sub!A:B,2,0),"") -> 
F18: =IFERROR(VLOOKUP(SUBSTITUTE(CONCATENATE(B18,"_",D18,"_",C18)," - ","_"),Список_Sub!A:B,2,0),"") -> 
F19: =IFERROR(VLOOKUP(SUBSTITUTE(CONCATENATE(B19,"_",D19,"_",C19)," - ","_"),Список_Sub!A:B,2,0),"") ->  | G19: =IF(AND(C19<>"IP KONDRATYEV",C19<>""),VLOOKUP(D19,$O$2:$P$13,2,0),"") -> 
F20: =IFERROR(VLOOKUP(SUBSTITUTE(CONCATENATE(B20,"_",D20,"_",C20)," - ","_"),Список_Sub!A:B,2,0),"") -> 
F21: =IFERROR(VLOOKUP(SUBSTITUTE(CONCATENATE(B21,"_",D21,"_",C21)," - ","_"),Список_Sub!A:B,2,0),"") -> 
F22: =IFERROR(VLOOKUP(SUBSTITUTE(CONCATENATE(B22,"_",D22,"_",C22)," - ","_"),Список_Sub!A:B,2,0),"") -> 
F23: =IFERROR(VLOOKUP(SUBSTITUTE(CONCATENATE(B23,"_",D23,"_",C23)," - ","_"),Список_Sub!A:B,2,0),"") -> 
F24: =IFERROR(VLOOKUP(SUBSTITUTE(CONCATENATE(B24,"_",D24,"_",C24)," - ","_"),Список_Sub!A:B,2,0),"") -> 
F25: =IFERROR(VLOOKUP(SUBSTITUTE(CONCATENATE(B25,"_",D25,"_",C25)," - ","_"),Список_Sub!A:B,2,0),"") -> 
F26: =IFERROR(VLOOKUP(SUBSTITUTE(CONCATENATE(B26,"_",D26,"_",C26)," - ","_"),Список_Sub!A:B,2,0),"") -> 
F27: =IFERROR(VLOOKUP(SUBSTITUTE(CONCATENATE(B27,"_",D27,"_",C27)," - ","_"),Список_Sub!A:B,2,0),"") -> 
F28: =IFERROR(VLOOKUP(SUBSTITUTE(CONCATENATE(B28,"_",D28,"_",C28)," - ","_"),Список_Sub!A:B,2,0),"") -> 
F29: =IFERROR(VLOOKUP(SUBSTITUTE(CONCATENATE(B29,"_",D29,"_",C29)," - ","_"),Список_Sub!A:B,2,0),"") -> 
F30: =IFERROR(VLOOKUP(SUBSTITUTE(CONCATENATE(B30,"_",D30,"_",C30)," - ","_"),Список_Sub!A:B,2,0),"") -> 
F31: =IFERROR(VLOOKUP(SUBSTITUTE(CONCATENATE(B31,"_",D31,"_",C31)," - ","_"),Список_Sub!A:B,2,0),"") -> 
F32: =IFERROR(VLOOKUP(SUBSTITUTE(CONCATENATE(B32,"_",D32,"_",C32)," - ","_"),Список_Sub!A:B,2,0),"") -> 
F33: =IFERROR(VLOOKUP(SUBSTITUTE(CONCATENATE(B33,"_",D33,"_",C33)," - ","_"),Список_Sub!A:B,2,0),"") -> 
F34: =IFERROR(VLOOKUP(SUBSTITUTE(CONCATENATE(B34,"_",D34,"_",C34)," - ","_"),Список_Sub!A:B,2,0),"") -> 
F35: =IFERROR(VLOOKUP(SUBSTITUTE(CONCATENATE(B35,"_",D35,"_",C35)," - ","_"),Список_Sub!A:B,2,0),"") -> 
F36: =IFERROR(VLOOKUP(SUBSTITUTE(CONCATENATE(B36,"_",D36,"_",C36)," - ","_"),Список_Sub!A:B,2,0),"") -> 
F37: =IFERROR(VLOOKUP(SUBSTITUTE(CONCATENATE(B37,"_",D37,"_",C37)," - ","_"),Список_Sub!A:B,2,0),"") -> 
F38: =IFERROR(VLOOKUP(SUBSTITUTE(CONCATENATE(B38,"_",D38,"_",C38)," - ","_"),Список_Sub!A:B,2,0),"") -> 
F39: =IFERROR(VLOOKUP(SUBSTITUTE(CONCATENATE(B39,"_",D39,"_",C39)," - ","_"),Список_Sub!A:B,2,0),"") -> 
F40: =IFERROR(VLOOKUP(SUBSTITUTE(CONCATENATE(B40,"_",D40,"_",C40)," - ","_"),Список_Sub!A:B,2,0),"") -> 
F41: =IFERROR(VLOOKUP(SUBSTITUTE(CONCATENATE(B41,"_",D41,"_",C41)," - ","_"),Список_Sub!A:B,2,0),"") -> 
F42: =IFERROR(VLOOKUP(SUBSTITUTE(CONCATENATE(B42,"_",D42,"_",C42)," - ","_"),Список_Sub!A:B,2,0),"") -> 
F43: =IFERROR(VLOOKUP(SUBSTITUTE(CONCATENATE(B43,"_",D43,"_",C43)," - ","_"),Список_Sub!A:B,2,0),"") -> 
F44: =IFERROR(VLOOKUP(SUBSTITUTE(CONCATENATE(B44,"_",D44,"_",C44)," - ","_"),Список_Sub!A:B,2,0),"") -> 
F45: =IFERROR(VLOOKUP(SUBSTITUTE(CONCATENATE(B45,"_",D45,"_",C45)," - ","_"),Список_Sub!A:B,2,0),"") -> 
F46: =IFERROR(VLOOKUP(SUBSTITUTE(CONCATENATE(B46,"_",D46,"_",C46)," - ","_"),Список_Sub!A:B,2,0),"") -> 
F47: =IFERROR(VLOOKUP(SUBSTITUTE(CONCATENATE(B47,"_",D47,"_",C47)," - ","_"),Список_Sub!A:B,2,0),"") -> 
F48: =IFERROR(VLOOKUP(SUBSTITUTE(CONCATENATE(B48,"_",D48,"_",C48)," - ","_"),Список_Sub!A:B,2,0),"") -> 
F49: =IFERROR(VLOOKUP(SUBSTITUTE(CONCATENATE(B49,"_",D49,"_",C49)," - ","_"),Список_Sub!A:B,2,0),"") -> 
F50: =IFERROR(VLOOKUP(SUBSTITUTE(CONCATENATE(B50,"_",D50,"_",C50)," - ","_"),Список_Sub!A:B,2,0),"") -> 
F51: =IFERROR(VLOOKUP(SUBSTITUTE(CONCATENATE(B51,"_",D51,"_",C51)," - ","_"),Список_Sub!A:B,2,0),"") -> 
F52: =IFERROR(VLOOKUP(SUBSTITUTE(CONCATENATE(B52,"_",D52,"_",C52)," - ","_"),Список_Sub!A:B,2,0),"") -> 
F53: =IFERROR(VLOOKUP(SUBSTITUTE(CONCATENATE(B53,"_",D53,"_",C53)," - ","_"),Список_Sub!A:B,2,0),"") -> 
F54: =IFERROR(VLOOKUP(SUBSTITUTE(CONCATENATE(B54,"_",D54,"_",C54)," - ","_"),Список_Sub!A:B,2,0),"") -> 
F55: =IFERROR(VLOOKUP(SUBSTITUTE(CONCATENATE(B55,"_",D55,"_",C55)," - ","_"),Список_Sub!A:B,2,0),"") -> 
F56: =IFERROR(VLOOKUP(SUBSTITUTE(CONCATENATE(B56,"_",D56,"_",C56)," - ","_"),Список_Sub!A:B,2,0),"") -> 
F57: =IFERROR(VLOOKUP(SUBSTITUTE(CONCATENATE(B57,"_",D57,"_",C57)," - ","_"),Список_Sub!A:B,2,0),"") -> 
F58: =IFERROR(VLOOKUP(SUBSTITUTE(CONCATENATE(B58,"_",D58,"_",C58)," - ","_"),Список_Sub!A:B,2,0),"") -> 
F59: =IFERROR(VLOOKUP(SUBSTITUTE(CONCATENATE(B59,"_",D59,"_",C59)," - ","_"),Список_Sub!A:B,2,0),"") -> 
F60: =IFERROR(VLOOKUP(SUBSTITUTE(CONCATENATE(B60,"_",D60,"_",C60)," - ","_"),Список_Sub!A:B,2,0),"") -> 
F61: =IFERROR(VLOOKUP(SUBSTITUTE(CONCATENATE(B61,"_",D61,"_",C61)," - ","_"),Список_Sub!A:B,2,0),"") -> 
F62: =IFERROR(VLOOKUP(SUBSTITUTE(CONCATENATE(B62,"_",D62,"_",C62)," - ","_"),Список_Sub!A:B,2,0),"") -> 
F63: =IFERROR(VLOOKUP(SUBSTITUTE(CONCATENATE(B63,"_",D63,"_",C63)," - ","_"),Список_Sub!A:B,2,0),"") -> 
F64: =IFERROR(VLOOKUP(SUBSTITUTE(CONCATENATE(B64,"_",D64,"_",C64)," - ","_"),Список_Sub!A:B,2,0),"") -> 
F65: =IFERROR(VLOOKUP(SUBSTITUTE(CONCATENATE(B65,"_",D65,"_",C65)," - ","_"),Список_Sub!A:B,2,0),"") -> 
F66: =IFERROR(VLOOKUP(SUBSTITUTE(CONCATENATE(B66,"_",D66,"_",C66)," - ","_"),Список_Sub!A:B,2,0),"") -> 
F67: =IFERROR(VLOOKUP(SUBSTITUTE(CONCATENATE(B67,"_",D67,"_",C67)," - ","_"),Список_Sub!A:B,2,0),"") ->  | G67: =IF(AND(C67<>"IP KONDRATYEV",C67<>""),VLOOKUP(D67,$O$2:$P$13,2,0),"") -> 
F68: =IFERROR(VLOOKUP(SUBSTITUTE(CONCATENATE(B68,"_",D68,"_",C68)," - ","_"),Список_Sub!A:B,2,0),"") -> 
F69: =IFERROR(VLOOKUP(SUBSTITUTE(CONCATENATE(B69,"_",D69,"_",C69)," - ","_"),Список_Sub!A:B,2,0),"") -> 
F70: =IFERROR(VLOOKUP(SUBSTITUTE(CONCATENATE(B70,"_",D70,"_",C70)," - ","_"),Список_Sub!A:B,2,0),"") -> 
F71: =IFERROR(VLOOKUP(SUBSTITUTE(CONCATENATE(B71,"_",D71,"_",C71)," - ","_"),Список_Sub!A:B,2,0),"") -> 
F72: =IFERROR(VLOOKUP(SUBSTITUTE(CONCATENATE(B72,"_",D72,"_",C72)," - ","_"),Список_Sub!A:B,2,0),"") -> 
F73: =IFERROR(VLOOKUP(SUBSTITUTE(CONCATENATE(B73,"_",D73,"_",C73)," - ","_"),Список_Sub!A:B,2,0),"") -> 
F74: =IFERROR(VLOOKUP(SUBSTITUTE(CONCATENATE(B74,"_",D74,"_",C74)," - ","_"),Список_Sub!A:B,2,0),"") -> 
F75: =IFERROR(VLOOKUP(SUBSTITUTE(CONCATENATE(B75,"_",D75,"_",C75)," - ","_"),Список_Sub!A:B,2,0),"") -> 
F76: =IFERROR(VLOOKUP(SUBSTITUTE(CONCATENATE(B76,"_",D76,"_",C76)," - ","_"),Список_Sub!A:B,2,0),"") -> 
F77: =IFERROR(VLOOKUP(SUBSTITUTE(CONCATENATE(B77,"_",D77,"_",C77)," - ","_"),Список_Sub!A:B,2,0),"") -> 
F78: =IFERROR(VLOOKUP(SUBSTITUTE(CONCATENATE(B78,"_",D78,"_",C78)," - ","_"),Список_Sub!A:B,2,0),"") -> 
F79: =IFERROR(VLOOKUP(SUBSTITUTE(CONCATENATE(B79,"_",D79,"_",C79)," - ","_"),Список_Sub!A:B,2,0),"") -> 
F80: =IFERROR(VLOOKUP(SUBSTITUTE(CONCATENATE(B80,"_",D80,"_",C80)," - ","_"),Список_Sub!A:B,2,0),"") -> 
F81: =IFERROR(VLOOKUP(SUBSTITUTE(CONCATENATE(B81,"_",D81,"_",C81)," - ","_"),Список_Sub!A:B,2,0),"") -> 
F82: =IFERROR(VLOOKUP(SUBSTITUTE(CONCATENATE(B82,"_",D82,"_",C82)," - ","_"),Список_Sub!A:B,2,0),"") -> 
F83: =IFERROR(VLOOKUP(SUBSTITUTE(CONCATENATE(B83,"_",D83,"_",C83)," - ","_"),Список_Sub!A:B,2,0),"") -> 
F84: =IFERROR(VLOOKUP(SUBSTITUTE(CONCATENATE(B84,"_",D84,"_",C84)," - ","_"),Список_Sub!A:B,2,0),"") -> 
F85: =IFERROR(VLOOKUP(SUBSTITUTE(CONCATENATE(B85,"_",D85,"_",C85)," - ","_"),Список_Sub!A:B,2,0),"") -> 
F86: =IFERROR(VLOOKUP(SUBSTITUTE(CONCATENATE(B86,"_",D86,"_",C86)," - ","_"),Список_Sub!A:B,2,0),"") -> 
F87: =IFERROR(VLOOKUP(SUBSTITUTE(CONCATENATE(B87,"_",D87,"_",C87)," - ","_"),Список_Sub!A:B,2,0),"") -> 
F88: =IFERROR(VLOOKUP(SUBSTITUTE(CONCATENATE(B88,"_",D88,"_",C88)," - ","_"),Список_Sub!A:B,2,0),"") -> 
F89: =IFERROR(VLOOKUP(SUBSTITUTE(CONCATENATE(B89,"_",D89,"_",C89)," - ","_"),Список_Sub!A:B,2,0),"") -> 
F90: =IFERROR(VLOOKUP(SUBSTITUTE(CONCATENATE(B90,"_",D90,"_",C90)," - ","_"),Список_Sub!A:B,2,0),"") -> 
F91: =IFERROR(VLOOKUP(SUBSTITUTE(CONCATENATE(B91,"_",D91,"_",C91)," - ","_"),Список_Sub!A:B,2,0),"") -> 
F92: =IFERROR(VLOOKUP(SUBSTITUTE(CONCATENATE(B92,"_",D92,"_",C92)," - ","_"),Список_Sub!A:B,2,0),"") -> 
F93: =IFERROR(VLOOKUP(SUBSTITUTE(CONCATENATE(B93,"_",D93,"_",C93)," - ","_"),Список_Sub!A:B,2,0),"") -> 
F94: =IFERROR(VLOOKUP(SUBSTITUTE(CONCATENATE(B94,"_",D94,"_",C94)," - ","_"),Список_Sub!A:B,2,0),"") -> 
F95: =IFERROR(VLOOKUP(SUBSTITUTE(CONCATENATE(B95,"_",D95,"_",C95)," - ","_"),Список_Sub!A:B,2,0),"") -> 
F96: =IFERROR(VLOOKUP(SUBSTITUTE(CONCATENATE(B96,"_",D96,"_",C96)," - ","_"),Список_Sub!A:B,2,0),"") -> 
F97: =IFERROR(VLOOKUP(SUBSTITUTE(CONCATENATE(B97,"_",D97,"_",C97)," - ","_"),Список_Sub!A:B,2,0),"") -> 
F98: =IFERROR(VLOOKUP(SUBSTITUTE(CONCATENATE(B98,"_",D98,"_",C98)," - ","_"),Список_Sub!A:B,2,0),"") -> 
F99: =IFERROR(VLOOKUP(SUBSTITUTE(CONCATENATE(B99,"_",D99,"_",C99)," - ","_"),Список_Sub!A:B,2,0),"") -> 
F100: =IFERROR(VLOOKUP(SUBSTITUTE(CONCATENATE(B100,"_",D100,"_",C100)," - ","_"),Список_Sub!A:B,2,0),"") -> 
F101: =IFERROR(VLOOKUP(SUBSTITUTE(CONCATENATE(B101,"_",D101,"_",C101)," - ","_"),Список_Sub!A:B,2,0),"") -> 
F102: =IFERROR(VLOOKUP(SUBSTITUTE(CONCATENATE(B102,"_",D102,"_",C102)," - ","_"),Список_Sub!A:B,2,0),"") -> 
F103: =IFERROR(VLOOKUP(SUBSTITUTE(CONCATENATE(B103,"_",D103,"_",C103)," - ","_"),Список_Sub!A:B,2,0),"") -> 
F104: =IFERROR(VLOOKUP(SUBSTITUTE(CONCATENATE(B104,"_",D104,"_",C104)," - ","_"),Список_Sub!A:B,2,0),"") -> 
F105: =IFERROR(VLOOKUP(SUBSTITUTE(CONCATENATE(B105,"_",D105,"_",C105)," - ","_"),Список_Sub!A:B,2,0),"") -> 
F106: =IFERROR(VLOOKUP(SUBSTITUTE(CONCATENATE(B106,"_",D106,"_",C106)," - ","_"),Список_Sub!A:B,2,0),"") -> 
F107: =IFERROR(VLOOKUP(SUBSTITUTE(CONCATENATE(B107,"_",D107,"_",C107)," - ","_"),Список_Sub!A:B,2,0),"") -> 
F108: =IFERROR(VLOOKUP(SUBSTITUTE(CONCATENATE(B108,"_",D108,"_",C108)," - ","_"),Список_Sub!A:B,2,0),"") -> 
F109: =IFERROR(VLOOKUP(SUBSTITUTE(CONCATENATE(B109,"_",D109,"_",C109)," - ","_"),Список_Sub!A:B,2,0),"") -> 
F110: =IFERROR(VLOOKUP(SUBSTITUTE(CONCATENATE(B110,"_",D110,"_",C110)," - ","_"),Список_Sub!A:B,2,0),"") -> 
F111: =IFERROR(VLOOKUP(SUBSTITUTE(CONCATENATE(B111,"_",D111,"_",C111)," - ","_"),Список_Sub!A:B,2,0),"") -> 
F112: =IFERROR(VLOOKUP(SUBSTITUTE(CONCATENATE(B112,"_",D112,"_",C112)," - ","_"),Список_Sub!A:B,2,0),"") -> 
F113: =IFERROR(VLOOKUP(SUBSTITUTE(CONCATENATE(B113,"_",D113,"_",C113)," - ","_"),Список_Sub!A:B,2,0),"") -> 
F114: =IFERROR(VLOOKUP(SUBSTITUTE(CONCATENATE(B114,"_",D114,"_",C114)," - ","_"),Список_Sub!A:B,2,0),"") -> 
F115: =IFERROR(VLOOKUP(SUBSTITUTE(CONCATENATE(B115,"_",D115,"_",C115)," - ","_"),Список_Sub!A:B,2,0),"") -> 
F116: =IFERROR(VLOOKUP(SUBSTITUTE(CONCATENATE(B116,"_",D116,"_",C116)," - ","_"),Список_Sub!A:B,2,0),"") -> 
F117: =IFERROR(VLOOKUP(SUBSTITUTE(CONCATENATE(B117,"_",D117,"_",C117)," - ","_"),Список_Sub!A:B,2,0),"") -> 
F118: =IFERROR(VLOOKUP(SUBSTITUTE(CONCATENATE(B118,"_",D118,"_",C118)," - ","_"),Список_Sub!A:B,2,0),"") -> 
F119: =IFERROR(VLOOKUP(SUBSTITUTE(CONCATENATE(B119,"_",D119,"_",C119)," - ","_"),Список_Sub!A:B,2,0),"") -> 
F120: =IFERROR(VLOOKUP(SUBSTITUTE(CONCATENATE(B120,"_",D120,"_",C120)," - ","_"),Список_Sub!A:B,2,0),"") -> 
F121: =IFERROR(VLOOKUP(SUBSTITUTE(CONCATENATE(B121,"_",D121,"_",C121)," - ","_"),Список_Sub!A:B,2,0),"") -> 
F122: =IFERROR(VLOOKUP(SUBSTITUTE(CONCATENATE(B122,"_",D122,"_",C122)," - ","_"),Список_Sub!A:B,2,0),"") -> 
F123: =IFERROR(VLOOKUP(SUBSTITUTE(CONCATENATE(B123,"_",D123,"_",C123)," - ","_"),Список_Sub!A:B,2,0),"") -> 
F124: =IFERROR(VLOOKUP(SUBSTITUTE(CONCATENATE(B124,"_",D124,"_",C124)," - ","_"),Список_Sub!A:B,2,0),"") -> 
F125: =IFERROR(VLOOKUP(SUBSTITUTE(CONCATENATE(B125,"_",D125,"_",C125)," - ","_"),Список_Sub!A:B,2,0),"") -> 
F126: =IFERROR(VLOOKUP(SUBSTITUTE(CONCATENATE(B126,"_",D126,"_",C126)," - ","_"),Список_Sub!A:B,2,0),"") -> 
F127: =IFERROR(VLOOKUP(SUBSTITUTE(CONCATENATE(B127,"_",D127,"_",C127)," - ","_"),Список_Sub!A:B,2,0),"") -> 
F128: =IFERROR(VLOOKUP(SUBSTITUTE(CONCATENATE(B128,"_",D128,"_",C128)," - ","_"),Список_Sub!A:B,2,0),"") -> 
F129: =IFERROR(VLOOKUP(SUBSTITUTE(CONCATENATE(B129,"_",D129,"_",C129)," - ","_"),Список_Sub!A:B,2,0),"") -> 
F130: =IFERROR(VLOOKUP(SUBSTITUTE(CONCATENATE(B130,"_",D130,"_",C130)," - ","_"),Список_Sub!A:B,2,0),"") -> 
F131: =IFERROR(VLOOKUP(SUBSTITUTE(CONCATENATE(B131,"_",D131,"_",C131)," - ","_"),Список_Sub!A:B,2,0),"") ->  | G131: =IF(AND(C131<>"IP KONDRATYEV",C131<>""),VLOOKUP(D131,$O$2:$P$13,2,0),"") -> 
F132: =IFERROR(VLOOKUP(SUBSTITUTE(CONCATENATE(B132,"_",D132,"_",C132)," - ","_"),Список_Sub!A:B,2,0),"") -> 
F133: =IFERROR(VLOOKUP(SUBSTITUTE(CONCATENATE(B133,"_",D133,"_",C133)," - ","_"),Список_Sub!A:B,2,0),"") -> 
F134: =IFERROR(VLOOKUP(SUBSTITUTE(CONCATENATE(B134,"_",D134,"_",C134)," - ","_"),Список_Sub!A:B,2,0),"") -> 
F135: =IFERROR(VLOOKUP(SUBSTITUTE(CONCATENATE(B135,"_",D135,"_",C135)," - ","_"),Список_Sub!A:B,2,0),"") -> 
F136: =IFERROR(VLOOKUP(SUBSTITUTE(CONCATENATE(B136,"_",D136,"_",C136)," - ","_"),Список_Sub!A:B,2,0),"") -> 
F137: =IFERROR(VLOOKUP(SUBSTITUTE(CONCATENATE(B137,"_",D137,"_",C137)," - ","_"),Список_Sub!A:B,2,0),"") -> 
F138: =IFERROR(VLOOKUP(SUBSTITUTE(CONCATENATE(B138,"_",D138,"_",C138)," - ","_"),Список_Sub!A:B,2,0),"") -> 
F139: =IFERROR(VLOOKUP(SUBSTITUTE(CONCATENATE(B139,"_",D139,"_",C139)," - ","_"),Список_Sub!A:B,2,0),"") -> 
F140: =IFERROR(VLOOKUP(SUBSTITUTE(CONCATENATE(B140,"_",D140,"_",C140)," - ","_"),Список_Sub!A:B,2,0),"") -> 
F141: =IFERROR(VLOOKUP(SUBSTITUTE(CONCATENATE(B141,"_",D141,"_",C141)," - ","_"),Список_Sub!A:B,2,0),"") -> 
F142: =IFERROR(VLOOKUP(SUBSTITUTE(CONCATENATE(B142,"_",D142,"_",C142)," - ","_"),Список_Sub!A:B,2,0),"") -> 
F143: =IFERROR(VLOOKUP(SUBSTITUTE(CONCATENATE(B143,"_",D143,"_",C143)," - ","_"),Список_Sub!A:B,2,0),"") -> 
F144: =IFERROR(VLOOKUP(SUBSTITUTE(CONCATENATE(B144,"_",D144,"_",C144)," - ","_"),Список_Sub!A:B,2,0),"") -> 
F145: =IFERROR(VLOOKUP(SUBSTITUTE(CONCATENATE(B145,"_",D145,"_",C145)," - ","_"),Список_Sub!A:B,2,0),"") -> 
F146: =IFERROR(VLOOKUP(SUBSTITUTE(CONCATENATE(B146,"_",D146,"_",C146)," - ","_"),Список_Sub!A:B,2,0),"") -> 
F147: =IFERROR(VLOOKUP(SUBSTITUTE(CONCATENATE(B147,"_",D147,"_",C147)," - ","_"),Список_Sub!A:B,2,0),"") -> 
F148: =IFERROR(VLOOKUP(SUBSTITUTE(CONCATENATE(B148,"_",D148,"_",C148)," - ","_"),Список_Sub!A:B,2,0),"") -> 
F149: =IFERROR(VLOOKUP(SUBSTITUTE(CONCATENATE(B149,"_",D149,"_",C149)," - ","_"),Список_Sub!A:B,2,0),"") -> 
F150: =IFERROR(VLOOKUP(SUBSTITUTE(CONCATENATE(B150,"_",D150,"_",C150)," - ","_"),Список_Sub!A:B,2,0),"") -> 
F151: =IFERROR(VLOOKUP(SUBSTITUTE(CONCATENATE(B151,"_",D151,"_",C151)," - ","_"),Список_Sub!A:B,2,0),"") -> 
F152: =IFERROR(VLOOKUP(SUBSTITUTE(CONCATENATE(B152,"_",D152,"_",C152)," - ","_"),Список_Sub!A:B,2,0),"") -> 
F153: =IFERROR(VLOOKUP(SUBSTITUTE(CONCATENATE(B153,"_",D153,"_",C153)," - ","_"),Список_Sub!A:B,2,0),"") -> 
F154: =IFERROR(VLOOKUP(SUBSTITUTE(CONCATENATE(B154,"_",D154,"_",C154)," - ","_"),Список_Sub!A:B,2,0),"") -> 
F155: =IFERROR(VLOOKUP(SUBSTITUTE(CONCATENATE(B155,"_",D155,"_",C155)," - ","_"),Список_Sub!A:B,2,0),"") -> 
F156: =IFERROR(VLOOKUP(SUBSTITUTE(CONCATENATE(B156,"_",D156,"_",C156)," - ","_"),Список_Sub!A:B,2,0),"") -> 
F157: =IFERROR(VLOOKUP(SUBSTITUTE(CONCATENATE(B157,"_",D157,"_",C157)," - ","_"),Список_Sub!A:B,2,0),"") -> 
F158: =IFERROR(VLOOKUP(SUBSTITUTE(CONCATENATE(B158,"_",D158,"_",C158)," - ","_"),Список_Sub!A:B,2,0),"") -> 
F159: =IFERROR(VLOOKUP(SUBSTITUTE(CONCATENATE(B159,"_",D159,"_",C159)," - ","_"),Список_Sub!A:B,2,0),"") -> 
F160: =IFERROR(VLOOKUP(SUBSTITUTE(CONCATENATE(B160,"_",D160,"_",C160)," - ","_"),Список_Sub!A:B,2,0),"") -> 
F161: =IFERROR(VLOOKUP(SUBSTITUTE(CONCATENATE(B161,"_",D161,"_",C161)," - ","_"),Список_Sub!A:B,2,0),"") -> 
F162: =IFERROR(VLOOKUP(SUBSTITUTE(CONCATENATE(B162,"_",D162,"_",C162)," - ","_"),Список_Sub!A:B,2,0),"") -> 
F163: =IFERROR(VLOOKUP(SUBSTITUTE(CONCATENATE(B163,"_",D163,"_",C163)," - ","_"),Список_Sub!A:B,2,0),"") -> 
F164: =IFERROR(VLOOKUP(SUBSTITUTE(CONCATENATE(B164,"_",D164,"_",C164)," - ","_"),Список_Sub!A:B,2,0),"") -> 
F165: =IFERROR(VLOOKUP(SUBSTITUTE(CONCATENATE(B165,"_",D165,"_",C165)," - ","_"),Список_Sub!A:B,2,0),"") -> 
F166: =IFERROR(VLOOKUP(SUBSTITUTE(CONCATENATE(B166,"_",D166,"_",C166)," - ","_"),Список_Sub!A:B,2,0),"") -> 
F167: =IFERROR(VLOOKUP(SUBSTITUTE(CONCATENATE(B167,"_",D167,"_",C167)," - ","_"),Список_Sub!A:B,2,0),"") -> 
F168: =IFERROR(VLOOKUP(SUBSTITUTE(CONCATENATE(B168,"_",D168,"_",C168)," - ","_"),Список_Sub!A:B,2,0),"") -> 
F169: =IFERROR(VLOOKUP(SUBSTITUTE(CONCATENATE(B169,"_",D169,"_",C169)," - ","_"),Список_Sub!A:B,2,0),"") -> 
F170: =IFERROR(VLOOKUP(SUBSTITUTE(CONCATENATE(B170,"_",D170,"_",C170)," - ","_"),Список_Sub!A:B,2,0),"") -> 
F171: =IFERROR(VLOOKUP(SUBSTITUTE(CONCATENATE(B171,"_",D171,"_",C171)," - ","_"),Список_Sub!A:B,2,0),"") -> 
F172: =IFERROR(VLOOKUP(SUBSTITUTE(CONCATENATE(B172,"_",D172,"_",C172)," - ","_"),Список_Sub!A:B,2,0),"") -> 
F173: =IFERROR(VLOOKUP(SUBSTITUTE(CONCATENATE(B173,"_",D173,"_",C173)," - ","_"),Список_Sub!A:B,2,0),"") -> 
F174: =IFERROR(VLOOKUP(SUBSTITUTE(CONCATENATE(B174,"_",D174,"_",C174)," - ","_"),Список_Sub!A:B,2,0),"") -> 
F175: =IFERROR(VLOOKUP(SUBSTITUTE(CONCATENATE(B175,"_",D175,"_",C175)," - ","_"),Список_Sub!A:B,2,0),"") -> 
F176: =IFERROR(VLOOKUP(SUBSTITUTE(CONCATENATE(B176,"_",D176,"_",C176)," - ","_"),Список_Sub!A:B,2,0),"") -> 
F177: =IFERROR(VLOOKUP(SUBSTITUTE(CONCATENATE(B177,"_",D177,"_",C177)," - ","_"),Список_Sub!A:B,2,0),"") -> 
F178: =IFERROR(VLOOKUP(SUBSTITUTE(CONCATENATE(B178,"_",D178,"_",C178)," - ","_"),Список_Sub!A:B,2,0),"") -> 
F179: =IFERROR(VLOOKUP(SUBSTITUTE(CONCATENATE(B179,"_",D179,"_",C179)," - ","_"),Список_Sub!A:B,2,0),"") -> 
F180: =IFERROR(VLOOKUP(SUBSTITUTE(CONCATENATE(B180,"_",D180,"_",C180)," - ","_"),Список_Sub!A:B,2,0),"") -> 
F181: =IFERROR(VLOOKUP(SUBSTITUTE(CONCATENATE(B181,"_",D181,"_",C181)," - ","_"),Список_Sub!A:B,2,0),"") -> 
F182: =IFERROR(VLOOKUP(SUBSTITUTE(CONCATENATE(B182,"_",D182,"_",C182)," - ","_"),Список_Sub!A:B,2,0),"") -> 
F183: =IFERROR(VLOOKUP(SUBSTITUTE(CONCATENATE(B183,"_",D183,"_",C183)," - ","_"),Список_Sub!A:B,2,0),"") -> 
F184: =IFERROR(VLOOKUP(SUBSTITUTE(CONCATENATE(B184,"_",D184,"_",C184)," - ","_"),Список_Sub!A:B,2,0),"") -> 
F185: =IFERROR(VLOOKUP(SUBSTITUTE(CONCATENATE(B185,"_",D185,"_",C185)," - ","_"),Список_Sub!A:B,2,0),"") -> 
F186: =IFERROR(VLOOKUP(SUBSTITUTE(CONCATENATE(B186,"_",D186,"_",C186)," - ","_"),Список_Sub!A:B,2,0),"") -> 
F187: =IFERROR(VLOOKUP(SUBSTITUTE(CONCATENATE(B187,"_",D187,"_",C187)," - ","_"),Список_Sub!A:B,2,0),"") -> 
F188: =IFERROR(VLOOKUP(SUBSTITUTE(CONCATENATE(B188,"_",D188,"_",C188)," - ","_"),Список_Sub!A:B,2,0),"") -> 
F189: =IFERROR(VLOOKUP(SUBSTITUTE(CONCATENATE(B189,"_",D189,"_",C189)," - ","_"),Список_Sub!A:B,2,0),"") -> 
F190: =IFERROR(VLOOKUP(SUBSTITUTE(CONCATENATE(B190,"_",D190,"_",C190)," - ","_"),Список_Sub!A:B,2,0),"") -> 
F191: =IFERROR(VLOOKUP(SUBSTITUTE(CONCATENATE(B191,"_",D191,"_",C191)," - ","_"),Список_Sub!A:B,2,0),"") -> 
F192: =IFERROR(VLOOKUP(SUBSTITUTE(CONCATENATE(B192,"_",D192,"_",C192)," - ","_"),Список_Sub!A:B,2,0),"") -> 
F193: =IFERROR(VLOOKUP(SUBSTITUTE(CONCATENATE(B193,"_",D193,"_",C193)," - ","_"),Список_Sub!A:B,2,0),"") -> 
F194: =IFERROR(VLOOKUP(SUBSTITUTE(CONCATENATE(B194,"_",D194,"_",C194)," - ","_"),Список_Sub!A:B,2,0),"") -> 
F195: =IFERROR(VLOOKUP(SUBSTITUTE(CONCATENATE(B195,"_",D195,"_",C195)," - ","_"),Список_Sub!A:B,2,0),"") ->  | G195: =IF(AND(C195<>"IP KONDRATYEV",C195<>""),VLOOKUP(D195,$O$2:$P$13,2,0),"") -> 
F196: =IFERROR(VLOOKUP(SUBSTITUTE(CONCATENATE(B196,"_",D196,"_",C196)," - ","_"),Список_Sub!A:B,2,0),"") -> 
F197: =IFERROR(VLOOKUP(SUBSTITUTE(CONCATENATE(B197,"_",D197,"_",C197)," - ","_"),Список_Sub!A:B,2,0),"") -> 
F198: =IFERROR(VLOOKUP(SUBSTITUTE(CONCATENATE(B198,"_",D198,"_",C198)," - ","_"),Список_Sub!A:B,2,0),"") -> 
F199: =IFERROR(VLOOKUP(SUBSTITUTE(CONCATENATE(B199,"_",D199,"_",C199)," - ","_"),Список_Sub!A:B,2,0),"") -> 
F200: =IFERROR(VLOOKUP(SUBSTITUTE(CONCATENATE(B200,"_",D200,"_",C200)," - ","_"),Список_Sub!A:B,2,0),"") -> 
... 800 more rows

Sheet FSTEC 2019 (hidden)
A1: Name of project | B1: Conclusion or License? | C1: Urgent or not? | D1: Forwarder | E1: Date | F1: Saving | H1: Final saving | I1: =SUM(F:F) -> 0
A2: NAPH-GOT ST1-3_9053863 | B2: Conclusion | C2: Not | D2: Excont | E2: 2019-01-01 | F2: =IFERROR(VLOOKUP(CONCATENATE(B2,"_",C2,"_",D2),Список!A:B,2,0),"") -> 0
A3: RUSSIAPACK_9057008 | B3: Conclusion | C3: Not | D3: Excont | E3: 2019-02-01 | F3: =IFERROR(VLOOKUP(CONCATENATE(B3,"_",C3,"_",D3),Список!A:B,2,0),"") -> 0
A4: SASOLTRAYTAS_9057969 | B4: Conclusion | C4: Not | D4: Excont | E4: 2019-02-01 | F4: =IFERROR(VLOOKUP(CONCATENATE(B4,"_",C4,"_",D4),Список!A:B,2,0),"") -> 0
A5: ST1-C2302_9048918 | B5: Conclusion | C5: Not | D5: Excont | E5: 2019-02-01 | F5: =IFERROR(VLOOKUP(CONCATENATE(B5,"_",C5,"_",D5),Список!A:B,2,0),"") -> 0
A6: BIOWASH_9051267 | B6: Conclusion | C6: Not | D6: Excont | E6: 2019-02-01 | F6: =IFERROR(VLOOKUP(CONCATENATE(B6,"_",C6,"_",D6),Список!A:B,2,0),"") -> 0
A7: ORLEVDU4-2_9054782 | B7: Conclusion | C7: Not | D7: Excont | E7: 2019-02-01 | F7: =IFERROR(VLOOKUP(CONCATENATE(B7,"_",C7,"_",D7),Список!A:B,2,0),"") -> 0
A8: SOLINOL_1 9032109 | B8: Conclusion | C8: Not | D8: Excont | E8: 2019-02-01 | F8: =IFERROR(VLOOKUP(CONCATENATE(B8,"_",C8,"_",D8),Список!A:B,2,0),"") -> 0
A9: TOZEAN 905598807 | B9: Conclusion | C9: Not | D9: Excont | E9: 2019-02-01 | F9: =IFERROR(VLOOKUP(CONCATENATE(B9,"_",C9,"_",D9),Список!A:B,2,0),"") -> 0
A10: GIGTRI-7_9055882 | B10: Conclusion | C10: Not | D10: Excont | E10: 2019-02-01 | F10: =IFERROR(VLOOKUP(CONCATENATE(B10,"_",C10,"_",D10),Список!A:B,2,0),"") -> 0
A11: Chevron_Oronite_2_9044804 | B11: Conclusion | C11: Not | D11: Excont | E11: 2019-02-01 | F11: =IFERROR(VLOOKUP(CONCATENATE(B11,"_",C11,"_",D11),Список!A:B,2,0),"") -> 0
A12: NAMSEP_2_9057982 | B12: Conclusion | C12: Not | D12: Excont | E12: 2019-02-01 | F12: =IFERROR(VLOOKUP(CONCATENATE(B12,"_",C12,"_",D12),Список!A:B,2,0),"") -> 0
A13: OIL_DEM 9057271 | B13: Conclusion | C13: Not | D13: Excont | E13: 2019-03-01 | F13: =IFERROR(VLOOKUP(CONCATENATE(B13,"_",C13,"_",D13),Список!A:B,2,0),"") -> 0
A14: SOWABTAS-1_9043070 | B14: Conclusion | C14: Not | D14: Excont | E14: 2019-03-01 | F14: =IFERROR(VLOOKUP(CONCATENATE(B14,"_",C14,"_",D14),Список!A:B,2,0),"") -> 0
A15: TAKABPLUS-5 906158006 | B15: Conclusion | C15: Not | D15: Excont | E15: 2019-03-01 | F15: =IFERROR(VLOOKUP(CONCATENATE(B15,"_",C15,"_",D15),Список!A:B,2,0),"") -> 0
A16: ROPOX-6_9050721 | B16: Conclusion | C16: Urgent | D16: Excont | E16: 2019-03-01 | F16: =IFERROR(VLOOKUP(CONCATENATE(B16,"_",C16,"_",D16),Список!A:B,2,0),"") -> 0
A17: ABSACHEMA_9048622 | B17: Conclusion | C17: Not | D17: Excont | E17: 2019-03-01 | F17: =IFERROR(VLOOKUP(CONCATENATE(B17,"_",C17,"_",D17),Список!A:B,2,0),"") -> 0
A18: SHEMMSPO1C605_9051266 | B18: Conclusion | C18: Not | D18: Excont | E18: 2019-03-01 | F18: =IFERROR(VLOOKUP(CONCATENATE(B18,"_",C18,"_",D18),Список!A:B,2,0),"") -> 0
A19: YARAPOR 905815414 | B19: License | C19: Not | D19: Excont | E19: 2019-03-01 | F19: =IFERROR(VLOOKUP(CONCATENATE(B19,"_",C19,"_",D19),Список!A:B,2,0),"") -> 0
A20: PREEMGIVS 9060019 | B20: Conclusion | C20: Not | D20: Excont | E20: 2019-03-01 | F20: =IFERROR(VLOOKUP(CONCATENATE(B20,"_",C20,"_",D20),Список!A:B,2,0),"") -> 0
A21: CAMPAK5 | B21: Conclusion | C21: Not | D21: Excont | E21: 2019-04-01 | F21: =IFERROR(VLOOKUP(CONCATENATE(B21,"_",C21,"_",D21),Список!A:B,2,0),"") -> 0
A22: COOLSORP | B22: Conclusion | C22: Not | D22: Excont | E22: 2019-04-01 | F22: =IFERROR(VLOOKUP(CONCATENATE(B22,"_",C22,"_",D22),Список!A:B,2,0),"") -> 0
A23: ACHABS-ITA-TAS_9062362 | B23: Conclusion | C23: Not | D23: Excont | E23: 2019-04-01 | F23: =IFERROR(VLOOKUP(CONCATENATE(B23,"_",C23,"_",D23),Список!A:B,2,0),"") -> 0
A24: DONAPAK2 9062499 | B24: Conclusion | C24: Not | D24: Excont | E24: 2019-04-01 | F24: =IFERROR(VLOOKUP(CONCATENATE(B24,"_",C24,"_",D24),Список!A:B,2,0),"") -> 0
A25: INTECHTAS-1_9058855 | B25: Conclusion | C25: Not | D25: Excont | E25: 2019-04-01 | F25: =IFERROR(VLOOKUP(CONCATENATE(B25,"_",C25,"_",D25),Список!A:B,2,0),"") -> 0
A26: ESSOBOX_9061946 | B26: Conclusion | C26: Urgent | D26: Excont | E26: 2019-04-01 | F26: =IFERROR(VLOOKUP(CONCATENATE(B26,"_",C26,"_",D26),Список!A:B,2,0),"") -> 0
A27: ROKCOL-1_9052035 | B27: Conclusion | C27: Not | D27: Excont | E27: 2019-04-01 | F27: =IFERROR(VLOOKUP(CONCATENATE(B27,"_",C27,"_",D27),Список!A:B,2,0),"") -> 0
A28: AQUANE2 905882402 | B28: Conclusion | C28: Not | D28: Excont | E28: 2019-04-01 | F28: =IFERROR(VLOOKUP(CONCATENATE(B28,"_",C28,"_",D28),Список!A:B,2,0),"") -> 0
A29: SHELLSCHOEP-V7566 | B29: Conclusion | C29: Not | D29: Excont | E29: 2019-04-01 | F29: =IFERROR(VLOOKUP(CONCATENATE(B29,"_",C29,"_",D29),Список!A:B,2,0),"") -> 0
A30: KAOPLUS_1_9048907 | B30: Conclusion | C30: Not | D30: Excont | E30: 2019-04-01 | F30: =IFERROR(VLOOKUP(CONCATENATE(B30,"_",C30,"_",D30),Список!A:B,2,0),"") -> 0
A31: SPS_PACK 9058917 | B31: Conclusion | C31: Not | D31: Excont | E31: 2019-04-01 | F31: =IFERROR(VLOOKUP(CONCATENATE(B31,"_",C31,"_",D31),Список!A:B,2,0),"") -> 0
A32: LINGETEG-4 9058436 | B32: Conclusion | C32: Not | D32: Excont | E32: 2019-05-01 | F32: =IFERROR(VLOOKUP(CONCATENATE(B32,"_",C32,"_",D32),Список!A:B,2,0),"") -> 0
A33: PREEM_PAK_9054060 | B33: Conclusion | C33: Not | D33: Excont | E33: 2019-05-01 | F33: =IFERROR(VLOOKUP(CONCATENATE(B33,"_",C33,"_",D33),Список!A:B,2,0),"") -> 0
A34: SOLVAMON_2 9056261 | B34: License | C34: Not | D34: Excont | E34: 2019-05-01 | F34: =IFERROR(VLOOKUP(CONCATENATE(B34,"_",C34,"_",D34),Список!A:B,2,0),"") -> 0
A35: COSTRI_9059756 | B35: Conclusion | C35: Not | D35: Excont | E35: 2019-05-01 | F35: =IFERROR(VLOOKUP(CONCATENATE(B35,"_",C35,"_",D35),Список!A:B,2,0),"") -> 0
A36: KRUAPI-33_9059362 | B36: Conclusion | C36: Not | D36: Excont | E36: 2019-05-01 | F36: =IFERROR(VLOOKUP(CONCATENATE(B36,"_",C36,"_",D36),Список!A:B,2,0),"") -> 0
A37: WACKABS-K450_9058954 | B37: Conclusion | C37: Not | D37: Excont | E37: 2019-05-01 | F37: =IFERROR(VLOOKUP(CONCATENATE(B37,"_",C37,"_",D37),Список!A:B,2,0),"") -> 0
A38: Chevron_Oronite_1 | B38: Conclusion | C38: Not | D38: Excont | E38: 2019-05-01 | F38: =IFERROR(VLOOKUP(CONCATENATE(B38,"_",C38,"_",D38),Список!A:B,2,0),"") -> 0
A39: LABMA-1.5_9061282 | B39: Conclusion | C39: Not | D39: Excont | E39: 2019-05-01 | F39: =IFERROR(VLOOKUP(CONCATENATE(B39,"_",C39,"_",D39),Список!A:B,2,0),"") -> 0
A40: HAIBAZ-4_ 9060314 | B40: Conclusion | C40: Not | D40: Excont | E40: 2019-06-01 | F40: =IFERROR(VLOOKUP(CONCATENATE(B40,"_",C40,"_",D40),Список!A:B,2,0),"") -> 0
A41: FORTDELTEG 9060743 | B41: Conclusion | C41: Not | D41: Excont | E41: 2019-06-01 | F41: =IFERROR(VLOOKUP(CONCATENATE(B41,"_",C41,"_",D41),Список!A:B,2,0),"") -> 0
A42: N_DESUMAC_9062038 | B42: Conclusion | C42: Not | D42: Excont | E42: 2019-06-01 | F42: =IFERROR(VLOOKUP(CONCATENATE(B42,"_",C42,"_",D42),Список!A:B,2,0),"") -> 0
A43: BAYDORTDI3-TAS-1 906038004 | B43: Conclusion | C43: Not | D43: Excont | E43: 2019-06-01 | F43: =IFERROR(VLOOKUP(CONCATENATE(B43,"_",C43,"_",D43),Список!A:B,2,0),"") -> 0
A44: ALLTRAY_90589826 | B44: Conclusion | C44: Not | D44: Excont | E44: 2019-06-01 | F44: =IFERROR(VLOOKUP(CONCATENATE(B44,"_",C44,"_",D44),Список!A:B,2,0),"") -> 0
A45: PENGUINSEP 9012962 | B45: Conclusion | C45: Not | D45: Excont | E45: 2019-06-01 | F45: =IFERROR(VLOOKUP(CONCATENATE(B45,"_",C45,"_",D45),Список!A:B,2,0),"") -> 0
A46: ENGLY_906205303 | B46: Conclusion | C46: Not | D46: Excont | E46: 2019-06-01 | F46: =IFERROR(VLOOKUP(CONCATENATE(B46,"_",C46,"_",D46),Список!A:B,2,0),"") -> 0
A47: SERVIERDEST_9063043 | B47: Conclusion | C47: Not | D47: Excont | E47: 2019-06-01 | F47: =IFERROR(VLOOKUP(CONCATENATE(B47,"_",C47,"_",D47),Список!A:B,2,0),"") -> 0
A48: MCIBX-2 9062962 | B48: Conclusion | C48: Not | D48: Excont | E48: 2019-06-01 | F48: =IFERROR(VLOOKUP(CONCATENATE(B48,"_",C48,"_",D48),Список!A:B,2,0),"") -> 0
A49: BASIXTEEN-10_9063936 | B49: Conclusion | C49: Not | D49: Excont | E49: 2019-06-01 | F49: =IFERROR(VLOOKUP(CONCATENATE(B49,"_",C49,"_",D49),Список!A:B,2,0),"") -> 0
A50: DIETRIMELLA 9063091 | B50: Conclusion | C50: Not | D50: Excont | E50: 2019-07-01 | F50: =IFERROR(VLOOKUP(CONCATENATE(B50,"_",C50,"_",D50),Список!A:B,2,0),"") -> 0
A51: RESCAPIL-6_9063544 | B51: Conclusion | C51: Not | D51: Excont | E51: 2019-07-01 | F51: =IFERROR(VLOOKUP(CONCATENATE(B51,"_",C51,"_",D51),Список!A:B,2,0),"") -> 0
A52: PACKINRESIN_9063446 | B52: Conclusion | C52: Not | D52: Excont | E52: 2019-07-01 | F52: =IFERROR(VLOOKUP(CONCATENATE(B52,"_",C52,"_",D52),Список!A:B,2,0),"") -> 0
A53: INNAMMPACK-1 - 906585507 | B53: Conclusion | C53: Not | D53: Excont | E53: 2019-07-01 | F53: =IFERROR(VLOOKUP(CONCATENATE(B53,"_",C53,"_",D53),Список!A:B,2,0),"") -> 0
A54: BIOPACK_ 9064657 | B54: Conclusion | C54: Not | D54: Excont | E54: 2019-07-01 | F54: =IFERROR(VLOOKUP(CONCATENATE(B54,"_",C54,"_",D54),Список!A:B,2,0),"") -> 0
A55: KOLLSNES_DPC_SEP_9058283 | B55: Conclusion | C55: Not | D55: Excont | E55: 2019-07-01 | F55: =IFERROR(VLOOKUP(CONCATENATE(B55,"_",C55,"_",D55),Список!A:B,2,0),"") -> 0
A56: GALSIN-7_9062048 | B56: Conclusion | C56: Not | D56: Excont | E56: 2019-07-01 | F56: =IFERROR(VLOOKUP(CONCATENATE(B56,"_",C56,"_",D56),Список!A:B,2,0),"") -> 0
A57: MAZBREAKER-8_9064883 | B57: Conclusion | C57: Not | D57: Excont | E57: 2019-07-01 | F57: =IFERROR(VLOOKUP(CONCATENATE(B57,"_",C57,"_",D57),Список!A:B,2,0),"") -> 0
A58: TECHALC4 9057443 | B58: Conclusion | C58: Not | D58: Excont | E58: 2019-07-01 | F58: =IFERROR(VLOOKUP(CONCATENATE(B58,"_",C58,"_",D58),Список!A:B,2,0),"") -> 0
A59: SHELLWESS-1_9062602 | B59: Conclusion | C59: Not | D59: Excont | E59: 2019-07-01 | F59: =IFERROR(VLOOKUP(CONCATENATE(B59,"_",C59,"_",D59),Список!A:B,2,0),"") -> 0
A60: BENVINONA3_9058997 | B60: Conclusion | C60: Not | D60: Excont | E60: 2019-08-01 | F60: =IFERROR(VLOOKUP(CONCATENATE(B60,"_",C60,"_",D60),Список!A:B,2,0),"") -> 0
A61: REPCAR_906421204 | B61: Conclusion | C61: Not | D61: Excont | E61: 2019-08-01 | F61: =IFERROR(VLOOKUP(CONCATENATE(B61,"_",C61,"_",D61),Список!A:B,2,0),"") -> 0
A62: HUNTMDI_9058637 | B62: Conclusion | C62: Not | D62: Excont | E62: 2019-08-01 | F62: =IFERROR(VLOOKUP(CONCATENATE(B62,"_",C62,"_",D62),Список!A:B,2,0),"") -> 0
A63: VISCO-6 9064778 | B63: Conclusion | C63: Not | D63: Excont | E63: 2019-08-01 | F63: =IFERROR(VLOOKUP(CONCATENATE(B63,"_",C63,"_",D63),Список!A:B,2,0),"") -> 0
A64: FATTYSTRI + 9061477 | B64: Conclusion | C64: Not | D64: Excont | E64: 2019-08-01 | F64: =IFERROR(VLOOKUP(CONCATENATE(B64,"_",C64,"_",D64),Список!A:B,2,0),"") -> 0
A65: FIBPREDIS_ 9067512 | B65: Conclusion | C65: Not | D65: Excont | E65: 2019-08-01 | F65: =IFERROR(VLOOKUP(CONCATENATE(B65,"_",C65,"_",D65),Список!A:B,2,0),"") -> 0
A66: CAMPAK-6_9065635 | B66: Conclusion | C66: Not | D66: Excont | E66: 2019-08-01 | F66: =IFERROR(VLOOKUP(CONCATENATE(B66,"_",C66,"_",D66),Список!A:B,2,0),"") -> 0
A67: CFSARD2_9068432 | B67: Conclusion | C67: Not | D67: Excont | E67: 2019-09-01 | F67: =IFERROR(VLOOKUP(CONCATENATE(B67,"_",C67,"_",D67),Список!A:B,2,0),"") -> 0
A68: LYONEURO 906546212 | B68: Conclusion | C68: Not | D68: Excont | E68: 2019-09-01 | F68: =IFERROR(VLOOKUP(CONCATENATE(B68,"_",C68,"_",D68),Список!A:B,2,0),"") -> 0
A69: DEZANTRACARBA-5_ 906379414 | B69: Conclusion | C69: Not | D69: Excont | E69: 2019-09-01 | F69: =IFERROR(VLOOKUP(CONCATENATE(B69,"_",C69,"_",D69),Список!A:B,2,0),"") -> 0
A70: SOLVSEP_9063256 | B70: Conclusion | C70: Not | D70: Excont | E70: 2019-09-01 | F70: =IFERROR(VLOOKUP(CONCATENATE(B70,"_",C70,"_",D70),Список!A:B,2,0),"") -> 0
A71: ACCSYSPACK 9068672 | B71: Conclusion | C71: Not | D71: Excont | E71: 2019-09-01 | F71: =IFERROR(VLOOKUP(CONCATENATE(B71,"_",C71,"_",D71),Список!A:B,2,0),"") -> 0
A72: CHEMNAP-2 | B72: Conclusion | C72: Not | D72: Excont | E72: 2019-09-01 | F72: =IFERROR(VLOOKUP(CONCATENATE(B72,"_",C72,"_",D72),Список!A:B,2,0),"") -> 0
A73: SHEPHV5MELL_9067199 | B73: Conclusion | C73: Not | D73: Excont | E73: 2019-09-01 | F73: =IFERROR(VLOOKUP(CONCATENATE(B73,"_",C73,"_",D73),Список!A:B,2,0),"") -> 0
A74: SOLPLATE_2 9066732 | B74: Conclusion | C74: Not | D74: Excont | E74: 2019-09-01 | F74: =IFERROR(VLOOKUP(CONCATENATE(B74,"_",C74,"_",D74),Список!A:B,2,0),"") -> 0
A75: CDS Noram 9064590 | B75: Conclusion | C75: Not | D75: Excont | E75: 2019-09-01 | F75: =IFERROR(VLOOKUP(CONCATENATE(B75,"_",C75,"_",D75),Список!A:B,2,0),"") -> 0
A76: N_PEGAGA-TEG 9032784 | B76: Conclusion | C76: Not | D76: Excont | E76: 2019-10-01 | F76: =IFERROR(VLOOKUP(CONCATENATE(B76,"_",C76,"_",D76),Список!A:B,2,0),"") -> 0
A77: PETROSCRUB 9068001 | B77: Conclusion | C77: Not | D77: Excont | E77: 2019-10-01 | F77: =IFERROR(VLOOKUP(CONCATENATE(B77,"_",C77,"_",D77),Список!A:B,2,0),"") -> 0
A78: PLANTRAY-8 9061862 | B78: Conclusion | C78: Not | D78: Excont | E78: 2019-10-01 | F78: =IFERROR(VLOOKUP(CONCATENATE(B78,"_",C78,"_",D78),Список!A:B,2,0),"") -> 0
A79: DECPA30 9069705 | B79: Conclusion | C79: Not | D79: Excont | E79: 2019-10-01 | F79: =IFERROR(VLOOKUP(CONCATENATE(B79,"_",C79,"_",D79),Список!A:B,2,0),"") -> 0
A80: KURAPI-34_9070197_ | B80: Conclusion | C80: Not | D80: Excont | E80: 2019-10-01 | F80: =IFERROR(VLOOKUP(CONCATENATE(B80,"_",C80,"_",D80),Список!A:B,2,0),"") -> 0
A81: ESIMPACK-5_9068384 | B81: Conclusion | C81: Not | D81: Excont | E81: 2019-10-01 | F81: =IFERROR(VLOOKUP(CONCATENATE(B81,"_",C81,"_",D81),Список!A:B,2,0),"") -> 0
A82: FERDEMISTERBERIA_9069991_ | B82: Conclusion | C82: Not | D82: Excont | E82: 2019-10-01 | F82: =IFERROR(VLOOKUP(CONCATENATE(B82,"_",C82,"_",D82),Список!A:B,2,0),"") -> 0
A83: MAKIPACK 9069497 | B83: Conclusion | C83: Not | D83: Excont | E83: 2019-10-01 | F83: =IFERROR(VLOOKUP(CONCATENATE(B83,"_",C83,"_",D83),Список!A:B,2,0),"") -> 0
A84: DESMEGER4 9069060 | B84: Conclusion | C84: Not | D84: Excont | E84: 2019-11-01 | F84: =IFERROR(VLOOKUP(CONCATENATE(B84,"_",C84,"_",D84),Список!A:B,2,0),"") -> 0
A85: NANT_VAC2_9069278 | B85: Conclusion | C85: Not | D85: Excont | E85: 2019-11-01 | F85: =IFERROR(VLOOKUP(CONCATENATE(B85,"_",C85,"_",D85),Список!A:B,2,0),"") -> 0
A86: SAFPACK_9064339 | B86: Conclusion | C86: Not | D86: Excont | E86: 2019-11-01 | F86: =IFERROR(VLOOKUP(CONCATENATE(B86,"_",C86,"_",D86),Список!A:B,2,0),"") -> 0
A87: TOURPACK_9066567 | B87: Conclusion | C87: Not | D87: Excont | E87: 2019-11-01 | F87: =IFERROR(VLOOKUP(CONCATENATE(B87,"_",C87,"_",D87),Список!A:B,2,0),"") -> 0
A88: BALCHEMPACK_9070210 | B88: Conclusion | C88: Not | D88: Excont | E88: 2019-11-01 | F88: =IFERROR(VLOOKUP(CONCATENATE(B88,"_",C88,"_",D88),Список!A:B,2,0),"") -> 0
A89: CAR_TRAY2 9069938 | B89: Conclusion | C89: Not | D89: Excont | E89: 2019-11-01 | F89: =IFERROR(VLOOKUP(CONCATENATE(B89,"_",C89,"_",D89),Список!A:B,2,0),"") -> 0
A90: DAW_SCO_9026909 | B90: Conclusion | C90: Not | D90: Excont | E90: 2019-11-01 | F90: =IFERROR(VLOOKUP(CONCATENATE(B90,"_",C90,"_",D90),Список!A:B,2,0),"") -> 0
A91: MAZBREAKER-9 9067517 | B91: Conclusion | C91: Not | D91: Excont | E91: 2019-11-01 | F91: =IFERROR(VLOOKUP(CONCATENATE(B91,"_",C91,"_",D91),Список!A:B,2,0),"") -> 0
A92: KNUTSENSEP 9065701 | B92: Conclusion | C92: Not | D92: Excont | E92: 2019-11-01 | F92: =IFERROR(VLOOKUP(CONCATENATE(B92,"_",C92,"_",D92),Список!A:B,2,0),"") -> 0
A93: IFFBXPLUS_40_9066463 | B93: Conclusion | C93: Not | D93: Excont | E93: 2019-11-01 | F93: =IFERROR(VLOOKUP(CONCATENATE(B93,"_",C93,"_",D93),Список!A:B,2,0),"") -> 0
A94: SITPAC_C7770_9069867.04 | B94: Conclusion | C94: Not | D94: Excont | E94: 2019-11-01 | F94: =IFERROR(VLOOKUP(CONCATENATE(B94,"_",C94,"_",D94),Список!A:B,2,0),"") -> 0
A95: GUNAMIN_9063633 | B95: Conclusion | C95: Not | D95: Excont | E95: 2019-12-01 | F95: =IFERROR(VLOOKUP(CONCATENATE(B95,"_",C95,"_",D95),Список!A:B,2,0),"") -> 0
A96: ROKPOL-3 9069496 | B96: Conclusion | C96: Not | D96: Excont | E96: 2019-12-01 | F96: =IFERROR(VLOOKUP(CONCATENATE(B96,"_",C96,"_",D96),Список!A:B,2,0),"") -> 0
A97: ROMPTAS - 1 9064349 | B97: Conclusion | C97: Not | D97: Excont | E97: 2019-12-01 | F97: =IFERROR(VLOOKUP(CONCATENATE(B97,"_",C97,"_",D97),Список!A:B,2,0),"") -> 0
A98: ROMPTAS 9063193 | B98: Conclusion | C98: Not | D98: Excont | E98: 2019-12-01 | F98: =IFERROR(VLOOKUP(CONCATENATE(B98,"_",C98,"_",D98),Список!A:B,2,0),"") -> 0
A99: HOEM-ERSATZ-4_9057242 | B99: Conclusion | C99: Not | D99: Excont | E99: 2019-12-01 | F99: =IFERROR(VLOOKUP(CONCATENATE(B99,"_",C99,"_",D99),Список!A:B,2,0),"") -> 0
A100: SADEREV 9065366 | B100: Conclusion | C100: Not | D100: Excont | E100: 2019-12-01 | F100: =IFERROR(VLOOKUP(CONCATENATE(B100,"_",C100,"_",D100),Список!A:B,2,0),"") -> 0
A101: AQUASEP_9069549 | B101: Conclusion | C101: Not | D101: Excont | E101: 2019-12-01 | F101: =IFERROR(VLOOKUP(CONCATENATE(B101,"_",C101,"_",D101),Список!A:B,2,0),"") -> 0
A102: PETROH2 9070888 | B102: Conclusion | C102: Not | D102: Excont | E102: 2019-12-01 | F102: =IFERROR(VLOOKUP(CONCATENATE(B102,"_",C102,"_",D102),Список!A:B,2,0),"") -> 0
A103: PTANILIN-2_9067563 | B103: Conclusion | C103: Not | D103: Excont | E103: 2019-12-01 | F103: =IFERROR(VLOOKUP(CONCATENATE(B103,"_",C103,"_",D103),Список!A:B,2,0),"") -> 0
A104: PENGUINTEG 9024040 | B104: License | C104: Not | D104: Excont | E104: 2019-06-01 | F104: =IFERROR(VLOOKUP(CONCATENATE(B104,"_",C104,"_",D104),Список!A:B,2,0),"") -> 0
A105: BASEODIST_9059569 | B105: Conclusion | C105: Not | D105: Excont | E105: 2019-03-01 | F105: =IFERROR(VLOOKUP(CONCATENATE(B105,"_",C105,"_",D105),Список!A:B,2,0),"") -> 0
A106: BPCHIRAG_FlashDrum_905315904 | B106: Conclusion | C106: Not | D106: Excont | E106: 2019-02-01 | F106: =IFERROR(VLOOKUP(CONCATENATE(B106,"_",C106,"_",D106),Список!A:B,2,0),"") -> 0
A107: DOWBOW-1_9050559 | B107: Conclusion | C107: Not | D107: Excont | E107: 2019-07-01 | F107: =IFERROR(VLOOKUP(CONCATENATE(B107,"_",C107,"_",D107),Список!A:B,2,0),"") -> 0
A108: DOWBOW-3_9060127 | B108: Conclusion | C108: Not | D108: Excont | E108: 2019-12-01 | F108: =IFERROR(VLOOKUP(CONCATENATE(B108,"_",C108,"_",D108),Список!A:B,2,0),"") -> 0
A109: FATTYSTRI10_9066523 | B109: Conclusion | C109: Not | D109: Excont | E109: 2019-12-01 | F109: =IFERROR(VLOOKUP(CONCATENATE(B109,"_",C109,"_",D109),Список!A:B,2,0),"") -> 0
A110: HTC-GREEN_9051362 | B110: Conclusion | C110: Not | D110: Excont | E110: 2019-12-01 | F110: =IFERROR(VLOOKUP(CONCATENATE(B110,"_",C110,"_",D110),Список!A:B,2,0),"") -> 0
A111: LANXBAY-7_9059122 | B111: Conclusion | C111: Not | D111: Excont | E111: 2019-03-01 | F111: =IFERROR(VLOOKUP(CONCATENATE(B111,"_",C111,"_",D111),Список!A:B,2,0),"") -> 0
A112: LAVEO-1 NCR | B112: Conclusion | C112: Not | D112: Excont | E112: 2019-03-01 | F112: =IFERROR(VLOOKUP(CONCATENATE(B112,"_",C112,"_",D112),Список!A:B,2,0),"") -> 0
A113: LAVEO-1_9066819 | B113: Conclusion | C113: Not | D113: Excont | E113: 2019-03-01 | F113: =IFERROR(VLOOKUP(CONCATENATE(B113,"_",C113,"_",D113),Список!A:B,2,0),"") -> 0
A114: MESTA_9068953 | B114: Conclusion | C114: Not | D114: Excont | E114: 2019-07-01 | F114: =IFERROR(VLOOKUP(CONCATENATE(B114,"_",C114,"_",D114),Список!A:B,2,0),"") -> 0
A115: ORLEO-11_9060872 | B115: Conclusion | C115: Not | D115: Excont | E115: 2019-07-01 | F115: =IFERROR(VLOOKUP(CONCATENATE(B115,"_",C115,"_",D115),Список!A:B,2,0),"") -> 0
A116: ROSSDIS_ 906215002 | B116: Conclusion | C116: Not | D116: Excont | E116: 2019-07-01 | F116: =IFERROR(VLOOKUP(CONCATENATE(B116,"_",C116,"_",D116),Список!A:B,2,0),"") -> 0
A117: SHELLDEBO-4401_9047048.07 | B117: Conclusion | C117: Not | D117: Excont | E117: 2019-07-01 | F117: =IFERROR(VLOOKUP(CONCATENATE(B117,"_",C117,"_",D117),Список!A:B,2,0),"") -> 0
F118: =IFERROR(VLOOKUP(CONCATENATE(B118,"_",C118,"_",D118),Список!A:B,2,0),"") -> 
F119: =IFERROR(VLOOKUP(CONCATENATE(B119,"_",C119,"_",D119),Список!A:B,2,0),"") -> 
F120: =IFERROR(VLOOKUP(CONCATENATE(B120,"_",C120,"_",D120),Список!A:B,2,0),"") -> 

Sheet Sub_2019 (hidden)
A1: Name of project | B1: Type of transport | C1: Forwarder | D1: Destination city | E1: Date | F1: Saving
A2: SHEMMSPO1C605 | B2: 5t | C2: IP KONDRATYEV | D2: SERPUKHOV-BALASHIHA | E2: 2019-03-01 | F2: =IFERROR(VLOOKUP(SUBSTITUTE(CONCATENATE(B2,"_",D2,"_",C2)," - ","_"),Список_Sub!A:B,2,0),"") -> 0
A3: ROPOX-6 (9050721) | B3: 5t | C3: IP KONDRATYEV | D3: SERPUKHOV-BALASHIHA | E3: 2019-03-01 | F3: =IFERROR(VLOOKUP(SUBSTITUTE(CONCATENATE(B3,"_",D3,"_",C3)," - ","_"),Список_Sub!A:B,2,0),"") -> 0
A4: SHEMMSPO1C605 | B4: 5t | C4: IP KONDRATYEV | D4: BALASHIHA-SERPUKHOV | E4: 2019-03-01 | F4: =IFERROR(VLOOKUP(SUBSTITUTE(CONCATENATE(B4,"_",D4,"_",C4)," - ","_"),Список_Sub!A:B,2,0),"") -> 0
A5: SHEMMSPO1C605 | B5: 5t | C5: IP KONDRATYEV | D5: BALASHIHA-SERPUKHOV | E5: 2019-03-01 | F5: =IFERROR(VLOOKUP(SUBSTITUTE(CONCATENATE(B5,"_",D5,"_",C5)," - ","_"),Список_Sub!A:B,2,0),"") -> 0
A6: SUNPINE-2 | B6: 5t | C6: IP KONDRATYEV | D6: SERPUKHOV-BALASHIHA | E6: 2019-04-01 | F6: =IFERROR(VLOOKUP(SUBSTITUTE(CONCATENATE(B6,"_",D6,"_",C6)," - ","_"),Список_Sub!A:B,2,0),"") -> 0
A7: SUNPINE-2 | B7: 5t | C7: IP KONDRATYEV | D7: SERPUKHOV-BALASHIHA | E7: 2019-04-01 | F7: =IFERROR(VLOOKUP(SUBSTITUTE(CONCATENATE(B7,"_",D7,"_",C7)," - ","_"),Список_Sub!A:B,2,0),"") -> 0
A8: AQUANE2 | B8: 5t | C8: IP KONDRATYEV | D8: BALASHIHA-SERPUKHOV | E8: 2019-04-01 | F8: =IFERROR(VLOOKUP(SUBSTITUTE(CONCATENATE(B8,"_",D8,"_",C8)," - ","_"),Список_Sub!A:B,2,0),"") -> 0
A9: SUNPINE-2 | B9: 5t | C9: IP KONDRATYEV | D9: BALASHIHA-SERPUKHOV | E9: 2019-04-01 | F9: =IFERROR(VLOOKUP(SUBSTITUTE(CONCATENATE(B9,"_",D9,"_",C9)," - ","_"),Список_Sub!A:B,2,0),"") -> 0
A10: SUNPINE-2 | B10: 5t | C10: IP KONDRATYEV | D10: BALASHIHA-SERPUKHOV | E10: 2019-04-01 | F10: =IFERROR(VLOOKUP(SUBSTITUTE(CONCATENATE(B10,"_",D10,"_",C10)," - ","_"),Список_Sub!A:B,2,0),"") -> 0
A11: PENGUINSEP | B11: 5t | C11: IP KONDRATYEV | D11: SERPUKHOV-BALASHIHA | E11: 2019-05-01 | F11: =IFERROR(VLOOKUP(SUBSTITUTE(CONCATENATE(B11,"_",D11,"_",C11)," - ","_"),Список_Sub!A:B,2,0),"") -> 0
A12: YAROPOR | B12: 5t | C12: IP KONDRATYEV | D12: BALASHIHA-SERPUKHOV | E12: 2019-05-01 | F12: =IFERROR(VLOOKUP(SUBSTITUTE(CONCATENATE(B12,"_",D12,"_",C12)," - ","_"),Список_Sub!A:B,2,0),"") -> 0
A13: PENGUINESEP | B13: 5t | C13: IP KONDRATYEV | D13: BALASHIHA-SERPUKHOV | E13: 2019-05-01 | F13: =IFERROR(VLOOKUP(SUBSTITUTE(CONCATENATE(B13,"_",D13,"_",C13)," - ","_"),Список_Sub!A:B,2,0),"") -> 0
A14: PENGUINESEP | B14: 5t | C14: IP KONDRATYEV | D14: SERPUKHOV-BALASHIHA | E14: 2019-05-01 | F14: =IFERROR(VLOOKUP(SUBSTITUTE(CONCATENATE(B14,"_",D14,"_",C14)," - ","_"),Список_Sub!A:B,2,0),"") -> 0
A15: PENGUINESEP | B15: 5t | C15: IP KONDRATYEV | D15: SERPUKHOV-BALASHIHA | E15: 2019-05-01 | F15: =IFERROR(VLOOKUP(SUBSTITUTE(CONCATENATE(B15,"_",D15,"_",C15)," - ","_"),Список_Sub!A:B,2,0),"") -> 0
A16: PENGUINESEP | B16: 5t | C16: IP KONDRATYEV | D16: BALASHIHA-SERPUKHOV | E16: 2019-05-01 | F16: =IFERROR(VLOOKUP(SUBSTITUTE(CONCATENATE(B16,"_",D16,"_",C16)," - ","_"),Список_Sub!A:B,2,0),"") -> 0
B17: 5t | C17: IP KONDRATYEV | D17: BALASHIHA-SERPUKHOV | E17: 2019-06-01 | F17: =IFERROR(VLOOKUP(SUBSTITUTE(CONCATENATE(B17,"_",D17,"_",C17)," - ","_"),Список_Sub!A:B,2,0),"") -> 0
A18: HUNTMDI | B18: 5t | C18: IP KONDRATYEV | D18: BALASHIHA-SERPUKHOV | E18: 2019-07-01 | F18: =IFERROR(VLOOKUP(SUBSTITUTE(CONCATENATE(B18,"_",D18,"_",C18)," - ","_"),Список_Sub!A:B,2,0),"") -> 0
A19: LAVEO1 | B19: 5t | C19: IP KONDRATYEV | D19: SERPUKHOV-BALASHIHA | E19: 2019-10-01 | F19: =IFERROR(VLOOKUP(SUBSTITUTE(CONCATENATE(B19,"_",D19,"_",C19)," - ","_"),Список_Sub!A:B,2,0),"") -> 0
B20: 5t | C20: IP KONDRATYEV | D20: SERPUKHOV-BALASHIHA | E20: 2019-10-01 | F20: =IFERROR(VLOOKUP(SUBSTITUTE(CONCATENATE(B20,"_",D20,"_",C20)," - ","_"),Список_Sub!A:B,2,0),"") -> 0
B21: 5t | C21: IP KONDRATYEV | D21: BALASHIHA-SERPUKHOV | E21: 2019-10-01 | F21: =IFERROR(VLOOKUP(SUBSTITUTE(CONCATENATE(B21,"_",D21,"_",C21)," - ","_"),Список_Sub!A:B,2,0),"") -> 0
B22: 5t | C22: IP KONDRATYEV | D22: SERPUKHOV-BALASHIHA | E22: 2019-11-01 | F22: =IFERROR(VLOOKUP(SUBSTITUTE(CONCATENATE(B22,"_",D22,"_",C22)," - ","_"),Список_Sub!A:B,2,0),"") -> 0
B23: 5t | C23: IP KONDRATYEV | D23: BALASHIHA-SERPUKHOV | E23: 2019-11-01 | F23: =IFERROR(VLOOKUP(SUBSTITUTE(CONCATENATE(B23,"_",D23,"_",C23)," - ","_"),Список_Sub!A:B,2,0),"") -> 0
B24: 5t | C24: IP KONDRATYEV | D24: SERPUKHOV-BALASHIHA | E24: 2019-11-01 | F24: =IFERROR(VLOOKUP(SUBSTITUTE(CONCATENATE(B24,"_",D24,"_",C24)," - ","_"),Список_Sub!A:B,2,0),"") -> 0
B25: 5t | C25: IP KONDRATYEV | D25: BALASHIHA-SERPUKHOV | E25: 2019-11-01 | F25: =IFERROR(VLOOKUP(SUBSTITUTE(CONCATENATE(B25,"_",D25,"_",C25)," - ","_"),Список_Sub!A:B,2,0),"") -> 0
B26: 5t | C26: IP KONDRATYEV | D26: SERPUKHOV-BALASHIHA | E26: 2019-11-01 | F26: =IFERROR(VLOOKUP(SUBSTITUTE(CONCATENATE(B26,"_",D26,"_",C26)," - ","_"),Список_Sub!A:B,2,0),"") -> 0
B27: 5t | C27: IP KONDRATYEV | D27: BALASHIHA-SERPUKHOV | E27: 2019-11-01 | F27: =IFERROR(VLOOKUP(SUBSTITUTE(CONCATENATE(B27,"_",D27,"_",C27)," - ","_"),Список_Sub!A:B,2,0),"") -> 0
B28: 5t | C28: IP KONDRATYEV | D28: SERPUKHOV-BALASHIHA | E28: 2019-12-01 | F28: =IFERROR(VLOOKUP(SUBSTITUTE(CONCATENATE(B28,"_",D28,"_",C28)," - ","_"),Список_Sub!A:B,2,0),"") -> 0
B29: 5t | C29: IP KONDRATYEV | D29: BALASHIHA-SERPUKHOV | E29: 2019-12-01 | F29: =IFERROR(VLOOKUP(SUBSTITUTE(CONCATENATE(B29,"_",D29,"_",C29)," - ","_"),Список_Sub!A:B,2,0),"") -> 0
B30: 5t | C30: IP KONDRATYEV | D30: SERPUKHOV-BALASHIHA | E30: 2019-12-01 | F30: =IFERROR(VLOOKUP(SUBSTITUTE(CONCATENATE(B30,"_",D30,"_",C30)," - ","_"),Список_Sub!A:B,2,0),"") -> 0
B31: 5t | C31: IP KONDRATYEV | D31: BALASHIHA-SERPUKHOV | E31: 2019-12-01 | F31: =IFERROR(VLOOKUP(SUBSTITUTE(CONCATENATE(B31,"_",D31,"_",C31)," - ","_"),Список_Sub!A:B,2,0),"") -> 0

Sheet Charts (hidden)

Sheet Total savings 2020
A1: # | B1: Savings Type | C1: Logistics Category | D1: Actual Savings 2020 euro | E1: Actual Savings % | F1: Jan-2020 euro | G1: Feb-2020 euro | H1: Mar-2020 euro | I1: Apr-2020 euro | J1: May-2020 euro | K1: Jun-2020 euro | L1: Jul-2020 euro | M1: Aug-2020 euro | N1: Sep-2020 euro | O1: Oct-2020 euro | P1: Nov-2020 euro | Q1: Dec-2020 euro | U1: EUR | V1: =ЦБР(U1) -> 89.1353 | Y1: =SUM(F7:Q7) -> 314.1291946
A2: 1 | B2: Spot-Price Savings (New Supplier) | C2: Transportation | D2: =SUM(SUMIF('Spot-price savings'!G2:G240,"New Supplier",'Spot-price savings'!D2:D240),'Saving Subcontract'!$I$1/$V$1) -> 18216.33465 | E2: =AVERAGE(AVERAGE('Spot-price savings'!E2:E240)/100,'Saving Subcontract'!$I$2) -> 0.2846132739 | F2: =SUMIFS('Spot-price savings'!$D$2:$D$240,'Spot-price savings'!$A$2:$A$240, ">=" & DATE(2020,MATCH(F$1,$F$1:$Q$1,0),1),'Spot-price savings'!$A$2:$A$240, "<=" &EOMONTH(DATE(2020,MATCH(F$1,$F$1:$Q$1,0),1),0),'Spot-price savings'!$G$2:$G$240,"New Supplier")+SUMIFS('Saving Subcontract'!$F$2:$F$293,'Saving Subcontract'!$E$2:$E$293,">="&DATE(2020,MATCH(F$1,$F$1:$Q$1,0),1),'Saving Subcontract'!$E$2:$E$293,"<="&EOMONTH(DATE(2020,MATCH(F$1,$F$1:$Q$1,0),1),0))/$V$1 -> 0 | G2: =SUMIFS('Spot-price savings'!$D$2:$D$240,'Spot-price savings'!$A$2:$A$240, ">=" & DATE(2020,MATCH(G$1,$F$1:$Q$1,0),1),'Spot-price savings'!$A$2:$A$240, "<=" &EOMONTH(DATE(2020,MATCH(G$1,$F$1:$Q$1,0),1),0),'Spot-price savings'!$G$2:$G$240,"New Supplier")+SUMIFS('Saving Subcontract'!$F$2:$F$293,'Saving Subcontract'!$E$2:$E$293,">="&DATE(2020,MATCH(G$1,$F$1:$Q$1,0),1),'Saving Subcontract'!$E$2:$E$293,"<="&EOMONTH(DATE(2020,MATCH(G$1,$F$1:$Q$1,0),1),0))/$V$1 -> 0 | H2: =SUMIFS('Spot-price savings'!$D$2:$D$240,'Spot-price savings'!$A$2:$A$240, ">=" & DATE(2020,MATCH(H$1,$F$1:$Q$1,0),1),'Spot-price savings'!$A$2:$A$240, "<=" &EOMONTH(DATE(2020,MATCH(H$1,$F$1:$Q$1,0),1),0),'Spot-price savings'!$G$2:$G$240,"New Supplier")+SUMIFS('Saving Subcontract'!$F$2:$F$293,'Saving Subcontract'!$E$2:$E$293,">="&DATE(2020,MATCH(H$1,$F$1:$Q$1,0),1),'Saving Subcontract'!$E$2:$E$293,"<="&EOMONTH(DATE(2020,MATCH(H$1,$F$1:$Q$1,0),1),0))/$V$1 -> 921.0160904 | I2: =SUMIFS('Spot-price savings'!$D$2:$D$240,'Spot-price savings'!$A$2:$A$240, ">=" & DATE(2020,MATCH(I$1,$F$1:$Q$1,0),1),'Spot-price savings'!$A$2:$A$240, "<=" &EOMONTH(DATE(2020,MATCH(I$1,$F$1:$Q$1,0),1),0),'Spot-price savings'!$G$2:$G$240,"New Supplier")+SUMIFS('Saving Subcontract'!$F$2:$F$293,'Saving Subcontract'!$E$2:$E$293,">="&DATE(2020,MATCH(I$1,$F$1:$Q$1,0),1),'Saving Subcontract'!$E$2:$E$293,"<="&EOMONTH(DATE(2020,MATCH(I$1,$F$1:$Q$1,0),1),0))/$V$1 -> 1171.649048 | J2: =SUMIFS('Spot-price savings'!$D$2:$D$240,'Spot-price savings'!$A$2:$A$240, ">=" & DATE(2020,MATCH(J$1,$F$1:$Q$1,0),1),'Spot-price savings'!$A$2:$A$240, "<=" &EOMONTH(DATE(2020,MATCH(J$1,$F$1:$Q$1,0),1),0),'Spot-price savings'!$G$2:$G$240,"New Supplier")+SUMIFS('Saving Subcontract'!$F$2:$F$293,'Saving Subcontract'!$E$2:$E$293,">="&DATE(2020,MATCH(J$1,$F$1:$Q$1,0),1),'Saving Subcontract'!$E$2:$E$293,"<="&EOMONTH(DATE(2020,MATCH(J$1,$F$1:$Q$1,0),1),0))/$V$1 -> 5399.997974 | K2: =SUMIFS('Spot-price savings'!$D$2:$D$240,'Spot-price savings'!$A$2:$A$240, ">=" & DATE(2020,MATCH(K$1,$F$1:$Q$1,0),1),'Spot-price savings'!$A$2:$A$240, "<=" &EOMONTH(DATE(2020,MATCH(K$1,$F$1:$Q$1,0),1),0),'Spot-price savings'!$G$2:$G$240,"New Supplier")+SUMIFS('Saving Subcontract'!$F$2:$F$293,'Saving Subcontract'!$E$2:$E$293,">="&DATE(2020,MATCH(K$1,$F$1:$Q$1,0),1),'Saving Subcontract'!$E$2:$E$293,"<="&EOMONTH(DATE(2020,MATCH(K$1,$F$1:$Q$1,0),1),0))/$V$1 -> 3262.775187 | L2: =SUMIFS('Spot-price savings'!$D$2:$D$240,'Spot-price savings'!$A$2:$A$240, ">=" & DATE(2020,MATCH(L$1,$F$1:$Q$1,0),1),'Spot-price savings'!$A$2:$A$240, "<=" &EOMONTH(DATE(2020,MATCH(L$1,$F$1:$Q$1,0),1),0),'Spot-price savings'!$G$2:$G$240,"New Supplier")+SUMIFS('Saving Subcontract'!$F$2:$F$293,'Saving Subcontract'!$E$2:$E$293,">="&DATE(2020,MATCH(L$1,$F$1:$Q$1,0),1),'Saving Subcontract'!$E$2:$E$293,"<="&EOMONTH(DATE(2020,MATCH(L$1,$F$1:$Q$1,0),1),0))/$V$1 -> 7273.579423 | M2: =SUMIFS('Spot-price savings'!$D$2:$D$240,'Spot-price savings'!$A$2:$A$240, ">=" & DATE(2020,MATCH(M$1,$F$1:$Q$1,0),1),'Spot-price savings'!$A$2:$A$240, "<=" &EOMONTH(DATE(2020,MATCH(M$1,$F$1:$Q$1,0),1),0),'Spot-price savings'!$G$2:$G$240,"New Supplier")+SUMIFS('Saving Subcontract'!$F$2:$F$293,'Saving Subcontract'!$E$2:$E$293,">="&DATE(2020,MATCH(M$1,$F$1:$Q$1,0),1),'Saving Subcontract'!$E$2:$E$293,"<="&EOMONTH(DATE(2020,MATCH(M$1,$F$1:$Q$1,0),1),0))/$V$1 -> 153.6602325 | N2: =SUMIFS('Spot-price savings'!$D$2:$D$240,'Spot-price savings'!$A$2:$A$240, ">=" & DATE(2020,MATCH(N$1,$F$1:$Q$1,0),1),'Spot-price savings'!$A$2:$A$240, "<=" &EOMONTH(DATE(2020,MATCH(N$1,$F$1:$Q$1,0),1),0),'Spot-price savings'!$G$2:$G$240,"New Supplier")+SUMIFS('Saving Subcontract'!$F$2:$F$293,'Saving Subcontract'!$E$2:$E$293,">="&DATE(2020,MATCH(N$1,$F$1:$Q$1,0),1),'Saving Subcontract'!$E$2:$E$293,"<="&EOMONTH(DATE(2020,MATCH(N$1,$F$1:$Q$1,0),1),0))/$V$1 -> 33.65669942 | O2: =SUMIFS('Spot-price savings'!$D$2:$D$240,'Spot-price savings'!$A$2:$A$240, ">=" & DATE(2020,MATCH(O$1,$F$1:$Q$1,0),1),'Spot-price savings'!$A$2:$A$240, "<=" &EOMONTH(DATE(2020,MATCH(O$1,$F$1:$Q$1,0),1),0),'Spot-price savings'!$G$2:$G$240,"New Supplier")+SUMIFS('Saving Subcontract'!$F$2:$F$293,'Saving Subcontract'!$E$2:$E$293,">="&DATE(2020,MATCH(O$1,$F$1:$Q$1,0),1),'Saving Subcontract'!$E$2:$E$293,"<="&EOMONTH(DATE(2020,MATCH(O$1,$F$1:$Q$1,0),1),0))/$V$1 -> 0 | P2: =SUMIFS('Spot-price savings'!$D$2:$D$240,'Spot-price savings'!$A$2:$A$240, ">=" & DATE(2020,MATCH(P$1,$F$1:$Q$1,0),1),'Spot-price savings'!$A$2:$A$240, "<=" &EOMONTH(DATE(2020,MATCH(P$1,$F$1:$Q$1,0),1),0),'Spot-price savings'!$G$2:$G$240,"New Supplier")+SUMIFS('Saving Subcontract'!$F$2:$F$293,'Saving Subcontract'!$E$2:$E$293,">="&DATE(2020,MATCH(P$1,$F$1:$Q$1,0),1),'Saving Subcontract'!$E$2:$E$293,"<="&EOMONTH(DATE(2020,MATCH(P$1,$F$1:$Q$1,0),1),0))/$V$1 -> 0 | Q2: =SUMIFS('Spot-price savings'!$D$2:$D$240,'Spot-price savings'!$A$2:$A$240, ">=" & DATE(2020,MATCH(Q$1,$F$1:$Q$1,0),1),'Spot-price savings'!$A$2:$A$240, "<=" &EOMONTH(DATE(2020,MATCH(Q$1,$F$1:$Q$1,0),1),0),'Spot-price savings'!$G$2:$G$240,"New Supplier")+SUMIFS('Saving Subcontract'!$F$2:$F$293,'Saving Subcontract'!$E$2:$E$293,">="&DATE(2020,MATCH(Q$1,$F$1:$Q$1,0),1),'Saving Subcontract'!$E$2:$E$293,"<="&EOMONTH(DATE(2020,MATCH(Q$1,$F$1:$Q$1,0),1),0))/$V$1 -> 0
A3: 2 | B3: Spot-Price Savings (New Route) | C3: Transportation | D3: =SUMIF('Spot-price savings'!G2:G240,"New Route",'Spot-price savings'!D2:D240) -> 0 | E3: 0 | F3: =SUMIFS('Spot-price savings'!$D$2:$D$240,'Spot-price savings'!$A$2:$A$240, ">=" & DATE(2020,MATCH(F$1,$F$1:$Q$1,0),1),'Spot-price savings'!$A$2:$A$240, "<=" &EOMONTH(DATE(2020,MATCH(F$1,$F$1:$Q$1,0),1),0),'Spot-price savings'!$G$2:$G$240,"New Route") -> 0 | G3: =SUMIFS('Spot-price savings'!$D$2:$D$240,'Spot-price savings'!$A$2:$A$240, ">=" & DATE(2020,MATCH(G$1,$F$1:$Q$1,0),1),'Spot-price savings'!$A$2:$A$240, "<=" &EOMONTH(DATE(2020,MATCH(G$1,$F$1:$Q$1,0),1),0),'Spot-price savings'!$G$2:$G$240,"New Route") -> 0 | H3: =SUMIFS('Spot-price savings'!$D$2:$D$240,'Spot-price savings'!$A$2:$A$240, ">=" & DATE(2020,MATCH(H$1,$F$1:$Q$1,0),1),'Spot-price savings'!$A$2:$A$240, "<=" &EOMONTH(DATE(2020,MATCH(H$1,$F$1:$Q$1,0),1),0),'Spot-price savings'!$G$2:$G$240,"New Route") -> 0 | I3: =SUMIFS('Spot-price savings'!$D$2:$D$240,'Spot-price savings'!$A$2:$A$240, ">=" & DATE(2020,MATCH(I$1,$F$1:$Q$1,0),1),'Spot-price savings'!$A$2:$A$240, "<=" &EOMONTH(DATE(2020,MATCH(I$1,$F$1:$Q$1,0),1),0),'Spot-price savings'!$G$2:$G$240,"New Route") -> 0 | J3: =SUMIFS('Spot-price savings'!$D$2:$D$240,'Spot-price savings'!$A$2:$A$240, ">=" & DATE(2020,MATCH(J$1,$F$1:$Q$1,0),1),'Spot-price savings'!$A$2:$A$240, "<=" &EOMONTH(DATE(2020,MATCH(J$1,$F$1:$Q$1,0),1),0),'Spot-price savings'!$G$2:$G$240,"New Route") -> 0 | K3: =SUMIFS('Spot-price savings'!$D$2:$D$240,'Spot-price savings'!$A$2:$A$240, ">=" & DATE(2020,MATCH(K$1,$F$1:$Q$1,0),1),'Spot-price savings'!$A$2:$A$240, "<=" &EOMONTH(DATE(2020,MATCH(K$1,$F$1:$Q$1,0),1),0),'Spot-price savings'!$G$2:$G$240,"New Route") -> 0 | L3: =SUMIFS('Spot-price savings'!$D$2:$D$240,'Spot-price savings'!$A$2:$A$240, ">=" & DATE(2020,MATCH(L$1,$F$1:$Q$1,0),1),'Spot-price savings'!$A$2:$A$240, "<=" &EOMONTH(DATE(2020,MATCH(L$1,$F$1:$Q$1,0),1),0),'Spot-price savings'!$G$2:$G$240,"New Route") -> 0 | M3: =SUMIFS('Spot-price savings'!$D$2:$D$240,'Spot-price savings'!$A$2:$A$240, ">=" & DATE(2020,MATCH(M$1,$F$1:$Q$1,0),1),'Spot-price savings'!$A$2:$A$240, "<=" &EOMONTH(DATE(2020,MATCH(M$1,$F$1:$Q$1,0),1),0),'Spot-price savings'!$G$2:$G$240,"New Route") -> 0 | N3: =SUMIFS('Spot-price savings'!$D$2:$D$240,'Spot-price savings'!$A$2:$A$240, ">=" & DATE(2020,MATCH(N$1,$F$1:$Q$1,0),1),'Spot-price savings'!$A$2:$A$240, "<=" &EOMONTH(DATE(2020,MATCH(N$1,$F$1:$Q$1,0),1),0),'Spot-price savings'!$G$2:$G$240,"New Route") -> 0 | O3: =SUMIFS('Spot-price savings'!$D$2:$D$240,'Spot-price savings'!$A$2:$A$240, ">=" & DATE(2020,MATCH(O$1,$F$1:$Q$1,0),1),'Spot-price savings'!$A$2:$A$240, "<=" &EOMONTH(DATE(2020,MATCH(O$1,$F$1:$Q$1,0),1),0),'Spot-price savings'!$G$2:$G$240,"New Route") -> 0 | P3: =SUMIFS('Spot-price savings'!$D$2:$D$240,'Spot-price savings'!$A$2:$A$240, ">=" & DATE(2020,MATCH(P$1,$F$1:$Q$1,0),1),'Spot-price savings'!$A$2:$A$240, "<=" &EOMONTH(DATE(2020,MATCH(P$1,$F$1:$Q$1,0),1),0),'Spot-price savings'!$G$2:$G$240,"New Route") -> 0 | Q3: =SUMIFS('Spot-price savings'!$D$2:$D$240,'Spot-price savings'!$A$2:$A$240, ">=" & DATE(2020,MATCH(Q$1,$F$1:$Q$1,0),1),'Spot-price savings'!$A$2:$A$240, "<=" &EOMONTH(DATE(2020,MATCH(Q$1,$F$1:$Q$1,0),1),0),'Spot-price savings'!$G$2:$G$240,"New Route") -> 0
A4: 3 | B4: New Supplier | C4: Export Control | D4: ='Saving URFU'!I1/V1 -> 5312.149059 | E4: ='Saving URFU'!I2 -> 0.4639836944 | F4: =SUMIFS('Saving URFU'!$F$2:$F$293,'Saving URFU'!$E$2:$E$293,">="&DATE(2020,MATCH(F$1,$F$1:$Q$1,0),1),'Saving URFU'!$E$2:$E$293,"<="&EOMONTH(DATE(2020,MATCH(F$1,$F$1:$Q$1,0),1),0))/V1 -> 0 | G4: =SUMIFS('Saving URFU'!$F$2:$F$293,'Saving URFU'!$E$2:$E$293,">="&DATE(2020,MATCH(G$1,$F$1:$Q$1,0),1),'Saving URFU'!$E$2:$E$293,"<="&EOMONTH(DATE(2020,MATCH(G$1,$F$1:$Q$1,0),1),0))/V1 -> 374.1503086 | H4: =SUMIFS('Saving URFU'!$F$2:$F$293,'Saving URFU'!$E$2:$E$293,">="&DATE(2020,MATCH(H$1,$F$1:$Q$1,0),1),'Saving URFU'!$E$2:$E$293,"<="&EOMONTH(DATE(2020,MATCH(H$1,$F$1:$Q$1,0),1),0))/V1 -> 907.3846164 | I4: =SUMIFS('Saving URFU'!$F$2:$F$293,'Saving URFU'!$E$2:$E$293,">="&DATE(2020,MATCH(I$1,$F$1:$Q$1,0),1),'Saving URFU'!$E$2:$E$293,"<="&EOMONTH(DATE(2020,MATCH(I$1,$F$1:$Q$1,0),1),0))/V1 -> 644.1331324 | J4: =SUMIFS('Saving URFU'!$F$2:$F$293,'Saving URFU'!$E$2:$E$293,">="&DATE(2020,MATCH(J$1,$F$1:$Q$1,0),1),'Saving URFU'!$E$2:$E$293,"<="&EOMONTH(DATE(2020,MATCH(J$1,$F$1:$Q$1,0),1),0))/V1 -> 761.7632969 | K4: =SUMIFS('Saving URFU'!$F$2:$F$293,'Saving URFU'!$E$2:$E$293,">="&DATE(2020,MATCH(K$1,$F$1:$Q$1,0),1),'Saving URFU'!$E$2:$E$293,"<="&EOMONTH(DATE(2020,MATCH(K$1,$F$1:$Q$1,0),1),0))/V1 -> 1101.191111 | L4: =SUMIFS('Saving URFU'!$F$2:$F$293,'Saving URFU'!$E$2:$E$293,">="&DATE(2020,MATCH(L$1,$F$1:$Q$1,0),1),'Saving URFU'!$E$2:$E$293,"<="&EOMONTH(DATE(2020,MATCH(L$1,$F$1:$Q$1,0),1),0))/V1 -> 533.2343078 | M4: =SUMIFS('Saving URFU'!$F$2:$F$293,'Saving URFU'!$E$2:$E$293,">="&DATE(2020,MATCH(M$1,$F$1:$Q$1,0),1),'Saving URFU'!$E$2:$E$293,"<="&EOMONTH(DATE(2020,MATCH(M$1,$F$1:$Q$1,0),1),0))/V1 -> 914.1159563 | N4: =SUMIFS('Saving URFU'!$F$2:$F$293,'Saving URFU'!$E$2:$E$293,">="&DATE(2020,MATCH(N$1,$F$1:$Q$1,0),1),'Saving URFU'!$E$2:$E$293,"<="&EOMONTH(DATE(2020,MATCH(N$1,$F$1:$Q$1,0),1),0))/V1 -> 76.17632969 | O4: =SUMIFS('Saving URFU'!$F$2:$F$293,'Saving URFU'!$E$2:$E$293,">="&DATE(2020,MATCH(O$1,$F$1:$Q$1,0),1),'Saving URFU'!$E$2:$E$293,"<="&EOMONTH(DATE(2020,MATCH(O$1,$F$1:$Q$1,0),1),0))/V1 -> 0 | P4: =SUMIFS('Saving URFU'!$F$2:$F$293,'Saving URFU'!$E$2:$E$293,">="&DATE(2020,MATCH(P$1,$F$1:$Q$1,0),1),'Saving URFU'!$E$2:$E$293,"<="&EOMONTH(DATE(2020,MATCH(P$1,$F$1:$Q$1,0),1),0))/V1 -> 0 | Q4: =SUMIFS('Saving URFU'!$F$2:$F$293,'Saving URFU'!$E$2:$E$293,">="&DATE(2020,MATCH(Q$1,$F$1:$Q$1,0),1),'Saving URFU'!$E$2:$E$293,"<="&EOMONTH(DATE(2020,MATCH(Q$1,$F$1:$Q$1,0),1),0))/V1 -> 0
A5: 4 | B5: New Supplier | C5: Customs clearance | D5: =SUM('Saving Customs'!H2:H300)/V1 -> 89.75119846 | E5: =AVERAGE('Saving Customs'!I2:I4)/100 -> 0.3333333333 | F5: =SUMIFS('Saving Customs'!$H$2:$H$300,'Saving Customs'!$G$2:$G$300,">="&DATE(2020,MATCH(F$1,$F$1:$Q$1,0),1),'Saving Customs'!$G$2:$G$300,"<="&EOMONTH(DATE(2020,MATCH(F$1,$F$1:$Q$1,0),1),0))/$V$1 -> 0 | G5: =SUMIFS('Saving Customs'!$H$2:$H$300,'Saving Customs'!$G$2:$G$300,">="&DATE(2020,MATCH(G$1,$F$1:$Q$1,0),1),'Saving Customs'!$G$2:$G$300,"<="&EOMONTH(DATE(2020,MATCH(G$1,$F$1:$Q$1,0),1),0))/$V$1 -> 0 | H5: =SUMIFS('Saving Customs'!$H$2:$H$300,'Saving Customs'!$G$2:$G$300,">="&DATE(2020,MATCH(H$1,$F$1:$Q$1,0),1),'Saving Customs'!$G$2:$G$300,"<="&EOMONTH(DATE(2020,MATCH(H$1,$F$1:$Q$1,0),1),0))/$V$1 -> 0 | I5: =SUMIFS('Saving Customs'!$H$2:$H$300,'Saving Customs'!$G$2:$G$300,">="&DATE(2020,MATCH(I$1,$F$1:$Q$1,0),1),'Saving Customs'!$G$2:$G$300,"<="&EOMONTH(DATE(2020,MATCH(I$1,$F$1:$Q$1,0),1),0))/$V$1 -> 0 | J5: =SUMIFS('Saving Customs'!$H$2:$H$300,'Saving Customs'!$G$2:$G$300,">="&DATE(2020,MATCH(J$1,$F$1:$Q$1,0),1),'Saving Customs'!$G$2:$G$300,"<="&EOMONTH(DATE(2020,MATCH(J$1,$F$1:$Q$1,0),1),0))/$V$1 -> 0 | K5: =SUMIFS('Saving Customs'!$H$2:$H$300,'Saving Customs'!$G$2:$G$300,">="&DATE(2020,MATCH(K$1,$F$1:$Q$1,0),1),'Saving Customs'!$G$2:$G$300,"<="&EOMONTH(DATE(2020,MATCH(K$1,$F$1:$Q$1,0),1),0))/$V$1 -> 0 | L5: =SUMIFS('Saving Customs'!$H$2:$H$300,'Saving Customs'!$G$2:$G$300,">="&DATE(2020,MATCH(L$1,$F$1:$Q$1,0),1),'Saving Customs'!$G$2:$G$300,"<="&EOMONTH(DATE(2020,MATCH(L$1,$F$1:$Q$1,0),1),0))/$V$1 -> 67.31339884 | M5: =SUMIFS('Saving Customs'!$H$2:$H$300,'Saving Customs'!$G$2:$G$300,">="&DATE(2020,MATCH(M$1,$F$1:$Q$1,0),1),'Saving Customs'!$G$2:$G$300,"<="&EOMONTH(DATE(2020,MATCH(M$1,$F$1:$Q$1,0),1),0))/$V$1 -> 0 | N5: =SUMIFS('Saving Customs'!$H$2:$H$300,'Saving Customs'!$G$2:$G$300,">="&DATE(2020,MATCH(N$1,$F$1:$Q$1,0),1),'Saving Customs'!$G$2:$G$300,"<="&EOMONTH(DATE(2020,MATCH(N$1,$F$1:$Q$1,0),1),0))/$V$1 -> 0 | O5: =SUMIFS('Saving Customs'!$H$2:$H$300,'Saving Customs'!$G$2:$G$300,">="&DATE(2020,MATCH(O$1,$F$1:$Q$1,0),1),'Saving Customs'!$G$2:$G$300,"<="&EOMONTH(DATE(2020,MATCH(O$1,$F$1:$Q$1,0),1),0))/$V$1 -> 0 | P5: =SUMIFS('Saving Customs'!$H$2:$H$300,'Saving Customs'!$G$2:$G$300,">="&DATE(2020,MATCH(P$1,$F$1:$Q$1,0),1),'Saving Customs'!$G$2:$G$300,"<="&EOMONTH(DATE(2020,MATCH(P$1,$F$1:$Q$1,0),1),0))/$V$1 -> 0 | Q5: =SUMIFS('Saving Customs'!$H$2:$H$300,'Saving Customs'!$G$2:$G$300,">="&DATE(2020,MATCH(Q$1,$F$1:$Q$1,0),1),'Saving Customs'!$G$2:$G$300,"<="&EOMONTH(DATE(2020,MATCH(Q$1,$F$1:$Q$1,0),1),0))/$V$1 -> 0
A6: 5 | B6: Self e-declaration (import) | C6: Customs clearance
F7: =SUMIFS('Saving Subcontract'!$F$2:$F$293,'Saving Subcontract'!$E$2:$E$293,">="&DATE(2020,MATCH(F$1,$F$1:$Q$1,0),1),'Saving Subcontract'!$E$2:$E$293,"<="&EOMONTH(DATE(2020,MATCH(F$1,$F$1:$Q$1,0),1),0))/V1 -> 0 | G7: =SUMIFS('Saving Subcontract'!$F$2:$F$293,'Saving Subcontract'!$E$2:$E$293,">="&DATE(2020,MATCH(G$1,$F$1:$Q$1,0),1),'Saving Subcontract'!$E$2:$E$293,"<="&EOMONTH(DATE(2020,MATCH(G$1,$F$1:$Q$1,0),1),0))/V1 -> 0 | H7: =SUMIFS('Saving Subcontract'!$F$2:$F$293,'Saving Subcontract'!$E$2:$E$293,">="&DATE(2020,MATCH(H$1,$F$1:$Q$1,0),1),'Saving Subcontract'!$E$2:$E$293,"<="&EOMONTH(DATE(2020,MATCH(H$1,$F$1:$Q$1,0),1),0))/V1 -> 0 | I7: =SUMIFS('Saving Subcontract'!$F$2:$F$293,'Saving Subcontract'!$E$2:$E$293,">="&DATE(2020,MATCH(I$1,$F$1:$Q$1,0),1),'Saving Subcontract'!$E$2:$E$293,"<="&EOMONTH(DATE(2020,MATCH(I$1,$F$1:$Q$1,0),1),0))/V1 -> 0 | J7: =SUMIFS('Saving Subcontract'!$F$2:$F$293,'Saving Subcontract'!$E$2:$E$293,">="&DATE(2020,MATCH(J$1,$F$1:$Q$1,0),1),'Saving Subcontract'!$E$2:$E$293,"<="&EOMONTH(DATE(2020,MATCH(J$1,$F$1:$Q$1,0),1),0))/V1 -> 123.4078979 | K7: =SUMIFS('Saving Subcontract'!$F$2:$F$293,'Saving Subcontract'!$E$2:$E$293,">="&DATE(2020,MATCH(K$1,$F$1:$Q$1,0),1),'Saving Subcontract'!$E$2:$E$293,"<="&EOMONTH(DATE(2020,MATCH(K$1,$F$1:$Q$1,0),1),0))/V1 -> 67.31339884 | L7: =SUMIFS('Saving Subcontract'!$F$2:$F$293,'Saving Subcontract'!$E$2:$E$293,">="&DATE(2020,MATCH(L$1,$F$1:$Q$1,0),1),'Saving Subcontract'!$E$2:$E$293,"<="&EOMONTH(DATE(2020,MATCH(L$1,$F$1:$Q$1,0),1),0))/V1 -> 89.75119846 | M7: =SUMIFS('Saving Subcontract'!$F$2:$F$293,'Saving Subcontract'!$E$2:$E$293,">="&DATE(2020,MATCH(M$1,$F$1:$Q$1,0),1),'Saving Subcontract'!$E$2:$E$293,"<="&EOMONTH(DATE(2020,MATCH(M$1,$F$1:$Q$1,0),1),0))/V1 -> 0 | N7: =SUMIFS('Saving Subcontract'!$F$2:$F$293,'Saving Subcontract'!$E$2:$E$293,">="&DATE(2020,MATCH(N$1,$F$1:$Q$1,0),1),'Saving Subcontract'!$E$2:$E$293,"<="&EOMONTH(DATE(2020,MATCH(N$1,$F$1:$Q$1,0),1),0))/V1 -> 33.65669942 | O7: =SUMIFS('Saving Subcontract'!$F$2:$F$293,'Saving Subcontract'!$E$2:$E$293,">="&DATE(2020,MATCH(O$1,$F$1:$Q$1,0),1),'Saving Subcontract'!$E$2:$E$293,"<="&EOMONTH(DATE(2020,MATCH(O$1,$F$1:$Q$1,0),1),0))/V1 -> 0 | P7: =SUMIFS('Saving Subcontract'!$F$2:$F$293,'Saving Subcontract'!$E$2:$E$293,">="&DATE(2020,MATCH(P$1,$F$1:$Q$1,0),1),'Saving Subcontract'!$E$2:$E$293,"<="&EOMONTH(DATE(2020,MATCH(P$1,$F$1:$Q$1,0),1),0))/V1 -> 0 | Q7: =SUMIFS('Saving Subcontract'!$F$2:$F$293,'Saving Subcontract'!$E$2:$E$293,">="&DATE(2020,MATCH(Q$1,$F$1:$Q$1,0),1),'Saving Subcontract'!$E$2:$E$293,"<="&EOMONTH(DATE(2020,MATCH(Q$1,$F$1:$Q$1,0),1),0))/V1 -> 0

Sheet Data (hidden)
A1: 2020 | B1: Январь | C1: Февраль | D1: Март | E1: Апрель | F1: Май | G1: Июнь | H1: Июль | I1: Август | J1: Сентябрь | K1: Октябрь | L1: Ноябрь | M1: Декабрь | N1: Итого
A2: Final saving | B2: =SUMIF('Saving URFU'!$E$2:$E$1000,CONCATENATE(B1&" "&$A$1),'Saving URFU'!$F$2:$F$1000) -> 0 | C2: =SUMIF('Saving URFU'!$E$2:$E$1000,CONCATENATE(C1&" "&$A$1),'Saving URFU'!$F$2:$F$1000) -> 33350 | D2: =SUMIF('Saving URFU'!$E$2:$E$1000,CONCATENATE(D1&" "&$A$1),'Saving URFU'!$F$2:$F$1000) -> 80880 | E2: =SUMIF('Saving URFU'!$E$2:$E$1000,CONCATENATE(E1&" "&$A$1),'Saving URFU'!$F$2:$F$1000) -> 57415 | F2: =SUMIF('Saving URFU'!$E$2:$E$1000,CONCATENATE(F1&" "&$A$1),'Saving URFU'!$F$2:$F$1000) -> 67900 | G2: =SUMIF('Saving URFU'!$E$2:$E$1000,CONCATENATE(G1&" "&$A$1),'Saving URFU'!$F$2:$F$1000) -> 98155 | H2: =SUMIF('Saving URFU'!$E$2:$E$1000,CONCATENATE(H1&" "&$A$1),'Saving URFU'!$F$2:$F$1000) -> 47530 | I2: =SUMIF('Saving URFU'!$E$2:$E$1000,CONCATENATE(I1&" "&$A$1),'Saving URFU'!$F$2:$F$1000) -> 81480 | J2: =SUMIF('Saving URFU'!$E$2:$E$1000,CONCATENATE(J1&" "&$A$1),'Saving URFU'!$F$2:$F$1000) -> 6790 | K2: =SUMIF('Saving URFU'!$E$2:$E$1000,CONCATENATE(K1&" "&$A$1),'Saving URFU'!$F$2:$F$1000) -> 0 | L2: =SUMIF('Saving URFU'!$E$2:$E$1000,CONCATENATE(L1&" "&$A$1),'Saving URFU'!$F$2:$F$1000) -> 0 | M2: =SUMIF('Saving URFU'!$E$2:$E$1000,CONCATENATE(M1&" "&$A$1),'Saving URFU'!$F$2:$F$1000) -> 0 | N2: =SUM(B2:M2) -> 473500
A3: Excont | B3: =SUMIF('Saving URFU'!$E$2:$E$1000,CONCATENATE(B1&" "&$A$1),'Saving URFU'!$G$2:$G$1000) -> 0 | C3: =SUMIF('Saving URFU'!$E$2:$E$1000,CONCATENATE(C1&" "&$A$1),'Saving URFU'!$G$2:$G$1000) -> 73950 | D3: =SUMIF('Saving URFU'!$E$2:$E$1000,CONCATENATE(D1&" "&$A$1),'Saving URFU'!$G$2:$G$1000) -> 177480 | E3: =SUMIF('Saving URFU'!$E$2:$E$1000,CONCATENATE(E1&" "&$A$1),'Saving URFU'!$G$2:$G$1000) -> 125715 | F3: =SUMIF('Saving URFU'!$E$2:$E$1000,CONCATENATE(F1&" "&$A$1),'Saving URFU'!$G$2:$G$1000) -> 147900 | G3: =SUMIF('Saving URFU'!$E$2:$E$1000,CONCATENATE(G1&" "&$A$1),'Saving URFU'!$G$2:$G$1000) -> 199665 | H3: =SUMIF('Saving URFU'!$E$2:$E$1000,CONCATENATE(H1&" "&$A$1),'Saving URFU'!$G$2:$G$1000) -> 103530 | I3: =SUMIF('Saving URFU'!$E$2:$E$1000,CONCATENATE(I1&" "&$A$1),'Saving URFU'!$G$2:$G$1000) -> 177480 | J3: =SUMIF('Saving URFU'!$E$2:$E$1000,CONCATENATE(J1&" "&$A$1),'Saving URFU'!$G$2:$G$1000) -> 14790 | K3: =SUMIF('Saving URFU'!$E$2:$E$1000,CONCATENATE(K1&" "&$A$1),'Saving URFU'!$G$2:$G$1000) -> 0 | L3: =SUMIF('Saving URFU'!$E$2:$E$1000,CONCATENATE(L1&" "&$A$1),'Saving URFU'!$G$2:$G$1000) -> 0 | M3: =SUMIF('Saving URFU'!$E$2:$E$1000,CONCATENATE(M1&" "&$A$1),'Saving URFU'!$G$2:$G$1000) -> 0
A4: Saving(%) | B4: =IFERROR(B2/B3,"") ->  | C4: 0.4509803922 | D4: 0.4557133198 | E4: 0.4567076323 | F4: 0.4590939824 | G4: 0.4915984274 | H4: 0.4590939824 | I4: 0.4590939824 | J4: 0.4590939824 | N4: ='Saving URFU'!I2 -> 0.4639836944

Sheet Data_Sub (hidden)
A1: 2020 | B1: Январь | C1: Февраль | D1: Март | E1: Апрель | F1: Май | G1: Июнь | H1: Июль | I1: Август | J1: Сентябрь | K1: Октябрь | L1: Ноябрь | M1: Декабрь | N1: Итого
A2: Final saving | B2: =SUMIF('Saving Subcontract'!$E$2:$E$1000,CONCATENATE(B1&" "&$A$1),'Saving Subcontract'!$F$2:$F$1000) -> 0 | C2: =SUMIF('Saving Subcontract'!$E$2:$E$1000,CONCATENATE(C1&" "&$A$1),'Saving Subcontract'!$F$2:$F$1000) -> 0 | D2: =SUMIF('Saving Subcontract'!$E$2:$E$1000,CONCATENATE(D1&" "&$A$1),'Saving Subcontract'!$F$2:$F$1000) -> 0 | E2: =SUMIF('Saving Subcontract'!$E$2:$E$1000,CONCATENATE(E1&" "&$A$1),'Saving Subcontract'!$F$2:$F$1000) -> 0 | F2: =SUMIF('Saving Subcontract'!$E$2:$E$1000,CONCATENATE(F1&" "&$A$1),'Saving Subcontract'!$F$2:$F$1000) -> 11000 | G2: =SUMIF('Saving Subcontract'!$E$2:$E$1000,CONCATENATE(G1&" "&$A$1),'Saving Subcontract'!$F$2:$F$1000) -> 6000 | H2: =SUMIF('Saving Subcontract'!$E$2:$E$1000,CONCATENATE(H1&" "&$A$1),'Saving Subcontract'!$F$2:$F$1000) -> 8000 | I2: =SUMIF('Saving Subcontract'!$E$2:$E$1000,CONCATENATE(I1&" "&$A$1),'Saving Subcontract'!$F$2:$F$1000) -> 0 | J2: =SUMIF('Saving Subcontract'!$E$2:$E$1000,CONCATENATE(J1&" "&$A$1),'Saving Subcontract'!$F$2:$F$1000) -> 3000 | K2: =SUMIF('Saving Subcontract'!$E$2:$E$1000,CONCATENATE(K1&" "&$A$1),'Saving Subcontract'!$F$2:$F$1000) -> 0 | L2: =SUMIF('Saving Subcontract'!$E$2:$E$1000,CONCATENATE(L1&" "&$A$1),'Saving Subcontract'!$F$2:$F$1000) -> 0 | M2: =SUMIF('Saving Subcontract'!$E$2:$E$1000,CONCATENATE(M1&" "&$A$1),'Saving Subcontract'!$F$2:$F$1000) -> 0 | N2: =SUM(B2:M2) -> 28000
A3: IP KONDRATYEV | B3: =SUMIF('Saving Subcontract'!$E$2:$E$1000,CONCATENATE(B1&" "&$A$1),'Saving Subcontract'!$G$2:$G$1000) -> 0 | C3: =SUMIF('Saving Subcontract'!$E$2:$E$1000,CONCATENATE(C1&" "&$A$1),'Saving Subcontract'!$G$2:$G$1000) -> 0 | D3: =SUMIF('Saving Subcontract'!$E$2:$E$1000,CONCATENATE(D1&" "&$A$1),'Saving Subcontract'!$G$2:$G$1000) -> 0 | E3: =SUMIF('Saving Subcontract'!$E$2:$E$1000,CONCATENATE(E1&" "&$A$1),'Saving Subcontract'!$G$2:$G$1000) -> 0 | F3: =SUMIF('Saving Subcontract'!$E$2:$E$1000,CONCATENATE(F1&" "&$A$1),'Saving Subcontract'!$G$2:$G$1000) -> 27000 | G3: =SUMIF('Saving Subcontract'!$E$2:$E$1000,CONCATENATE(G1&" "&$A$1),'Saving Subcontract'!$G$2:$G$1000) -> 22000 | H3: =SUMIF('Saving Subcontract'!$E$2:$E$1000,CONCATENATE(H1&" "&$A$1),'Saving Subcontract'!$G$2:$G$1000) -> 16000 | I3: =SUMIF('Saving Subcontract'!$E$2:$E$1000,CONCATENATE(I1&" "&$A$1),'Saving Subcontract'!$G$2:$G$1000) -> 0 | J3: =SUMIF('Saving Subcontract'!$E$2:$E$1000,CONCATENATE(J1&" "&$A$1),'Saving Subcontract'!$G$2:$G$1000) -> 11000 | K3: =SUMIF('Saving Subcontract'!$E$2:$E$1000,CONCATENATE(K1&" "&$A$1),'Saving Subcontract'!$G$2:$G$1000) -> 0 | L3: =SUMIF('Saving Subcontract'!$E$2:$E$1000,CONCATENATE(L1&" "&$A$1),'Saving Subcontract'!$G$2:$G$1000) -> 0 | M3: =SUMIF('Saving Subcontract'!$E$2:$E$1000,CONCATENATE(M1&" "&$A$1),'Saving Subcontract'!$G$2:$G$1000) -> 0
A4: Saving(%) | B4: =IFERROR(B2/B3,"") ->  | F4: 0.4074074074 | G4: 0.2727272727 | H4: 0.5 | J4: 0.2727272727 | N4: ='Saving Subcontract'!I2 -> 0.3684210526

Sheet Список (hidden)
A1: Conclusion_Not_URFU | B1: 6790
A2: Conclusion_Urgent_URFU | B2: 9885
A3: Conclusion_Not_Excont | B3: 0
A4: Conclusion_Urgent_Excont | B4: 0
A5: License_Not_URFU | B5: 10025
A6: License_Urgent_URFU | B6: 10025
A7: License_Not_Excont | B7: 0
A8: License_Urgent_Excont | B8: 0

Sheet Список_Sub (hidden)
A1: 5t_SERPUKHOV-BALASHIHA_IP ASTAPENKO | B1: 3000 | E1: 5t_SERPUKHOV-BALASHIHA_IP ASTAPENKO | I1: =E1=A1 -> TRUE
A2: 5t_SERPUKHOV-BALASHIHA_IP KONDRATYEV | B2: 0
A3: 5t_SERPUKHOV-NOGINSK_IP ASTAPENKO | B3: 8000
A4: 5t_SERPUKHOV-NOGINSK_IP KONDRATYEV | B4: 0
A5: 5t_SERPUKHOV-PODOLSK_IP ASTAPENKO | B5: 2000
A6: 5t_SERPUKHOV-PODOLSK_IP KONDRATYEV | B6: 0
A7: 5t_SERPUKHOV-SOLNECHNOGORSK_IP ASTAPENKO | B7: 7500
A8: 5t_SERPUKHOV-SOLNECHNOGORSK_IP KONDRATYEV | B8: 0
A9: 5t_BALASHIHA-SERPUKHOV_IP ASTAPENKO | B9: 3000
A10: 5t_BALASHIHA-SERPUKHOV_IP KONDRATYEV | B10: 0
A11: 5t_NOGINSK-SERPUKHOV_IP ASTAPENKO | B11: 8000
A12: 5t_NOGINSK-SERPUKHOV_IP KONDRATYEV | B12: 0
A13: 5t_PODOLSK-SERPUKHOV_IP ASTAPENKO | B13: 2000
A14: 5t_PODOLSK-SERPUKHOV_IP KONDRATYEV | B14: 0
A15: 5t_SOLNECHNOGORSK-SERPUKHOV_IP ASTAPENKO | B15: 7500
A16: 5t_SOLNECHNOGORSK-SERPUKHOV_IP KONDRATYEV | B16: 0
A17: 5t_SERPUKHOV-BALASHIHA-SERPUKHOV_IP ASTAPENKO | B17: 7000
A18: 5t_SERPUKHOV_BALASHIHA_SERPUKHOV_IP KONDRATYEV | B18: 0
A19: 5t_SERPUKHOV-NOGINSK-SERPUKHOV_IP ASTAPENKO | B19: 10000
A20: 5t_SERPUKHOV-NOGINSK-SERPUKHOV_IP KONDRATYEV | B20: 0
A21: 5t_SERPUKHOV-PODOLSK-SERPUKHOV_IP ASTAPENKO | B21: 5000
A22: 5t_SERPUKHOV-PODOLSK-SERPUKHOV_IP KONDRATYEV | B22: 0
A23: 5t_SERPUKHOV-SOLNECHNOGORSK-SERPUKHOV_IP ASTAPENKO | B23: 9500
A24: 5t_SERPUKHOV-SOLNECHNOGORSK-SERPUKHOV_IP KONDRATYEV | B24: 0
